Body Name,Body,Service Area Catergorisation,Service Division Catergorisation,Responsible Unit,Expenses Type,Detailed Expenses Type,Expenses Code,Date,Transaction Number,Amount,Capital / Revenue,Supplier Name,Supplier ID
North East Lincolnshire Council,http://statistics.data.gov.uk/id/local-authority/00FC,Cap Community Care,Hps-Disabled Fac. Grants,Hps-Disabled Fac. Grants,Cap Exp Main Contract,Cap Exp Main Contract,XG01,22/12/2010,2995139,510.42,Capital,REDACTED PERSONAL DATA,REDACTED PERSONAL DATA
North East Lincolnshire Council,http://statistics.data.gov.uk/id/local-authority/00FC,Cap Community Care,Hps-Disabled Fac. Grants,Hps-Disabled Fac. Grants,Cap Exp Main Contract,Cap Exp Main Contract,XG01,09/12/2010,2986194,"3,725.00",Capital,LINCS PLUMBING & HEATING CO,179737
North East Lincolnshire Council,http://statistics.data.gov.uk/id/local-authority/00FC,Cap Community Care,Hps-Disabled Fac. Grants,Hps-Disabled Fac. Grants,Cap Exp Main Contract,Cap Exp Main Contract,XG01,13/12/2010,2987374,"3,732.00",Capital,HOGAN AND JOHNSON,117986
North East Lincolnshire Council,http://statistics.data.gov.uk/id/local-authority/00FC,Cap Community Care,Hps-Disabled Fac. Grants,Hps-Disabled Fac. Grants,Cap Exp Main Contract,Cap Exp Main Contract,XG01,07/12/2010,2984887,"3,909.64",Capital,REDACTED PERSONAL DATA,REDACTED PERSONAL DATA
North East Lincolnshire Council,http://statistics.data.gov.uk/id/local-authority/00FC,Cap Community Care,Hps-Disabled Fac. Grants,Hps-Disabled Fac. Grants,Cap Exp Main Contract,Cap Exp Main Contract,XG01,13/12/2010,2987376,"4,854.50",Capital,REDACTED PERSONAL DATA,REDACTED PERSONAL DATA
North East Lincolnshire Council,http://statistics.data.gov.uk/id/local-authority/00FC,Cap Community Care,Hps-Disabled Fac. Grants,Hps-Disabled Fac. Grants,Cap Exp Main Contract,Cap Exp Main Contract,XG01,22/12/2010,2995139,"5,430.00",Capital,REDACTED PERSONAL DATA,REDACTED PERSONAL DATA
North East Lincolnshire Council,http://statistics.data.gov.uk/id/local-authority/00FC,Cap Community Care,Hps-Disabled Fac. Grants,Hps-Disabled Fac. Grants,Cap Exp Main Contract,Cap Exp Main Contract,XG01,14/12/2010,2988726,"4,465.00",Capital,DOLPHIN MOBILITY EAST MIDLANDS LTD,138731
North East Lincolnshire Council,http://statistics.data.gov.uk/id/local-authority/00FC,Cap Education,Nunsthorpe Early Excellence,Nunsthorpe Early Excellence,Cap Exp Main Contract,Cap Exp Main Contract,XB01,08/12/2010,2985250,"35,688.03",Capital,AGRIPOWER LTD,177187
North East Lincolnshire Council,http://statistics.data.gov.uk/id/local-authority/00FC,Cap Environment,Integrated Transport,Integrated Transport,Cap Exp Main Contract,Cap Exp Main Contract,XB01,31/12/2010,2997120,986.00,Capital,M BISSELL DISPLAY LTD,149797
North East Lincolnshire Council,http://statistics.data.gov.uk/id/local-authority/00FC,Cap Environment,Integrated Transport,Integrated Transport,Cap Exp Main Contract,Cap Exp Main Contract,XB01,13/12/2010,2987760,597.30,Capital,YORKSHIRE ELECTRICITY DISTRIBUTION PLC,2936
North East Lincolnshire Council,http://statistics.data.gov.uk/id/local-authority/00FC,Cap Environment,Integrated Transport,Integrated Transport,Cap Exp Main Contract,Cap Exp Main Contract,XB01,13/12/2010,2987742,597.30,Capital,YORKSHIRE ELECTRICITY DISTRIBUTION PLC,2936
North East Lincolnshire Council,http://statistics.data.gov.uk/id/local-authority/00FC,Cap Environment,Integrated Transport,Integrated Transport,Cap Exp Main Contract,Cap Exp Main Contract,XB01,13/12/2010,2987711,648.10,Capital,YORKSHIRE ELECTRICITY DISTRIBUTION PLC,2936
North East Lincolnshire Council,http://statistics.data.gov.uk/id/local-authority/00FC,Cap Environment,Integrated Transport,Integrated Transport,Cap Exp Main Contract,Cap Exp Main Contract,XB01,13/12/2010,2987710,685.07,Capital,YORKSHIRE ELECTRICITY DISTRIBUTION PLC,2936
North East Lincolnshire Council,http://statistics.data.gov.uk/id/local-authority/00FC,Cap Environment,Integrated Transport,Integrated Transport,Cap Exp Main Contract,Cap Exp Main Contract,XB01,13/12/2010,2987745,717.65,Capital,YORKSHIRE ELECTRICITY DISTRIBUTION PLC,2936
North East Lincolnshire Council,http://statistics.data.gov.uk/id/local-authority/00FC,Cap Environment,Integrated Transport,Integrated Transport,Cap Exp Main Contract,Cap Exp Main Contract,XB01,13/12/2010,2987752,772.84,Capital,YORKSHIRE ELECTRICITY DISTRIBUTION PLC,2936
North East Lincolnshire Council,http://statistics.data.gov.uk/id/local-authority/00FC,Cap Environment,Integrated Transport,Integrated Transport,Cap Exp Main Contract,Cap Exp Main Contract,XB01,13/12/2010,2987741,772.84,Capital,YORKSHIRE ELECTRICITY DISTRIBUTION PLC,2936
North East Lincolnshire Council,http://statistics.data.gov.uk/id/local-authority/00FC,Cap Environment,Integrated Transport,Integrated Transport,Cap Exp Main Contract,Cap Exp Main Contract,XB01,13/12/2010,2987775,983.72,Capital,YORKSHIRE ELECTRICITY DISTRIBUTION PLC,2936
North East Lincolnshire Council,http://statistics.data.gov.uk/id/local-authority/00FC,Cap Environment,Integrated Transport,Integrated Transport,Cap Exp Main Contract,Cap Exp Main Contract,XB01,13/12/2010,2987778,983.72,Capital,YORKSHIRE ELECTRICITY DISTRIBUTION PLC,2936
North East Lincolnshire Council,http://statistics.data.gov.uk/id/local-authority/00FC,Cap Environment,Integrated Transport,Integrated Transport,Cap Exp Main Contract,Cap Exp Main Contract,XB01,13/12/2010,2987704,"1,157.63",Capital,YORKSHIRE ELECTRICITY DISTRIBUTION PLC,2936
North East Lincolnshire Council,http://statistics.data.gov.uk/id/local-authority/00FC,Cap Environment,Integrated Transport,Integrated Transport,Cap Exp Main Contract,Cap Exp Main Contract,XB01,13/12/2010,2987714,"1,194.60",Capital,YORKSHIRE ELECTRICITY DISTRIBUTION PLC,2936
North East Lincolnshire Council,http://statistics.data.gov.uk/id/local-authority/00FC,Cap Environment,Integrated Transport,Integrated Transport,Cap Exp Main Contract,Cap Exp Main Contract,XB01,13/12/2010,2987764,"1,282.37",Capital,YORKSHIRE ELECTRICITY DISTRIBUTION PLC,2936
North East Lincolnshire Council,http://statistics.data.gov.uk/id/local-authority/00FC,Cap Environment,Integrated Transport,Integrated Transport,Cap Exp Main Contract,Cap Exp Main Contract,XB01,13/12/2010,2987756,"1,370.14",Capital,YORKSHIRE ELECTRICITY DISTRIBUTION PLC,2936
North East Lincolnshire Council,http://statistics.data.gov.uk/id/local-authority/00FC,Cap Environment,Integrated Transport,Integrated Transport,Cap Exp Main Contract,Cap Exp Main Contract,XB01,13/12/2010,2987740,"1,754.93",Capital,YORKSHIRE ELECTRICITY DISTRIBUTION PLC,2936
North East Lincolnshire Council,http://statistics.data.gov.uk/id/local-authority/00FC,Cap Environment,Integrated Transport,Integrated Transport,Cap Exp Main Contract,Cap Exp Main Contract,XB01,13/12/2010,2987715,"1,768.76",Capital,YORKSHIRE ELECTRICITY DISTRIBUTION PLC,2936
North East Lincolnshire Council,http://statistics.data.gov.uk/id/local-authority/00FC,Cap Environment,Integrated Transport,Integrated Transport,Cap Exp Main Contract,Cap Exp Main Contract,XB01,13/12/2010,2987739,"2,053.58",Capital,YORKSHIRE ELECTRICITY DISTRIBUTION PLC,2936
North East Lincolnshire Council,http://statistics.data.gov.uk/id/local-authority/00FC,Cap Environment,Integrated Transport,Integrated Transport,Cap Exp Main Contract,Cap Exp Main Contract,XB01,13/12/2010,2987712,"2,155.18",Capital,YORKSHIRE ELECTRICITY DISTRIBUTION PLC,2936
North East Lincolnshire Council,http://statistics.data.gov.uk/id/local-authority/00FC,Cap Environment,Integrated Transport,Integrated Transport,Cap Exp Main Contract,Cap Exp Main Contract,XB01,13/12/2010,2987744,"2,403.03",Capital,YORKSHIRE ELECTRICITY DISTRIBUTION PLC,2936
North East Lincolnshire Council,http://statistics.data.gov.uk/id/local-authority/00FC,Cap Environment,Integrated Transport,Integrated Transport,Cap Exp Main Contract,Cap Exp Main Contract,XB01,13/12/2010,2987750,"2,826.42",Capital,YORKSHIRE ELECTRICITY DISTRIBUTION PLC,2936
North East Lincolnshire Council,http://statistics.data.gov.uk/id/local-authority/00FC,Cap Environment,Integrated Transport,Integrated Transport,Cap Exp Main Contract,Cap Exp Main Contract,XB01,13/12/2010,2987763,"3,671.57",Capital,YORKSHIRE ELECTRICITY DISTRIBUTION PLC,2936
North East Lincolnshire Council,http://statistics.data.gov.uk/id/local-authority/00FC,Cap Environment,Integrated Transport,Integrated Transport,Cap Exp Main Contract,Cap Exp Main Contract,XB01,13/12/2010,2987767,"4,070.11",Capital,YORKSHIRE ELECTRICITY DISTRIBUTION PLC,2936
North East Lincolnshire Council,http://statistics.data.gov.uk/id/local-authority/00FC,Cap Environment,Integrated Transport,Integrated Transport,Cap Exp Main Contract,Cap Exp Main Contract,XB01,13/12/2010,2987770,"5,017.98",Capital,YORKSHIRE ELECTRICITY DISTRIBUTION PLC,2936
North East Lincolnshire Council,http://statistics.data.gov.uk/id/local-authority/00FC,Cap Environment,Integrated Transport,Integrated Transport,Cap Exp Main Contract,Cap Exp Main Contract,XB01,08/12/2010,2985247,"5,588.22",Capital,J MCCANN & CO LTD,72950
North East Lincolnshire Council,http://statistics.data.gov.uk/id/local-authority/00FC,Cap Environment,Integrated Transport,Integrated Transport,Cap Exp Main Contract,Cap Exp Main Contract,XB01,20/12/2010,2991976,580.02,Capital,MASON CLARK ASSOCIATES,44734
North East Lincolnshire Council,http://statistics.data.gov.uk/id/local-authority/00FC,Cap Environment,Integrated Transport,Integrated Transport,Cap Exp Main Contract,Cap Exp Main Contract,XB01,20/12/2010,2991976,580.02,Capital,MASON CLARK ASSOCIATES,44734
North East Lincolnshire Council,http://statistics.data.gov.uk/id/local-authority/00FC,Cap Environment,Integrated Transport,Integrated Transport,Cap Exp Main Contract,Cap Exp Main Contract,XB01,20/12/2010,2991976,580.02,Capital,MASON CLARK ASSOCIATES,44734
North East Lincolnshire Council,http://statistics.data.gov.uk/id/local-authority/00FC,Cap Environment,Integrated Transport,Integrated Transport,Cap Exp Main Contract,Cap Exp Main Contract,XB01,20/12/2010,2991976,580.02,Capital,MASON CLARK ASSOCIATES,44734
North East Lincolnshire Council,http://statistics.data.gov.uk/id/local-authority/00FC,Cap Environment,Integrated Transport,Integrated Transport,Cap Exp Main Contract,Cap Exp Main Contract,XB01,20/12/2010,2991991,"26,829.91",Capital,PELL FRISCHMANN CONSULTANTS,77813
North East Lincolnshire Council,http://statistics.data.gov.uk/id/local-authority/00FC,Cap Environment,Integrated Transport,Integrated Transport,Cap Exp Main Contract,Cap Exp Main Contract,XB01,13/12/2010,2987772,"1,120.58",Capital,YORKSHIRE ELECTRICITY DISTRIBUTION PLC,2936
North East Lincolnshire Council,http://statistics.data.gov.uk/id/local-authority/00FC,Cap Environment,Integrated Transport,Integrated Transport,Cap Exp Main Contract,Cap Exp Main Contract,XB01,21/12/2010,2993547,"1,094.00",Capital,NEWBY LEISURE LTD,131711
North East Lincolnshire Council,http://statistics.data.gov.uk/id/local-authority/00FC,Cap Environment,Integrated Transport,Integrated Transport,Cap Exp Main Contract,Cap Exp Main Contract,XB01,09/12/2010,2986198,"1,280.85",Capital,SPECIALIST SURFACING LIMITED,6947
North East Lincolnshire Council,http://statistics.data.gov.uk/id/local-authority/00FC,Cap Learning & Child Care,Aiming High For Disabled Child,Aiming High For Disabled Child,Cap Exp Main Contract,Cap Exp Main Contract,XB01,15/12/2010,2990141,"7,580.00",Capital,ALL TERRAIN WHEELCHAIRS,181268
North East Lincolnshire Council,http://statistics.data.gov.uk/id/local-authority/00FC,Cap Community Care,East Marsh Renewal,East Marsh Renewal,Cap Exp Main Contract,Cap Exp Main Contract,XB01,22/12/2010,2995040,"65,267.04",Capital,ILLINGWORTH & GREGORY LTD,180849
North East Lincolnshire Council,http://statistics.data.gov.uk/id/local-authority/00FC,Cap Community Care,East Marsh Renewal,East Marsh Renewal,Cap Exp Main Contract,Cap Exp Main Contract,XB01,17/12/2010,2991597,876.75,Capital,EDEN BROWN LTD,142105
North East Lincolnshire Council,http://statistics.data.gov.uk/id/local-authority/00FC,Cap Community Care,East Marsh Renewal,East Marsh Renewal,Cap Exp Main Contract,Cap Exp Main Contract,XB01,31/12/2010,2996566,927.03,Capital,EDEN BROWN LTD,142105
North East Lincolnshire Council,http://statistics.data.gov.uk/id/local-authority/00FC,Cap Community Care,East Marsh Renewal,East Marsh Renewal,Cap Exp Main Contract,Cap Exp Main Contract,XB01,17/12/2010,2991420,958.71,Capital,EDEN BROWN LTD,142105
North East Lincolnshire Council,http://statistics.data.gov.uk/id/local-authority/00FC,Cap Environment,Places Of Change Programme,Places Of Change Programme,Cap Exp Main Contract,Cap Exp Main Contract,XB01,15/12/2010,2990131,"100,000.00",Capital,SALVATION ARMY,132417
North East Lincolnshire Council,http://statistics.data.gov.uk/id/local-authority/00FC,Cap Environment,Places Of Change Programme,Places Of Change Programme,Cap Exp Main Contract,Cap Exp Main Contract,XB01,13/12/2010,2987368,"100,000.00",Capital,SALVATION ARMY,132417
North East Lincolnshire Council,http://statistics.data.gov.uk/id/local-authority/00FC,Cap Environment,Places Of Change Programme,Places Of Change Programme,Cap Exp Main Contract,Cap Exp Main Contract,XB01,13/12/2010,2987369,"100,000.00",Capital,SALVATION ARMY,132417
North East Lincolnshire Council,http://statistics.data.gov.uk/id/local-authority/00FC,Cap Learning & Child Care,Devolved Formula Cap Grant,Devolved Formula Cap Grant,Cap Exp Main Contract,Cap Exp Main Contract,XB01,06/12/2010,2983577,"1,112.00",Capital,BUDGET STRETCHER (UK) LTD,181102
North East Lincolnshire Council,http://statistics.data.gov.uk/id/local-authority/00FC,Cap Learning & Child Care,Devolved Formula Cap Grant,Devolved Formula Cap Grant,Cap Exp Main Contract,Cap Exp Main Contract,XB01,07/12/2010,2984880,"2,592.00",Capital,YORKSHIRE PURCHASING,2705
North East Lincolnshire Council,http://statistics.data.gov.uk/id/local-authority/00FC,Cap Learning & Child Care,Devolved Formula Cap Grant,Devolved Formula Cap Grant,Cap Exp Main Contract,Cap Exp Main Contract,XB01,06/12/2010,2983578,"4,927.80",Capital,BUDGET STRETCHER (UK) LTD,181102
North East Lincolnshire Council,http://statistics.data.gov.uk/id/local-authority/00FC,Cap Learning & Child Care,Devolved Formula Cap Grant,Devolved Formula Cap Grant,Cap Exp Main Contract,Cap Exp Main Contract,XB01,09/12/2010,2986467,"2,841.00",Capital,REDACTED PERSONAL DATA,REDACTED PERSONAL DATA
North East Lincolnshire Council,http://statistics.data.gov.uk/id/local-authority/00FC,Cap Learning & Child Care,Devolved Formula Cap Grant,Devolved Formula Cap Grant,Cap Exp Main Contract,Cap Exp Main Contract,XB01,22/12/2010,2995300,"8,427.33",Capital,EDUCATION LINCS LTD,109818
North East Lincolnshire Council,http://statistics.data.gov.uk/id/local-authority/00FC,Cap Learning & Child Care,Devolved Formula Cap Grant,Devolved Formula Cap Grant,Cap Exp Main Contract,Cap Exp Main Contract,XB01,31/12/2010,2996749,872.50,Capital,ORCHARD FIRE & SECURITY LTD,36915
North East Lincolnshire Council,http://statistics.data.gov.uk/id/local-authority/00FC,Cap Learning & Child Care,Devolved Formula Cap Grant,Devolved Formula Cap Grant,Cap Exp Main Contract,Cap Exp Main Contract,XB01,09/12/2010,2986166,"4,500.00",Capital,JET TECH LIMITED,135671
North East Lincolnshire Council,http://statistics.data.gov.uk/id/local-authority/00FC,Cap Learning & Child Care,Devolved Formula Cap Grant,Devolved Formula Cap Grant,Cap Exp Main Contract,Cap Exp Main Contract,XB01,09/12/2010,2985610,815.00,Capital,HEMSWELL CONTRACTING,25209
North East Lincolnshire Council,http://statistics.data.gov.uk/id/local-authority/00FC,Cap Learning & Child Care,Devolved Formula Cap Grant,Devolved Formula Cap Grant,Cap Exp Main Contract,Cap Exp Main Contract,XB01,08/12/2010,2985268,985.00,Capital,ETON-LINCS LIMITED,155368
North East Lincolnshire Council,http://statistics.data.gov.uk/id/local-authority/00FC,Cap Learning & Child Care,Devolved Formula Cap Grant,Devolved Formula Cap Grant,Cap Exp Main Contract,Cap Exp Main Contract,XB01,07/12/2010,2984278,835.10,Capital,YORKSHIRE PURCHASING,2705
North East Lincolnshire Council,http://statistics.data.gov.uk/id/local-authority/00FC,Cap Learning & Child Care,Devolved Formula Cap Grant,Devolved Formula Cap Grant,Cap Exp Main Contract,Cap Exp Main Contract,XB01,15/12/2010,2990208,"4,280.76",Capital,E S RUDKIN LTD,32386
North East Lincolnshire Council,http://statistics.data.gov.uk/id/local-authority/00FC,Cap Learning & Child Care,Devolved Formula Cap Grant,Devolved Formula Cap Grant,Cap Exp Main Contract,Cap Exp Main Contract,XB01,31/12/2010,2996289,"4,000.00",Capital,EXCELL ELECTRICAL CONTRACTORS,16811
North East Lincolnshire Council,http://statistics.data.gov.uk/id/local-authority/00FC,Cap Learning & Child Care,Devolved Formula Cap Grant,Devolved Formula Cap Grant,Cap Exp Main Contract,Cap Exp Main Contract,XB01,15/12/2010,2990213,"8,955.00",Capital,ARK JOINERY AND BUILDING MAINTENANCE LTD,117879
North East Lincolnshire Council,http://statistics.data.gov.uk/id/local-authority/00FC,Cap Learning & Child Care,Devolved Formula Cap Grant,Devolved Formula Cap Grant,Cap Exp Main Contract,Cap Exp Main Contract,XB01,15/12/2010,2990210,"3,696.73",Capital,EXCELL ELECTRICAL CONTRACTORS,16811
North East Lincolnshire Council,http://statistics.data.gov.uk/id/local-authority/00FC,Cap Learning & Child Care,Devolved Formula Cap Grant,Devolved Formula Cap Grant,Cap Exp Main Contract,Cap Exp Main Contract,XB01,21/12/2010,2993558,"2,250.00",Capital,EXCELL ELECTRICAL CONTRACTORS,16811
North East Lincolnshire Council,http://statistics.data.gov.uk/id/local-authority/00FC,Cap Learning & Child Care,Devolved Formula Cap Grant,Devolved Formula Cap Grant,Cap Exp Main Contract,Cap Exp Main Contract,XB01,07/12/2010,2984858,"1,875.00",Capital,JET TECH LIMITED,135671
North East Lincolnshire Council,http://statistics.data.gov.uk/id/local-authority/00FC,Cap Learning & Child Care,Devolved Formula Cap Grant,Devolved Formula Cap Grant,Cap Exp Main Contract,Cap Exp Main Contract,XB01,13/12/2010,2987360,"9,722.00",Capital,AUTOMATED GATES & BARRIERS,176775
North East Lincolnshire Council,http://statistics.data.gov.uk/id/local-authority/00FC,Cap Learning & Child Care,Devolved Formula Cap Grant,Devolved Formula Cap Grant,Cap Exp Main Contract,Cap Exp Main Contract,XB01,15/12/2010,2990209,"12,112.90",Capital,E S RUDKIN LTD,32386
North East Lincolnshire Council,http://statistics.data.gov.uk/id/local-authority/00FC,Cap Learning & Child Care,School'S Kitchens,School'S Kitchens,Cap Exp Main Contract,Cap Exp Main Contract,XB01,21/12/2010,2994350,"16,276.35",Capital,LUMSDEN & CARROLL CONST LTD,106195
North East Lincolnshire Council,http://statistics.data.gov.uk/id/local-authority/00FC,Cap Learning & Child Care,School'S Kitchens,School'S Kitchens,Cap Exp Main Contract,Cap Exp Main Contract,XB01,21/12/2010,2994350,"1,267.68",Capital,LUMSDEN & CARROLL CONST LTD,106195
North East Lincolnshire Council,http://statistics.data.gov.uk/id/local-authority/00FC,Cap Learning & Child Care,School'S Kitchens,School'S Kitchens,Cap Exp Main Contract,Cap Exp Main Contract,XB01,21/12/2010,2994350,"5,442.29",Capital,LUMSDEN & CARROLL CONST LTD,106195
North East Lincolnshire Council,http://statistics.data.gov.uk/id/local-authority/00FC,Cap Learning & Child Care,School'S Kitchens,School'S Kitchens,Cap Exp Main Contract,Cap Exp Main Contract,XB01,21/12/2010,2994350,"1,015.09",Capital,LUMSDEN & CARROLL CONST LTD,106195
North East Lincolnshire Council,http://statistics.data.gov.uk/id/local-authority/00FC,Cap Learning & Child Care,School'S Kitchens,School'S Kitchens,Cap Exp Main Contract,Cap Exp Main Contract,XB01,21/12/2010,2994350,"2,455.59",Capital,LUMSDEN & CARROLL CONST LTD,106195
North East Lincolnshire Council,http://statistics.data.gov.uk/id/local-authority/00FC,Cap Learning & Child Care,School'S Kitchens,School'S Kitchens,Cap Exp Main Contract,Cap Exp Main Contract,XB01,21/12/2010,2994350,"7,564.78",Capital,LUMSDEN & CARROLL CONST LTD,106195
North East Lincolnshire Council,http://statistics.data.gov.uk/id/local-authority/00FC,Cap Learning & Child Care,Nds Cond + Modern All Schools,Nds Cond + Modern All Schools,Cap Exp Main Contract,Cap Exp Main Contract,XB01,13/12/2010,2987724,"6,586.00",Capital,NEW LINCS SERVICES LTD,177385
North East Lincolnshire Council,http://statistics.data.gov.uk/id/local-authority/00FC,Cap Learning & Child Care,New Pupil Places,New Pupil Places,Cap Exp Main Contract,Cap Exp Main Contract,XB01,07/12/2010,2984871,"7,737.14",Capital,G S KELSEY LIMITED,122621
North East Lincolnshire Council,http://statistics.data.gov.uk/id/local-authority/00FC,Cap Learning & Child Care,New Pupil Places,New Pupil Places,Cap Exp Main Contract,Cap Exp Main Contract,XB01,21/12/2010,2993879,"2,250.00",Capital,ASBESTOS CONSULTANTS TO THE ENVIRONMENT,177018
North East Lincolnshire Council,http://statistics.data.gov.uk/id/local-authority/00FC,Cap Environment,Vehicle Replacement Programme,Vehicle Replacement Programme,Cap Exp Main Contract,Cap Exp Main Contract,XB01,17/12/2010,2991475,"14,888.50",Capital,HARTWELL FORD GRIMSBY,23134
North East Lincolnshire Council,http://statistics.data.gov.uk/id/local-authority/00FC,Cap Community Care,Housing Assistance,Housing Assistance,Cap Exp Main Contract,Cap Exp Main Contract,XG01,06/12/2010,2983600,910.62,Capital,M K STAPLES,42401
North East Lincolnshire Council,http://statistics.data.gov.uk/id/local-authority/00FC,Cap Community Care,Housing Assistance,Housing Assistance,Cap Exp Main Contract,Cap Exp Main Contract,XG01,06/12/2010,2983600,"1,255.18",Capital,M K STAPLES,42401
North East Lincolnshire Council,http://statistics.data.gov.uk/id/local-authority/00FC,Cap Community Care,Housing Assistance,Housing Assistance,Cap Exp Main Contract,Cap Exp Main Contract,XG01,13/12/2010,2987449,"3,601.37",Capital,M K STAPLES,42401
North East Lincolnshire Council,http://statistics.data.gov.uk/id/local-authority/00FC,Cap Community Care,Housing Assistance,Housing Assistance,Cap Exp Main Contract,Cap Exp Main Contract,XG01,15/12/2010,2989731,"1,015.36",Capital,RDL DAMP & TIMBER TREATMENT,161828
North East Lincolnshire Council,http://statistics.data.gov.uk/id/local-authority/00FC,Cap Community Care,Housing Assistance,Housing Assistance,Cap Exp Main Contract,Cap Exp Main Contract,XG01,15/12/2010,2989731,"3,384.07",Capital,RDL DAMP & TIMBER TREATMENT,161828
North East Lincolnshire Council,http://statistics.data.gov.uk/id/local-authority/00FC,Cap Community Care,Housing Assistance,Housing Assistance,Cap Exp Main Contract,Cap Exp Main Contract,XB01,20/12/2010,2991983,830.47,Capital,SOLARWALL LTD,168086
North East Lincolnshire Council,http://statistics.data.gov.uk/id/local-authority/00FC,Cap Community Care,Housing Assistance,Housing Assistance,Cap Exp Main Contract,Cap Exp Main Contract,XB01,16/12/2010,2991192,"1,332.45",Capital,EAST COAST GAS SERVICES,75792
North East Lincolnshire Council,http://statistics.data.gov.uk/id/local-authority/00FC,Cap Community Care,Housing Assistance,Housing Assistance,Cap Exp Main Contract,Cap Exp Main Contract,XB01,16/12/2010,2991193,"1,338.75",Capital,MAYNE GAS  HEATING LTD,167677
North East Lincolnshire Council,http://statistics.data.gov.uk/id/local-authority/00FC,Cap Community Care,Housing Assistance,Housing Assistance,Cap Exp Main Contract,Cap Exp Main Contract,XG01,06/12/2010,2983591,"1,391.25",Capital,MAYNE GAS  HEATING LTD,167677
North East Lincolnshire Council,http://statistics.data.gov.uk/id/local-authority/00FC,Cap Community Care,Housing Assistance,Housing Assistance,Cap Exp Main Contract,Cap Exp Main Contract,XG01,06/12/2010,2983593,"1,884.75",Capital,MAYNE GAS  HEATING LTD,167677
North East Lincolnshire Council,http://statistics.data.gov.uk/id/local-authority/00FC,Cap Learning & Child Care,Surplus Place Removal,Surplus Place Removal,Cap Exp Main Contract,Cap Exp Main Contract,XB01,15/12/2010,2989695,"90,609.19",Capital,G S KELSEY LIMITED,122621
North East Lincolnshire Council,http://statistics.data.gov.uk/id/local-authority/00FC,Cap Learning & Child Care,Surplus Place Removal,Surplus Place Removal,Cap Exp Main Contract,Cap Exp Main Contract,XB01,07/12/2010,2984870,"2,552.00",Capital,IDEAL BUILDING SYSTEMS LTD,130954
North East Lincolnshire Council,http://statistics.data.gov.uk/id/local-authority/00FC,Cap Learning & Child Care,Surplus Place Removal,Surplus Place Removal,Cap Exp Main Contract,Cap Exp Main Contract,XB01,13/12/2010,2987678,"118,137.63",Capital,JAYBUILD PROJECTS LTD,180144
North East Lincolnshire Council,http://statistics.data.gov.uk/id/local-authority/00FC,Cap Learning & Child Care,Surplus Place Removal,Surplus Place Removal,Cap Exp Main Contract,Cap Exp Main Contract,XB01,15/12/2010,2989696,"17,221.08",Capital,F A WOULD GROUP,161378
North East Lincolnshire Council,http://statistics.data.gov.uk/id/local-authority/00FC,Cap Learning & Child Care,Bsf Programme,Bsf Programme,Cap Exp Main Contract,Cap Exp Main Contract,XB01,23/12/2010,2996239,"181,747.56",Capital,GAIA TECHNOLOGIES PLC,179599
North East Lincolnshire Council,http://statistics.data.gov.uk/id/local-authority/00FC,Cap Regeneration,Property Planned Repairs,Property Planned Repairs,Cap Exp Main Contract,Cap Exp Main Contract,XB01,06/12/2010,2983607,"73,150.00",Capital,NEWGLAZE,34838
North East Lincolnshire Council,http://statistics.data.gov.uk/id/local-authority/00FC,Cap Regeneration,Property Planned Repairs,Property Planned Repairs,Cap Exp Main Contract,Cap Exp Main Contract,XB01,15/12/2010,2989694,"34,976.82",Capital,GEOMATT BUILDING LTD,180519
North East Lincolnshire Council,http://statistics.data.gov.uk/id/local-authority/00FC,Cap Regeneration,Property Planned Repairs,Property Planned Repairs,Cap Exp Main Contract,Cap Exp Main Contract,XB01,15/12/2010,2989697,"1,088.86",Capital,DARFEN DURAFENCING,143845
North East Lincolnshire Council,http://statistics.data.gov.uk/id/local-authority/00FC,Cap Learning & Child Care,Youth Capital Fund,Youth Capital Fund,Cap Exp Main Contract,Cap Exp Main Contract,XB01,17/12/2010,2991481,"2,000.00",Capital,GIVING YOUNG PEOPLE OPPORTUNITIES,167830
North East Lincolnshire Council,http://statistics.data.gov.uk/id/local-authority/00FC,Cap Corporate,Invest To Save,Invest To Save,Cap Exp Main Contract,Cap Exp Main Contract,XB01,15/12/2010,2990007,"4,549.79",Capital,MIDLAND SOFTWARE LTD,180559
North East Lincolnshire Council,http://statistics.data.gov.uk/id/local-authority/00FC,Cap Learning & Child Care,Primary Capital Programme,Primary Capital Programme,Cap Exp Main Contract,Cap Exp Main Contract,XB01,03/12/2010,2983239,"2,000.00",Capital,EDWARD HENEAGE PRIMARY SCHOOL,161446
North East Lincolnshire Council,http://statistics.data.gov.uk/id/local-authority/00FC,Cap Environment,Bradley Playing Fields,Bradley Playing Fields,Cap Exp Main Contract,Cap Exp Main Contract,XB01,13/12/2010,2987826,663.00,Capital,THE SAFE SHOP,161611
North East Lincolnshire Council,http://statistics.data.gov.uk/id/local-authority/00FC,Cap Environment,Bradley Playing Fields,Bradley Playing Fields,Cap Exp Main Contract,Cap Exp Main Contract,XB01,13/12/2010,2987827,991.00,Capital,SYLVESTER-KEAL LTD,13580
North East Lincolnshire Council,http://statistics.data.gov.uk/id/local-authority/00FC,Cap Environment,Bradley Playing Fields,Bradley Playing Fields,Cap Exp Main Contract,Cap Exp Main Contract,XB01,07/12/2010,2984869,"120,859.28",Capital,AGRIPOWER LTD,177187
North East Lincolnshire Council,http://statistics.data.gov.uk/id/local-authority/00FC,Cap Environment,Grant Thorold Library,Grant Thorold Library,Cap Exp Main Contract,Cap Exp Main Contract,XB01,15/12/2010,2989693,"14,330.00",Capital,GILL DEMOLITIONS LTD,131480
North East Lincolnshire Council,http://statistics.data.gov.uk/id/local-authority/00FC,Cap Environment,Highway Infrastructure Imp,Highway Infrastructure Imp,Cap Exp Main Contract,Cap Exp Main Contract,XB01,08/12/2010,2985247,"23,190.45",Capital,J MCCANN & CO LTD,72950
North East Lincolnshire Council,http://statistics.data.gov.uk/id/local-authority/00FC,Cap Environment,Highway Infrastructure Imp,Highway Infrastructure Imp,Cap Exp Main Contract,Cap Exp Main Contract,XB01,17/12/2010,2991452,"52,415.45",Capital,C R REYNOLDS (CONSTRUCTION),7385
North East Lincolnshire Council,http://statistics.data.gov.uk/id/local-authority/00FC,Cap Environment,Highway Infrastructure Imp,Highway Infrastructure Imp,Cap Exp Main Contract,Cap Exp Main Contract,XB01,13/12/2010,2987708,"1,034.52",Capital,YORKSHIRE ELECTRICITY DISTRIBUTION PLC,2936
North East Lincolnshire Council,http://statistics.data.gov.uk/id/local-authority/00FC,Cap Environment,Highway Infrastructure Imp,Highway Infrastructure Imp,Cap Exp Main Contract,Cap Exp Main Contract,XB01,08/12/2010,2985247,"1,077.73",Capital,J MCCANN & CO LTD,72950
North East Lincolnshire Council,http://statistics.data.gov.uk/id/local-authority/00FC,Cap Environment,Highway Infrastructure Imp,Highway Infrastructure Imp,Cap Exp Main Contract,Cap Exp Main Contract,XB01,17/12/2010,2991453,"25,948.19",Capital,C R REYNOLDS (CONSTRUCTION),7385
North East Lincolnshire Council,http://statistics.data.gov.uk/id/local-authority/00FC,Cap Environment,Highway Infrastructure Imp,Highway Infrastructure Imp,Cap Exp Main Contract,Cap Exp Main Contract,XB01,17/12/2010,2991453,"30,000.00",Capital,C R REYNOLDS (CONSTRUCTION),7385
North East Lincolnshire Council,http://statistics.data.gov.uk/id/local-authority/00FC,Cap Regeneration,Victoria St -Pedestrianisation,Victoria St -Pedestrianisation,Cap Exp Main Contract,Cap Exp Main Contract,XB01,20/12/2010,2991868,592.00,Capital,THE FOUNTAIN COMPANY LTD,169899
North East Lincolnshire Council,http://statistics.data.gov.uk/id/local-authority/00FC,Cap Learning & Child Care,Creative Play Facilities,Creative Play Facilities,Cap Exp Main Contract,Cap Exp Main Contract,XB01,08/12/2010,2985230,"12,440.13",Capital,LAPPSET UK LTD,178182
North East Lincolnshire Council,http://statistics.data.gov.uk/id/local-authority/00FC,Cap Learning & Child Care,Creative Play Facilities,Creative Play Facilities,Cap Exp Main Contract,Cap Exp Main Contract,XB01,08/12/2010,2985230,"11,140.75",Capital,LAPPSET UK LTD,178182
North East Lincolnshire Council,http://statistics.data.gov.uk/id/local-authority/00FC,Cap Learning & Child Care,Creative Play Facilities,Creative Play Facilities,Cap Exp Main Contract,Cap Exp Main Contract,XB01,08/12/2010,2985230,"5,257.93",Capital,LAPPSET UK LTD,178182
North East Lincolnshire Council,http://statistics.data.gov.uk/id/local-authority/00FC,Cap Learning & Child Care,Creative Play Facilities,Creative Play Facilities,Cap Exp Main Contract,Cap Exp Main Contract,XB01,08/12/2010,2985226,"12,794.66",Capital,SUTCLIFFE PLAY,178383
North East Lincolnshire Council,http://statistics.data.gov.uk/id/local-authority/00FC,Cap Learning & Child Care,Creative Play Facilities,Creative Play Facilities,Cap Exp Main Contract,Cap Exp Main Contract,XB01,08/12/2010,2985226,"3,934.46",Capital,SUTCLIFFE PLAY,178383
North East Lincolnshire Council,http://statistics.data.gov.uk/id/local-authority/00FC,Cap Learning & Child Care,Creative Play Facilities,Creative Play Facilities,Cap Exp Main Contract,Cap Exp Main Contract,XB01,08/12/2010,2985226,"3,090.27",Capital,SUTCLIFFE PLAY,178383
North East Lincolnshire Council,http://statistics.data.gov.uk/id/local-authority/00FC,Cap Learning & Child Care,Creative Play Facilities,Creative Play Facilities,Cap Exp Main Contract,Cap Exp Main Contract,XB01,08/12/2010,2985226,"5,590.54",Capital,SUTCLIFFE PLAY,178383
North East Lincolnshire Council,http://statistics.data.gov.uk/id/local-authority/00FC,Cap Learning & Child Care,Creative Play Facilities,Creative Play Facilities,Cap Exp Main Contract,Cap Exp Main Contract,XB01,08/12/2010,2985226,"6,360.25",Capital,SUTCLIFFE PLAY,178383
North East Lincolnshire Council,http://statistics.data.gov.uk/id/local-authority/00FC,Cap Learning & Child Care,Creative Play Facilities,Creative Play Facilities,Cap Exp Main Contract,Cap Exp Main Contract,XB01,08/12/2010,2985232,"8,550.00",Capital,HAGS PLAY LTD,138922
North East Lincolnshire Council,http://statistics.data.gov.uk/id/local-authority/00FC,Cap Learning & Child Care,Creative Play Facilities,Creative Play Facilities,Cap Exp Main Contract,Cap Exp Main Contract,XB01,08/12/2010,2985232,"3,006.75",Capital,HAGS PLAY LTD,138922
North East Lincolnshire Council,http://statistics.data.gov.uk/id/local-authority/00FC,Cap Learning & Child Care,Creative Play Facilities,Creative Play Facilities,Cap Exp Main Contract,Cap Exp Main Contract,XB01,08/12/2010,2985232,"4,750.00",Capital,HAGS PLAY LTD,138922
North East Lincolnshire Council,http://statistics.data.gov.uk/id/local-authority/00FC,Cap Environment,Clean Streets,Clean Streets,Cap Exp Main Contract,Cap Exp Main Contract,XB01,08/12/2010,2985186,"22,460.00",Capital,F G ADAMSON & SON,42673
North East Lincolnshire Council,http://statistics.data.gov.uk/id/local-authority/00FC,Cap Regeneration,Humb Fitties Flood Defence,Humb Fitties Flood Defence,Cap Exp Main Contract,Cap Exp Main Contract,XB01,16/12/2010,2990313,"73,125.00",Capital,C R REYNOLDS (CONSTRUCTION),7385
North East Lincolnshire Council,http://statistics.data.gov.uk/id/local-authority/00FC,Business Services,Finance & Strategic Change,Accountancy,Direct Employee Expenses,Pay Employment Agency Staff,AA53,22/12/2010,2995028,626.10,Revenue,BADENOCH & CLARK,147483
North East Lincolnshire Council,http://statistics.data.gov.uk/id/local-authority/00FC,Business Services,Finance & Strategic Change,Accountancy,Direct Employee Expenses,Pay Employment Agency Staff,AA53,21/12/2010,2993567,646.97,Revenue,BADENOCH & CLARK,147483
North East Lincolnshire Council,http://statistics.data.gov.uk/id/local-authority/00FC,Business Services,Finance & Strategic Change,Accountancy,Direct Employee Expenses,Pay Employment Agency Staff,AA53,21/12/2010,2993540,709.58,Revenue,BADENOCH & CLARK,147483
North East Lincolnshire Council,http://statistics.data.gov.uk/id/local-authority/00FC,Business Services,Finance & Strategic Change,Accountancy,Direct Employee Expenses,Pay Employment Agency Staff,AA53,06/12/2010,2983267,772.19,Revenue,BADENOCH & CLARK,147483
North East Lincolnshire Council,http://statistics.data.gov.uk/id/local-authority/00FC,Business Services,Finance & Strategic Change,Accountancy,Printing Station & Gen Off Exp,Books Etc Purchases,KC06,21/12/2010,2994078,780.00,Revenue,CIPFA BUSINESS LIMITED,176438
North East Lincolnshire Council,http://statistics.data.gov.uk/id/local-authority/00FC,Business Services,Finance & Strategic Change,Audit,Indirect Employee Expenses,Train Basic Skill - Course Fee,BX01,14/12/2010,2988128,695.00,Revenue,BUSINESS RISK MANAGEMENT LTD,175958
North East Lincolnshire Council,http://statistics.data.gov.uk/id/local-authority/00FC,Business Services,Finance & Strategic Change,Audit,Indirect Employee Expenses,Train Basic Skill - Course Fee,BX01,22/12/2010,2995029,918.00,Revenue,ITS TRAINING (UK) LTD,140739
North East Lincolnshire Council,http://statistics.data.gov.uk/id/local-authority/00FC,Business Services,Finance & Strategic Change,Income & Payments Service,Communication & Computing,Comp S/Ware Maintenance,HJ31,07/12/2010,2984873,632.43,Revenue,NORTHGATE INFORMATION SOLUTIONS UK LTD,166549
North East Lincolnshire Council,http://statistics.data.gov.uk/id/local-authority/00FC,Business Services,Finance & Strategic Change,Income & Payments Service,Consultants,Consult Work Technical Adv,PG02,14/12/2010,2988180,"1,875.00",Revenue,LANDMARK CHAMBERS,178401
North East Lincolnshire Council,http://statistics.data.gov.uk/id/local-authority/00FC,Business Services,Finance & Strategic Change,Income & Payments Service,Equipment/Furniture/Materials,Off Equip Purchases,HN04,03/12/2010,2983149,645.26,Revenue,BARRY BENNETT LTD,126853
North East Lincolnshire Council,http://statistics.data.gov.uk/id/local-authority/00FC,Business Services,Finance & Strategic Change,Income & Payments Service,Expenses,Trav/Subs Off Course/Semin Fee,MA03,20/12/2010,2992507,750.00,Revenue,NORTHGATE INFORMATION SOLUTIONS UK LTD,166549
North East Lincolnshire Council,http://statistics.data.gov.uk/id/local-authority/00FC,Business Services,Finance & Strategic Change,Income & Payments Service,Miscellaneous Expenses,Bankruptcy Court Costs,LS11,22/12/2010,2995275,512.00,Revenue,WILKIN CHAPMAN SOLICITORS,86523
North East Lincolnshire Council,http://statistics.data.gov.uk/id/local-authority/00FC,Business Services,Finance & Strategic Change,Income & Payments Service,Printing Station & Gen Off Exp,Postages,LE01,03/12/2010,2983022,571.24,Revenue,FINANCIAL DATA MANAGEMENT LTD,165153
North East Lincolnshire Council,http://statistics.data.gov.uk/id/local-authority/00FC,Business Services,Finance & Strategic Change,Income & Payments Service,Printing Station & Gen Off Exp,Postages,LE01,15/12/2010,2990218,953.29,Revenue,FINANCIAL DATA MANAGEMENT LTD,165153
North East Lincolnshire Council,http://statistics.data.gov.uk/id/local-authority/00FC,Business Services,Finance & Strategic Change,Income & Payments Service,Printing Station & Gen Off Exp,Postages,LE01,17/12/2010,2991425,991.88,Revenue,FINANCIAL DATA MANAGEMENT LTD,165153
North East Lincolnshire Council,http://statistics.data.gov.uk/id/local-authority/00FC,Business Services,Finance & Strategic Change,Deputy Director Of Finance,Indirect Employee Expenses,Train Basic Skill - Course Fee,BX01,21/12/2010,2993541,771.30,Revenue,LEEDS METROPOLITAN UNIVERSITY,160860
North East Lincolnshire Council,http://statistics.data.gov.uk/id/local-authority/00FC,Business Services,Finance & Strategic Change,Insurance,Printing Station & Gen Off Exp,Print & Stat General,LA01,31/12/2010,2996294,-23.39,Revenue,LYRECO UK LIMITED,117289
North East Lincolnshire Council,http://statistics.data.gov.uk/id/local-authority/00FC,Business Services,Finance & Strategic Change,Payroll,Expenses,Trav/Subs Off Other Offic Duty,MA05,15/12/2010,2989736,-25.04,Revenue,NYS CORPORATE,177749
North East Lincolnshire Council,http://statistics.data.gov.uk/id/local-authority/00FC,Business Services,Finance & Strategic Change,Payroll,Expenses,Trav/Subs Off Other Offic Duty,MA05,15/12/2010,2989737,-25.04,Revenue,NYS CORPORATE,177749
North East Lincolnshire Council,http://statistics.data.gov.uk/id/local-authority/00FC,Business Services,Finance & Strategic Change,Payroll,Direct Employee Expenses,Pay Employment Agency Staff,AA53,08/12/2010,2985150,713.22,Revenue,ESP LTD,132218
North East Lincolnshire Council,http://statistics.data.gov.uk/id/local-authority/00FC,Business Services,Finance & Strategic Change,Payroll,Direct Employee Expenses,Pay Employment Agency Staff,AA53,07/12/2010,2984875,718.17,Revenue,ESP LTD,132218
North East Lincolnshire Council,http://statistics.data.gov.uk/id/local-authority/00FC,Business Services,Finance & Strategic Change,Payroll,Communication & Computing,Comp S/Ware Purchases,HJ01,09/12/2010,2986187,930.00,Revenue,VIGLEN LIMITED,78202
North East Lincolnshire Council,http://statistics.data.gov.uk/id/local-authority/00FC,Business Services,Finance & Strategic Change,Benefit Payments & Subsidy,Expense Recovery,Expense Recov Rent Allow,UV84,20/12/2010,2992820,"1,952.52",Revenue,REDACTED PERSONAL DATA,REDACTED PERSONAL DATA
North East Lincolnshire Council,http://statistics.data.gov.uk/id/local-authority/00FC,Business Services,Strategic Business Support,Information Technology,Direct Employee Expenses,Pay Employment Agency Staff,AA53,13/12/2010,2987698,623.68,Revenue,BADENOCH & CLARK,147483
North East Lincolnshire Council,http://statistics.data.gov.uk/id/local-authority/00FC,Business Services,Strategic Business Support,Information Technology,Direct Employee Expenses,Pay Employment Agency Staff,AA53,22/12/2010,2995194,652.46,Revenue,BADENOCH & CLARK,147483
North East Lincolnshire Council,http://statistics.data.gov.uk/id/local-authority/00FC,Business Services,Strategic Business Support,Information Technology,Direct Employee Expenses,Pay Employment Agency Staff,AA53,22/12/2010,2995197,652.46,Revenue,BADENOCH & CLARK,147483
North East Lincolnshire Council,http://statistics.data.gov.uk/id/local-authority/00FC,Business Services,Strategic Business Support,Information Technology,Direct Employee Expenses,Pay Employment Agency Staff,AA53,09/12/2010,2986325,662.06,Revenue,BADENOCH & CLARK,147483
North East Lincolnshire Council,http://statistics.data.gov.uk/id/local-authority/00FC,Business Services,Strategic Business Support,Information Technology,Expenses,Trav/Subs Off Other Offic Duty,MA05,15/12/2010,2990120,756.00,Revenue,NYS CORPORATE,177749
North East Lincolnshire Council,http://statistics.data.gov.uk/id/local-authority/00FC,Business Services,Strategic Business Support,Information Technology,Communication & Computing,Fax,LH01,13/12/2010,2987380,-65.00,Revenue,VODAFONE LIMITED,139012
North East Lincolnshire Council,http://statistics.data.gov.uk/id/local-authority/00FC,Business Services,Strategic Business Support,Information Technology,Communication & Computing,Telephone Rental Charges,LG05,15/12/2010,2989701,639.70,Revenue,NTL,153928
North East Lincolnshire Council,http://statistics.data.gov.uk/id/local-authority/00FC,Business Services,Strategic Business Support,Information Technology,Communication & Computing,Telephone Call Charges,LG06,15/12/2010,2990184,962.18,Revenue,NTL GROUP LIMITED,140731
North East Lincolnshire Council,http://statistics.data.gov.uk/id/local-authority/00FC,Business Services,Strategic Business Support,Information Technology,Communication & Computing,Telephone Call Charges,LG06,15/12/2010,2989701,"4,889.67",Revenue,NTL,153928
North East Lincolnshire Council,http://statistics.data.gov.uk/id/local-authority/00FC,Business Services,Strategic Business Support,Information Technology,Communication & Computing,Telephone Mobile Phones,LG13,13/12/2010,2987379,"13,501.37",Revenue,VODAFONE LIMITED,139012
North East Lincolnshire Council,http://statistics.data.gov.uk/id/local-authority/00FC,Business Services,Strategic Business Support,Information Technology,Communication & Computing,Comp Equip Pc Equipt,HK02,13/12/2010,2987879,523.79,Revenue,INSIGHT DIRECT (UK) LTD,102482
North East Lincolnshire Council,http://statistics.data.gov.uk/id/local-authority/00FC,Business Services,Strategic Business Support,Information Technology,Communication & Computing,Comp Equip Pc Equipt,HK02,16/12/2010,2990822,535.09,Revenue,INSIGHT DIRECT (UK) LTD,102482
North East Lincolnshire Council,http://statistics.data.gov.uk/id/local-authority/00FC,Business Services,Strategic Business Support,Information Technology,Communication & Computing,Comp Equip Pc Equipt,HK02,16/12/2010,2990819,600.00,Revenue,REDACTED PERSONAL DATA,REDACTED PERSONAL DATA
North East Lincolnshire Council,http://statistics.data.gov.uk/id/local-authority/00FC,Business Services,Strategic Business Support,Information Technology,Communication & Computing,Comp Equip Pc Equipt,HK02,16/12/2010,2990820,600.00,Revenue,REDACTED PERSONAL DATA,REDACTED PERSONAL DATA
North East Lincolnshire Council,http://statistics.data.gov.uk/id/local-authority/00FC,Business Services,Strategic Business Support,Information Technology,Communication & Computing,Comp Equip Pc Equipt,HK02,09/12/2010,2985894,600.00,Revenue,T A WILLIAMS LTD,158845
North East Lincolnshire Council,http://statistics.data.gov.uk/id/local-authority/00FC,Business Services,Strategic Business Support,Information Technology,Communication & Computing,Comp Equip Pc Equipt,HK02,09/12/2010,2985893,600.00,Revenue,T A WILLIAMS LTD,158845
North East Lincolnshire Council,http://statistics.data.gov.uk/id/local-authority/00FC,Business Services,Strategic Business Support,Information Technology,Communication & Computing,Comp Equip Pc Equipt,HK02,31/12/2010,2996275,601.46,Revenue,INSIGHT DIRECT (UK) LTD,102482
North East Lincolnshire Council,http://statistics.data.gov.uk/id/local-authority/00FC,Business Services,Strategic Business Support,Information Technology,Communication & Computing,Comp Equip Pc Equipt,HK02,15/12/2010,2990197,657.36,Revenue,DELL COMPUTER CORPORATION LTD,79790
North East Lincolnshire Council,http://statistics.data.gov.uk/id/local-authority/00FC,Business Services,Strategic Business Support,Information Technology,Communication & Computing,Comp Equip Pc Equipt,HK02,16/12/2010,2990818,702.24,Revenue,DELL COMPUTER CORPORATION LTD,79790
North East Lincolnshire Council,http://statistics.data.gov.uk/id/local-authority/00FC,Business Services,Strategic Business Support,Information Technology,Communication & Computing,Comp Equip Pc Equipt,HK02,09/12/2010,2985881,734.39,Revenue,INSIGHT DIRECT (UK) LTD,102482
North East Lincolnshire Council,http://statistics.data.gov.uk/id/local-authority/00FC,Business Services,Strategic Business Support,Information Technology,Communication & Computing,Comp Equip Pc Equipt,HK02,15/12/2010,2990197,840.84,Revenue,DELL COMPUTER CORPORATION LTD,79790
North East Lincolnshire Council,http://statistics.data.gov.uk/id/local-authority/00FC,Business Services,Strategic Business Support,Information Technology,Communication & Computing,Comp Equip Pc Equipt,HK02,13/12/2010,2987880,939.94,Revenue,INSIGHT DIRECT (UK) LTD,102482
North East Lincolnshire Council,http://statistics.data.gov.uk/id/local-authority/00FC,Business Services,Strategic Business Support,Information Technology,Communication & Computing,Comp Equip Pc Equipt,HK02,09/12/2010,2985860,"1,040.10",Revenue,DELL COMPUTER CORPORATION LTD,79790
North East Lincolnshire Council,http://statistics.data.gov.uk/id/local-authority/00FC,Business Services,Strategic Business Support,Information Technology,Communication & Computing,Comp Equip Pc Equipt,HK02,13/12/2010,2987882,"1,219.68",Revenue,DELL COMPUTER CORPORATION LTD,79790
North East Lincolnshire Council,http://statistics.data.gov.uk/id/local-authority/00FC,Business Services,Strategic Business Support,Information Technology,Communication & Computing,Comp Equip Pc Equipt,HK02,21/12/2010,2993522,"1,219.69",Revenue,DELL COMPUTER CORPORATION LTD,79790
North East Lincolnshire Council,http://statistics.data.gov.uk/id/local-authority/00FC,Business Services,Strategic Business Support,Information Technology,Communication & Computing,Comp Equip Pc Equipt,HK02,13/12/2010,2987879,"4,319.28",Revenue,INSIGHT DIRECT (UK) LTD,102482
North East Lincolnshire Council,http://statistics.data.gov.uk/id/local-authority/00FC,Business Services,Strategic Business Support,Information Technology,Communication & Computing,Comp Equip Pc Equipt,HK02,13/12/2010,2987881,"5,220.60",Revenue,DELL COMPUTER CORPORATION LTD,79790
North East Lincolnshire Council,http://statistics.data.gov.uk/id/local-authority/00FC,Business Services,Strategic Business Support,Information Technology,Printing Station & Gen Off Exp,Print & Stat General,LA01,31/12/2010,2996294,-17.38,Revenue,LYRECO UK LIMITED,117289
North East Lincolnshire Council,http://statistics.data.gov.uk/id/local-authority/00FC,Business Services,Strategic Business Support,Information Technology,Direct Employee Expenses,Pay Employment Agency Staff,AA53,08/12/2010,2984966,"4,272.32",Revenue,BADENOCH & CLARK,147483
North East Lincolnshire Council,http://statistics.data.gov.uk/id/local-authority/00FC,Business Services,Strategic Business Support,Information Technology,Direct Employee Expenses,Pay Employment Agency Staff,AA53,07/12/2010,2984900,"4,272.32",Revenue,BADENOCH & CLARK,147483
North East Lincolnshire Council,http://statistics.data.gov.uk/id/local-authority/00FC,Business Services,Strategic Business Support,Information Technology,Direct Employee Expenses,Pay Employment Agency Staff,AA53,08/12/2010,2984965,"4,272.32",Revenue,BADENOCH & CLARK,147483
North East Lincolnshire Council,http://statistics.data.gov.uk/id/local-authority/00FC,Business Services,Strategic Business Support,Information Technology,Direct Employee Expenses,Pay Employment Agency Staff,AA53,21/12/2010,2993563,700.44,Revenue,BADENOCH & CLARK,147483
North East Lincolnshire Council,http://statistics.data.gov.uk/id/local-authority/00FC,Business Services,Strategic Business Support,Information Technology,Direct Employee Expenses,Pay Employment Agency Staff,AA53,09/12/2010,2986327,719.63,Revenue,BADENOCH & CLARK,147483
North East Lincolnshire Council,http://statistics.data.gov.uk/id/local-authority/00FC,Business Services,Strategic Business Support,Information Technology,Direct Employee Expenses,Pay Employment Agency Staff,AA53,31/12/2010,2996518,719.63,Revenue,BADENOCH & CLARK,147483
North East Lincolnshire Council,http://statistics.data.gov.uk/id/local-authority/00FC,Business Services,Strategic Business Support,Information Technology,Direct Employee Expenses,Pay Employment Agency Staff,AA53,20/12/2010,2991964,719.63,Revenue,BADENOCH & CLARK,147483
North East Lincolnshire Council,http://statistics.data.gov.uk/id/local-authority/00FC,Business Services,Strategic Business Support,Information Technology,Direct Employee Expenses,Pay Employment Agency Staff,AA53,31/12/2010,2996521,719.63,Revenue,BADENOCH & CLARK,147483
North East Lincolnshire Council,http://statistics.data.gov.uk/id/local-authority/00FC,Business Services,Strategic Business Support,Information Technology,Equipment/Furniture/Materials,Equip Other Training Materials,HC80,13/12/2010,2987851,"2,500.00",Revenue,CREATIVE COURSEWARE,169958
North East Lincolnshire Council,http://statistics.data.gov.uk/id/local-authority/00FC,Business Services,Strategic Business Support,Information Technology,Communication & Computing,Upgrades,HK20,20/12/2010,2991828,576.30,Revenue,SETON LIMITED,10163
North East Lincolnshire Council,http://statistics.data.gov.uk/id/local-authority/00FC,Business Services,Strategic Business Support,Information Technology,Communication & Computing,Upgrades,HK20,20/12/2010,2992434,576.30,Revenue,SETON LIMITED,10163
North East Lincolnshire Council,http://statistics.data.gov.uk/id/local-authority/00FC,Business Services,Strategic Business Support,Information Technology,Communication & Computing,Upgrades,HK20,20/12/2010,2992440,576.30,Revenue,SETON LIMITED,10163
North East Lincolnshire Council,http://statistics.data.gov.uk/id/local-authority/00FC,Business Services,Strategic Business Support,Information Technology,Communication & Computing,Comp S/Ware Maintenance,HJ31,17/12/2010,2991434,712.64,Revenue,TRUSTMARQUE SOLUTIONS LTD,135447
North East Lincolnshire Council,http://statistics.data.gov.uk/id/local-authority/00FC,Business Services,Strategic Business Support,Information Technology,Communication & Computing,Comp Equip Data Links Excl Als,HK04,15/12/2010,2989701,780.00,Revenue,NTL,153928
North East Lincolnshire Council,http://statistics.data.gov.uk/id/local-authority/00FC,Business Services,Strategic Business Support,Information Technology,Communication & Computing,Comp Equip Data Links Excl Als,HK04,14/12/2010,2988746,844.85,Revenue,NTL GROUP LIMITED,140731
North East Lincolnshire Council,http://statistics.data.gov.uk/id/local-authority/00FC,Business Services,Strategic Business Support,Information Technology,Indirect Employee Expenses,Train Basic Skills - Trav/Subs,BX03,21/12/2010,2993003,900.00,Revenue,HALAROSE LIMITED,170144
North East Lincolnshire Council,http://statistics.data.gov.uk/id/local-authority/00FC,Business Services,Strategic Business Support,Information Technology,Communication & Computing,Comp Equip Data Links Excl Als,HK04,15/12/2010,2989701,"1,131.00",Revenue,NTL,153928
North East Lincolnshire Council,http://statistics.data.gov.uk/id/local-authority/00FC,Business Services,Strategic Business Support,Information Technology,Communication & Computing,Comp Equip Data Links Excl Als,HK04,15/12/2010,2989701,"1,560.00",Revenue,NTL,153928
North East Lincolnshire Council,http://statistics.data.gov.uk/id/local-authority/00FC,Business Services,Strategic Business Support,Information Technology,Communication & Computing,Computer Consum Magnetic Media,HL41,16/12/2010,2991161,"1,981.00",Revenue,INCOMS SYSTEMS PLC,133223
North East Lincolnshire Council,http://statistics.data.gov.uk/id/local-authority/00FC,Business Services,Strategic Business Support,Information Technology,Communication & Computing,Comp S/Ware Maintenance,HJ31,21/12/2010,2993991,"7,000.00",Revenue,TRUSTMARQUE SOLUTIONS LTD,135447
North East Lincolnshire Council,http://statistics.data.gov.uk/id/local-authority/00FC,Business Services,Strategic Business Support,Information Technology,Communication & Computing,Comp Equip Purchases,HK01,13/12/2010,2987850,"25,824.24",Revenue,TRUSTMARQUE SOLUTIONS LTD,135447
North East Lincolnshire Council,http://statistics.data.gov.uk/id/local-authority/00FC,Business Services,Strategic Business Support,Information Technology,Indirect Employee Expenses,Train Basic Skills - Trav/Subs,BX03,08/12/2010,2985585,-19.43,Revenue,REDACTED PERSONAL DATA,REDACTED PERSONAL DATA
North East Lincolnshire Council,http://statistics.data.gov.uk/id/local-authority/00FC,Business Services,Strategic Business Support,Information Technology,Equipment/Furniture/Materials,Equip Ink Plates Consumables,HC41,31/12/2010,2996899,-9.23,Revenue,ROTHERA & BRERETON LTD,43225
North East Lincolnshire Council,http://statistics.data.gov.uk/id/local-authority/00FC,Business Services,Strategic Business Support,Information Technology,Equipment/Furniture/Materials,Equip Purchases,HC01,09/12/2010,2986346,573.98,Revenue,ELLIOTT BAXTER & COMPANY LIMITED,170634
North East Lincolnshire Council,http://statistics.data.gov.uk/id/local-authority/00FC,Business Services,Strategic Business Support,Information Technology,Other Agencies,Oth Ext Serv General,PY01,17/12/2010,2991447,600.00,Revenue,SYSTEMATIC DESIGN & PRINT LTD,120970
North East Lincolnshire Council,http://statistics.data.gov.uk/id/local-authority/00FC,Business Services,Strategic Business Support,Information Technology,Equipment/Furniture/Materials,Off Equip Photocop Rent/Copies,HN71,22/12/2010,2994464,654.00,Revenue,UNITED CARLTON OFFICE SYSTEMS LTD,161525
North East Lincolnshire Council,http://statistics.data.gov.uk/id/local-authority/00FC,Business Services,Strategic Business Support,Information Technology,Other Agencies,Oth Ext Serv General,PY01,17/12/2010,2991445,"1,000.00",Revenue,SYSTEMATIC DESIGN & PRINT LTD,120970
North East Lincolnshire Council,http://statistics.data.gov.uk/id/local-authority/00FC,Business Services,Strategic Business Support,Information Technology,Equipment/Furniture/Materials,Equip Purchases,HC01,13/12/2010,2987661,"1,188.85",Revenue,ROTHERA & BRERETON LTD,43225
North East Lincolnshire Council,http://statistics.data.gov.uk/id/local-authority/00FC,Business Services,Strategic Business Support,Information Technology,Other Agencies,Oth Ext Serv General,PY01,31/12/2010,2996807,"1,375.00",Revenue,AR PRINTING LTD,14948
North East Lincolnshire Council,http://statistics.data.gov.uk/id/local-authority/00FC,Business Services,Strategic Business Support,Information Technology,Equipment/Furniture/Materials,Equip Repairs & Maintenance,HC31,17/12/2010,2991430,"2,893.99",Revenue,PRESSTEK EUROPE LTD,160299
North East Lincolnshire Council,http://statistics.data.gov.uk/id/local-authority/00FC,Business Services,Strategic Business Support,Information Technology,Other Agencies,Oth Ext Serv General,PY01,31/12/2010,2996452,"3,091.00",Revenue,DONCASTER METROPOLITAN BOROUGH COUNCIL,106834
North East Lincolnshire Council,http://statistics.data.gov.uk/id/local-authority/00FC,Business Services,Strategic Business Support,Information Technology,Equipment/Furniture/Materials,Equip Repairs & Maintenance,HC31,17/12/2010,2991427,"3,975.06",Revenue,PRESSTEK EUROPE LTD,160299
North East Lincolnshire Council,http://statistics.data.gov.uk/id/local-authority/00FC,Business Services,Strategic Business Support,Business Support (Sbs),Printing Station & Gen Off Exp,Postage Franking M/Chine Chrge,LE02,07/12/2010,2983885,"1,196.69",Revenue,ROYAL MAIL GROUP PLC,112918
North East Lincolnshire Council,http://statistics.data.gov.uk/id/local-authority/00FC,Business Services,Strategic Business Support,Business Support (Sbs),Printing Station & Gen Off Exp,Postage Franking M/Chine Chrge,LE02,31/12/2010,2996330,"1,576.00",Revenue,ROYAL MAIL GROUP PLC,112918
North East Lincolnshire Council,http://statistics.data.gov.uk/id/local-authority/00FC,Business Services,Strategic Business Support,Business Support (Sbs),Printing Station & Gen Off Exp,Postage Franking M/Chine Chrge,LE02,31/12/2010,2996328,"2,247.36",Revenue,ROYAL MAIL GROUP PLC,112918
North East Lincolnshire Council,http://statistics.data.gov.uk/id/local-authority/00FC,Business Services,Strategic Business Support,Business Support (Sbs),Printing Station & Gen Off Exp,Postage Franking M/Chine Chrge,LE02,21/12/2010,2992899,"2,626.97",Revenue,ROYAL MAIL GROUP PLC,112918
North East Lincolnshire Council,http://statistics.data.gov.uk/id/local-authority/00FC,Business Services,Strategic Business Support,Web Governance,Equipment/Furniture/Materials,Furniture Purchases,HA01,06/12/2010,2983270,598.00,Revenue,HARLEQUIN OFFICE FURNITURE,112825
North East Lincolnshire Council,http://statistics.data.gov.uk/id/local-authority/00FC,Business Services,Strategic Business Support,Web Governance,Miscellaneous Expenses,Other Expenses General,NZ01,06/12/2010,2983269,"1,950.00",Revenue,SOCITM LTD,78352
North East Lincolnshire Council,http://statistics.data.gov.uk/id/local-authority/00FC,Business Services,Strategic Business Support,Web Governance,Communication & Computing,Comp S/Ware Maintenance,HJ31,21/12/2010,2993640,"3,000.00",Revenue,SITEMORSE TECHNOLOGIES LTD,157959
North East Lincolnshire Council,http://statistics.data.gov.uk/id/local-authority/00FC,Business Services,Law & Democratic Services,Democratic Services,Printing Station & Gen Off Exp,Postages,LE01,13/12/2010,2987492,629.99,Revenue,ROYAL MAIL GROUP PLC,112918
North East Lincolnshire Council,http://statistics.data.gov.uk/id/local-authority/00FC,Business Services,Law & Democratic Services,Democratic Services,Communication & Computing,Comp S/Ware Licence Fees,HJ91,21/12/2010,2993513,"2,121.57",Revenue,HALAROSE LIMITED,170144
North East Lincolnshire Council,http://statistics.data.gov.uk/id/local-authority/00FC,Business Services,Law & Democratic Services,Town Hall,Miscellaneous Expenses,Misc Mayoral Badge,NZ18,31/12/2010,2996837,553.99,Revenue,THOMAS FATTORINI LTD,43304
North East Lincolnshire Council,http://statistics.data.gov.uk/id/local-authority/00FC,Business Services,Law & Democratic Services,Legal Services,Printing Station & Gen Off Exp,Print & Stat General,LA01,21/12/2010,2993469,-53.80,Revenue,LYRECO UK LIMITED,117289
North East Lincolnshire Council,http://statistics.data.gov.uk/id/local-authority/00FC,Business Services,Law & Democratic Services,Legal Services,Printing Station & Gen Off Exp,Books Etc Purchases,KC06,15/12/2010,2990097,"1,052.45",Revenue,LEXISNEXIS UK,150444
North East Lincolnshire Council,http://statistics.data.gov.uk/id/local-authority/00FC,Business Services,Law & Democratic Services,Legal Services,Direct Employee Expenses,Pay Employment Agency Staff,AA53,13/12/2010,2987446,800.00,Revenue,REDACTED PERSONAL DATA,REDACTED PERSONAL DATA
North East Lincolnshire Council,http://statistics.data.gov.uk/id/local-authority/00FC,Business Services,Law & Democratic Services,Legal Services,Direct Employee Expenses,Pay Employment Agency Staff,AA53,21/12/2010,2993576,800.00,Revenue,REDACTED PERSONAL DATA,REDACTED PERSONAL DATA
North East Lincolnshire Council,http://statistics.data.gov.uk/id/local-authority/00FC,Business Services,Law & Democratic Services,Legal Services,Direct Employee Expenses,Pay Employment Agency Staff,AA53,21/12/2010,2993574,800.00,Revenue,REDACTED PERSONAL DATA,REDACTED PERSONAL DATA
North East Lincolnshire Council,http://statistics.data.gov.uk/id/local-authority/00FC,Business Services,Law & Democratic Services,Legal Services,Direct Employee Expenses,Pay Employment Agency Staff,AA53,09/12/2010,2986290,800.00,Revenue,REDACTED PERSONAL DATA,REDACTED PERSONAL DATA
North East Lincolnshire Council,http://statistics.data.gov.uk/id/local-authority/00FC,Business Services,Law & Democratic Services,Legal Services,Direct Employee Expenses,Pay Employment Agency Staff,AA53,31/12/2010,2997462,800.00,Revenue,REDACTED PERSONAL DATA,REDACTED PERSONAL DATA
North East Lincolnshire Council,http://statistics.data.gov.uk/id/local-authority/00FC,Business Services,Law & Democratic Services,Legal Services,Direct Employee Expenses,Pay Employment Agency Staff,AA53,31/12/2010,2997463,984.00,Revenue,REDACTED PERSONAL DATA,REDACTED PERSONAL DATA
North East Lincolnshire Council,http://statistics.data.gov.uk/id/local-authority/00FC,Business Services,Law & Democratic Services,Legal Services,Direct Employee Expenses,Pay Employment Agency Staff,AA53,31/12/2010,2997465,"1,185.28",Revenue,BADENOCH & CLARK,147483
North East Lincolnshire Council,http://statistics.data.gov.uk/id/local-authority/00FC,Business Services,Law & Democratic Services,Legal Services,Direct Employee Expenses,Pay Employment Agency Staff,AA53,21/12/2010,2993479,"1,185.28",Revenue,BADENOCH & CLARK,147483
North East Lincolnshire Council,http://statistics.data.gov.uk/id/local-authority/00FC,Business Services,Law & Democratic Services,Legal Services,Direct Employee Expenses,Pay Employment Agency Staff,AA53,21/12/2010,2993583,"1,185.28",Revenue,BADENOCH & CLARK,147483
North East Lincolnshire Council,http://statistics.data.gov.uk/id/local-authority/00FC,Business Services,Law & Democratic Services,Legal Services,Direct Employee Expenses,Pay Employment Agency Staff,AA53,21/12/2010,2993477,"3,315.00",Revenue,HENRIQUES TRAINING LTD,161802
North East Lincolnshire Council,http://statistics.data.gov.uk/id/local-authority/00FC,Business Services,Law & Democratic Services,Legal Services,Direct Employee Expenses,Pay Employment Agency Staff,AA53,15/12/2010,2989735,"6,236.56",Revenue,AD LITEM LEGAL SERVICES,173702
North East Lincolnshire Council,http://statistics.data.gov.uk/id/local-authority/00FC,Business Services,Law & Democratic Services,Coroners,Other Agencies,Oth Ext Serv Post Mortems,PY12,31/12/2010,2996441,520.00,Revenue,NORTHERN LINCOLNSHIRE & GOOLE HOSPITALS,132777
North East Lincolnshire Council,http://statistics.data.gov.uk/id/local-authority/00FC,Business Services,Law & Democratic Services,Coroners,Other Agencies,Oth Ext Serv Post Mortems,PY12,22/12/2010,2994450,677.60,Revenue,REDACTED PERSONAL DATA,REDACTED PERSONAL DATA
North East Lincolnshire Council,http://statistics.data.gov.uk/id/local-authority/00FC,Business Services,Law & Democratic Services,Coroners,Other Agencies,Oth Ext Serv Post Mortems,PY12,21/12/2010,2993492,728.00,Revenue,NORTHERN LINCOLNSHIRE & GOOLE HOSPITALS,132777
North East Lincolnshire Council,http://statistics.data.gov.uk/id/local-authority/00FC,Business Services,Law & Democratic Services,Coroners,Other Agencies,Oth Ext Serv Post Mortems,PY12,21/12/2010,2993487,"4,271.00",Revenue,NORTHERN LINCOLNSHIRE & GOOLE HOSPITALS,132777
North East Lincolnshire Council,http://statistics.data.gov.uk/id/local-authority/00FC,Business Services,Law & Democratic Services,Coroners,Other Agencies,Oth Ext Serv Post Mortems,PY12,21/12/2010,2993490,"4,914.00",Revenue,NORTHERN LINCOLNSHIRE & GOOLE HOSPITALS,132777
North East Lincolnshire Council,http://statistics.data.gov.uk/id/local-authority/00FC,Business Services,Law & Democratic Services,Coroners,Other Agencies,Oth Ext Serv Lpsa Paymnt,PY16,21/12/2010,2993489,"5,967.00",Revenue,NORTHERN LINCOLNSHIRE & GOOLE HOSPITALS,132777
North East Lincolnshire Council,http://statistics.data.gov.uk/id/local-authority/00FC,Chief Executive,Chief Executive,Chief Exec & Support,Expenses,Trav/Subs Off Other Offic Duty,MA05,20/12/2010,2991934,-167.60,Revenue,NYS CORPORATE,177749
North East Lincolnshire Council,http://statistics.data.gov.uk/id/local-authority/00FC,Chief Executive,Chief Executive,Chief Exec & Support,Printing Station & Gen Off Exp,Print & Stat General,LA01,21/12/2010,2993452,"1,239.04",Revenue,LYRECO UK LIMITED,117289
North East Lincolnshire Council,http://statistics.data.gov.uk/id/local-authority/00FC,Chief Executive,Chief Executive,Chief Exec & Support,Miscellaneous Expenses,Other Expenses General,NZ01,14/12/2010,2988715,500.00,Revenue,GRIMSBY MINSTER,181265
North East Lincolnshire Council,http://statistics.data.gov.uk/id/local-authority/00FC,Chief Executive,Chief Executive,Chief Exec & Support,Miscellaneous Expenses,Other Expenses General,NZ01,21/12/2010,2993445,891.00,Revenue,LOCAL GOVERNMENT YORKSHIRE & HUMBER,163886
North East Lincolnshire Council,http://statistics.data.gov.uk/id/local-authority/00FC,Chief Executive,Chief Executive,Chief Exec & Support,Miscellaneous Expenses,Hospitality,MJ01,09/12/2010,2986357,"1,090.00",Revenue,VALLIN CATERING,2522
North East Lincolnshire Council,http://statistics.data.gov.uk/id/local-authority/00FC,Chief Executive,Chief Executive,Chief Exec & Support,Miscellaneous Expenses,Other Expenses General,NZ01,14/12/2010,2988719,"1,000.00",Revenue,HUMBERSTON C OF E PRIMARY SCHOOL,181267
North East Lincolnshire Council,http://statistics.data.gov.uk/id/local-authority/00FC,Chief Executive,Chief Executive,Recharges To Corp Management,Other Agencies,Audit Commission Fees,PA01,13/12/2010,2987371,807.50,Revenue,AUDIT COMMISSION,177
North East Lincolnshire Council,http://statistics.data.gov.uk/id/local-authority/00FC,Chief Executive,Chief Executive,Recharges To Corp Management,Other Agencies,Audit Commission Fees,PA01,13/12/2010,2987371,935.00,Revenue,AUDIT COMMISSION,177
North East Lincolnshire Council,http://statistics.data.gov.uk/id/local-authority/00FC,Chief Executive,Chief Executive,Recharges To Corp Management,Other Agencies,Audit Commission Fees,PA01,06/12/2010,2983266,"1,825.00",Revenue,AUDIT COMMISSION,177
North East Lincolnshire Council,http://statistics.data.gov.uk/id/local-authority/00FC,Chief Executive,Chief Executive,Recharges To Corp Management,Other Agencies,Audit Commission Fees,PA01,13/12/2010,2987371,"2,507.50",Revenue,AUDIT COMMISSION,177
North East Lincolnshire Council,http://statistics.data.gov.uk/id/local-authority/00FC,Chief Executive,Chief Executive,Recharges To Corp Management,Other Agencies,Audit Commission Fees,PA01,13/12/2010,2987371,"24,383.00",Revenue,AUDIT COMMISSION,177
North East Lincolnshire Council,http://statistics.data.gov.uk/id/local-authority/00FC,Children & Family Services,Commissioning Pships & Perform,Commissioning & Performance,Equipment/Furniture/Materials,Off Equip Photocop Rent/Copies,HN71,07/12/2010,2983852,800.95,Revenue,UNITED CARLTON OFFICE SYSTEMS LTD,161525
North East Lincolnshire Council,http://statistics.data.gov.uk/id/local-authority/00FC,Children & Family Services,Commissioning Pships & Perform,Commissioning & Performance,Printing Station & Gen Off Exp,Print & Stat General,LA01,13/12/2010,2987872,827.41,Revenue,UNITED CARLTON OFFICE SYSTEMS LTD,161525
North East Lincolnshire Council,http://statistics.data.gov.uk/id/local-authority/00FC,Children & Family Services,Commissioning Pships & Perform,Commissioning & Performance,Printing Station & Gen Off Exp,Postages,LE01,16/12/2010,2991189,912.00,Revenue,NEOPOST FINANCE LIMITED,110788
North East Lincolnshire Council,http://statistics.data.gov.uk/id/local-authority/00FC,Children & Family Services,Commissioning Pships & Perform,Commissioning & Performance,Consultants,Consult Work Technical Adv,PG02,06/12/2010,2983272,"2,000.00",Revenue,REDACTED PERSONAL DATA,REDACTED PERSONAL DATA
North East Lincolnshire Council,http://statistics.data.gov.uk/id/local-authority/00FC,Children & Family Services,Commissioning Pships & Perform,Commissioning & Performance,Printing Station & Gen Off Exp,Postage Franking M/Chine Chrge,LE02,08/12/2010,2985524,"10,000.00",Revenue,NEOPOST LTD CREDIFON RCB ACCOUNT,143223
North East Lincolnshire Council,http://statistics.data.gov.uk/id/local-authority/00FC,Children & Family Services,Commissioning Pships & Perform,Commissioning & Performance,Catering,Purchase School Meals,KH01,17/12/2010,2991590,REDACTED COMMERCIALLY SENSITIVE INFORMATION,Revenue,CYGNET FOODS,153360
North East Lincolnshire Council,http://statistics.data.gov.uk/id/local-authority/00FC,Children & Family Services,Commissioning Pships & Perform,Commissioning & Performance,Catering,Provisions Milk,KG02,22/12/2010,2995289,"7,858.27",Revenue,DAIRY CREST LTD,164121
North East Lincolnshire Council,http://statistics.data.gov.uk/id/local-authority/00FC,Children & Family Services,Commissioning Pships & Perform,Commissioning & Performance,Catering,Purchase School Meals,KH01,15/12/2010,2990254,REDACTED COMMERCIALLY SENSITIVE INFORMATION,Revenue,CYGNET FOODS,153360
North East Lincolnshire Council,http://statistics.data.gov.uk/id/local-authority/00FC,Children & Family Services,Commissioning Pships & Perform,Commissioning & Performance,Catering,Purchase School Meals,KH01,15/12/2010,2990256,REDACTED COMMERCIALLY SENSITIVE INFORMATION,Revenue,CYGNET FOODS,153360
North East Lincolnshire Council,http://statistics.data.gov.uk/id/local-authority/00FC,Children & Family Services,Commissioning Pships & Perform,School Access Govrn Stdnt Serv,Grants & Subscriptions,Subscriptions General,MH01,16/12/2010,2991162,595.00,Revenue,INFORMA UK LIMITED,138094
North East Lincolnshire Council,http://statistics.data.gov.uk/id/local-authority/00FC,Children & Family Services,Commissioning Pships & Perform,School Access Govrn Stdnt Serv,Printing Station & Gen Off Exp,Print & Stat General,LA01,31/12/2010,2997493,574.23,Revenue,LYRECO UK LIMITED,117289
North East Lincolnshire Council,http://statistics.data.gov.uk/id/local-authority/00FC,Children & Family Services,Commissioning Pships & Perform,School Access Govrn Stdnt Serv,Contract Hire/Operating Leases,Cont Veh Sen School,GN08,31/12/2010,2996372,REDACTED COMMERCIALLY SENSITIVE INFORMATION,Revenue,REVELLS TAXIS (ED/SOC SERV),2045
North East Lincolnshire Council,http://statistics.data.gov.uk/id/local-authority/00FC,Children & Family Services,Commissioning Pships & Perform,School Access Govrn Stdnt Serv,Contract Hire/Operating Leases,Cont Veh Sen School,GN08,20/12/2010,2992744,REDACTED COMMERCIALLY SENSITIVE INFORMATION,Revenue,WHEELCHAIR FRIENDLY TAXI SERVICE,168857
North East Lincolnshire Council,http://statistics.data.gov.uk/id/local-authority/00FC,Children & Family Services,Commissioning Pships & Perform,School Access Govrn Stdnt Serv,Contract Hire/Operating Leases,Cont Veh Sen School,GN08,14/12/2010,2988727,REDACTED COMMERCIALLY SENSITIVE INFORMATION,Revenue,COUNTRY CABS,170676
North East Lincolnshire Council,http://statistics.data.gov.uk/id/local-authority/00FC,Children & Family Services,Commissioning Pships & Perform,School Access Govrn Stdnt Serv,Contract Hire/Operating Leases,Cont Veh Sen School,GN08,16/12/2010,2991100,REDACTED COMMERCIALLY SENSITIVE INFORMATION,Revenue,LINKS TAXIS,1524
North East Lincolnshire Council,http://statistics.data.gov.uk/id/local-authority/00FC,Children & Family Services,Commissioning Pships & Perform,School Access Govrn Stdnt Serv,Contract Hire/Operating Leases,Cont Veh Sen School,GN08,16/12/2010,2990932,REDACTED COMMERCIALLY SENSITIVE INFORMATION,Revenue,REVELLS TAXIS (ED/SOC SERV),2045
North East Lincolnshire Council,http://statistics.data.gov.uk/id/local-authority/00FC,Children & Family Services,Commissioning Pships & Perform,School Access Govrn Stdnt Serv,Contract Hire/Operating Leases,Cont Veh Sen School,GN08,16/12/2010,2990889,REDACTED COMMERCIALLY SENSITIVE INFORMATION,Revenue,MINICABS CLEETHORPES (LINCS) LTD,172873
North East Lincolnshire Council,http://statistics.data.gov.uk/id/local-authority/00FC,Children & Family Services,Commissioning Pships & Perform,School Access Govrn Stdnt Serv,Contract Hire/Operating Leases,Cont Veh Sen School,GN08,16/12/2010,2990959,REDACTED COMMERCIALLY SENSITIVE INFORMATION,Revenue,LINKS TAXIS,1524
North East Lincolnshire Council,http://statistics.data.gov.uk/id/local-authority/00FC,Children & Family Services,Commissioning Pships & Perform,School Access Govrn Stdnt Serv,Contract Hire/Operating Leases,Cont Veh Sen School,GN08,14/12/2010,2988862,REDACTED COMMERCIALLY SENSITIVE INFORMATION,Revenue,MINICABS CLEETHORPES (LINCS) LTD,172873
North East Lincolnshire Council,http://statistics.data.gov.uk/id/local-authority/00FC,Children & Family Services,Commissioning Pships & Perform,School Access Govrn Stdnt Serv,Contract Hire/Operating Leases,Cont Veh Sen School,GN08,16/12/2010,2990947,REDACTED COMMERCIALLY SENSITIVE INFORMATION,Revenue,LINKS TAXIS,1524
North East Lincolnshire Council,http://statistics.data.gov.uk/id/local-authority/00FC,Children & Family Services,Commissioning Pships & Perform,School Access Govrn Stdnt Serv,Contract Hire/Operating Leases,Cont Veh Sen School,GN08,03/12/2010,2983168,REDACTED COMMERCIALLY SENSITIVE INFORMATION,Revenue,AA RADIO CARS LTD,131207
North East Lincolnshire Council,http://statistics.data.gov.uk/id/local-authority/00FC,Children & Family Services,Commissioning Pships & Perform,School Access Govrn Stdnt Serv,Contract Hire/Operating Leases,Cont Veh Sen School,GN08,16/12/2010,2990960,REDACTED COMMERCIALLY SENSITIVE INFORMATION,Revenue,LINKS TAXIS,1524
North East Lincolnshire Council,http://statistics.data.gov.uk/id/local-authority/00FC,Children & Family Services,Commissioning Pships & Perform,School Access Govrn Stdnt Serv,Contract Hire/Operating Leases,Cont Veh Sen School,GN08,16/12/2010,2990888,REDACTED COMMERCIALLY SENSITIVE INFORMATION,Revenue,MINICABS CLEETHORPES (LINCS) LTD,172873
North East Lincolnshire Council,http://statistics.data.gov.uk/id/local-authority/00FC,Children & Family Services,Commissioning Pships & Perform,School Access Govrn Stdnt Serv,Contract Hire/Operating Leases,Cont Veh Sen School,GN08,31/12/2010,2996292,REDACTED COMMERCIALLY SENSITIVE INFORMATION,Revenue,MINICABS CLEETHORPES (LINCS) LTD,172873
North East Lincolnshire Council,http://statistics.data.gov.uk/id/local-authority/00FC,Children & Family Services,Commissioning Pships & Perform,School Access Govrn Stdnt Serv,Contract Hire/Operating Leases,Cont Veh Sen School,GN08,31/12/2010,2996383,REDACTED COMMERCIALLY SENSITIVE INFORMATION,Revenue,AA RADIO CARS LTD,131207
North East Lincolnshire Council,http://statistics.data.gov.uk/id/local-authority/00FC,Children & Family Services,Commissioning Pships & Perform,School Access Govrn Stdnt Serv,Contract Hire/Operating Leases,Cont Veh Sen School,GN08,16/12/2010,2990949,REDACTED COMMERCIALLY SENSITIVE INFORMATION,Revenue,LINKS TAXIS,1524
North East Lincolnshire Council,http://statistics.data.gov.uk/id/local-authority/00FC,Children & Family Services,Commissioning Pships & Perform,School Access Govrn Stdnt Serv,Contract Hire/Operating Leases,Cont Veh Sen School,GN08,14/12/2010,2988861,REDACTED COMMERCIALLY SENSITIVE INFORMATION,Revenue,MINICABS CLEETHORPES (LINCS) LTD,172873
North East Lincolnshire Council,http://statistics.data.gov.uk/id/local-authority/00FC,Children & Family Services,Commissioning Pships & Perform,School Access Govrn Stdnt Serv,Contract Hire/Operating Leases,Cont Veh Sen School,GN08,20/12/2010,2992683,REDACTED COMMERCIALLY SENSITIVE INFORMATION,Revenue,AMVALE LIMITED,106463
North East Lincolnshire Council,http://statistics.data.gov.uk/id/local-authority/00FC,Children & Family Services,Commissioning Pships & Perform,School Access Govrn Stdnt Serv,Contract Hire/Operating Leases,Cont Vehicle Disaffected,GN16,16/12/2010,2990931,REDACTED COMMERCIALLY SENSITIVE INFORMATION,Revenue,LINKS TAXIS,1524
North East Lincolnshire Council,http://statistics.data.gov.uk/id/local-authority/00FC,Children & Family Services,Commissioning Pships & Perform,School Access Govrn Stdnt Serv,Private Contractors,Concessionary Fares,PK01,31/12/2010,2996401,REDACTED COMMERCIALLY SENSITIVE INFORMATION,Revenue,MINICABS CLEETHORPES (LINCS) LTD,172873
North East Lincolnshire Council,http://statistics.data.gov.uk/id/local-authority/00FC,Children & Family Services,Commissioning Pships & Perform,School Access Govrn Stdnt Serv,Private Contractors,Concessionary Fares,PK01,31/12/2010,2996362,REDACTED COMMERCIALLY SENSITIVE INFORMATION,Revenue,STAGECOACH SERVICES,146590
North East Lincolnshire Council,http://statistics.data.gov.uk/id/local-authority/00FC,Children & Family Services,Commissioning Pships & Perform,School Access Govrn Stdnt Serv,Contract Hire/Operating Leases,Cont Vehicle Cont Vehicle,GN09,14/12/2010,2988856,REDACTED COMMERCIALLY SENSITIVE INFORMATION,Revenue,MINICABS CLEETHORPES (LINCS) LTD,172873
North East Lincolnshire Council,http://statistics.data.gov.uk/id/local-authority/00FC,Children & Family Services,Commissioning Pships & Perform,School Access Govrn Stdnt Serv,Contract Hire/Operating Leases,Cont Vehicle Cont Vehicle,GN09,16/12/2010,2990921,REDACTED COMMERCIALLY SENSITIVE INFORMATION,Revenue,LINKS TAXIS,1524
North East Lincolnshire Council,http://statistics.data.gov.uk/id/local-authority/00FC,Children & Family Services,Commissioning Pships & Perform,School Access Govrn Stdnt Serv,Contract Hire/Operating Leases,Cont Vehicle Cont Vehicle,GN09,16/12/2010,2990933,REDACTED COMMERCIALLY SENSITIVE INFORMATION,Revenue,REVELLS TAXIS (ED/SOC SERV),2045
North East Lincolnshire Council,http://statistics.data.gov.uk/id/local-authority/00FC,Children & Family Services,Commissioning Pships & Perform,School Access Govrn Stdnt Serv,Contract Hire/Operating Leases,Cont Vehicle Hire Tspt Other,GN06,14/12/2010,2988854,REDACTED COMMERCIALLY SENSITIVE INFORMATION,Revenue,MINICABS CLEETHORPES (LINCS) LTD,172873
North East Lincolnshire Council,http://statistics.data.gov.uk/id/local-authority/00FC,Children & Family Services,Commissioning Pships & Perform,School Access Govrn Stdnt Serv,Contract Hire/Operating Leases,Cont Vehicle Fares Refunded,GN03,16/12/2010,2990906,560.61,Revenue,REDACTED PERSONAL DATA,REDACTED PERSONAL DATA
North East Lincolnshire Council,http://statistics.data.gov.uk/id/local-authority/00FC,Children & Family Services,Commissioning Pships & Perform,School Access Govrn Stdnt Serv,Contract Hire/Operating Leases,Cont Vehicle Hire Tspt Swim,GN04,20/12/2010,2992672,REDACTED COMMERCIALLY SENSITIVE INFORMATION,Revenue,AMVALE LIMITED,106463
North East Lincolnshire Council,http://statistics.data.gov.uk/id/local-authority/00FC,Children & Family Services,Commissioning Pships & Perform,School Access Govrn Stdnt Serv,Contract Hire/Operating Leases,Cont Vehicle Cont Vehicle,GN09,14/12/2010,2988732,REDACTED COMMERCIALLY SENSITIVE INFORMATION,Revenue,THE BUS RUN,155905
North East Lincolnshire Council,http://statistics.data.gov.uk/id/local-authority/00FC,Children & Family Services,Commissioning Pships & Perform,School Access Govrn Stdnt Serv,Contract Hire/Operating Leases,Cont Vehicle Cont Vehicle,GN09,20/12/2010,2992686,REDACTED COMMERCIALLY SENSITIVE INFORMATION,Revenue,AMVALE LIMITED,106463
North East Lincolnshire Council,http://statistics.data.gov.uk/id/local-authority/00FC,Children & Family Services,Commissioning Pships & Perform,School Access Govrn Stdnt Serv,Contract Hire/Operating Leases,Cont Vehicle Cont Vehicle,GN09,14/12/2010,2988712,REDACTED COMMERCIALLY SENSITIVE INFORMATION,Revenue,HUXMANOR LTD,150193
North East Lincolnshire Council,http://statistics.data.gov.uk/id/local-authority/00FC,Children & Family Services,Commissioning Pships & Perform,School Access Govrn Stdnt Serv,Contract Hire/Operating Leases,Cont Vehicle Cont Vehicle,GN09,20/12/2010,2992627,REDACTED COMMERCIALLY SENSITIVE INFORMATION,Revenue,REDACTED PERSONAL DATA,REDACTED PERSONAL DATA
North East Lincolnshire Council,http://statistics.data.gov.uk/id/local-authority/00FC,Children & Family Services,Commissioning Pships & Perform,School Access Govrn Stdnt Serv,Contract Hire/Operating Leases,Cont Vehicle Cont Vehicle,GN09,20/12/2010,2992636,REDACTED COMMERCIALLY SENSITIVE INFORMATION,Revenue,REDACTED PERSONAL DATA,REDACTED PERSONAL DATA
North East Lincolnshire Council,http://statistics.data.gov.uk/id/local-authority/00FC,Children & Family Services,Commissioning Pships & Perform,School Access Govrn Stdnt Serv,Contract Hire/Operating Leases,Cont Vehicle Cont Vehicle,GN09,20/12/2010,2992726,REDACTED COMMERCIALLY SENSITIVE INFORMATION,Revenue,E M EMMERSON,4355
North East Lincolnshire Council,http://statistics.data.gov.uk/id/local-authority/00FC,Children & Family Services,Commissioning Pships & Perform,School Access Govrn Stdnt Serv,Private Contractors,Concessionary Fare Scheme Cost,PK02,31/12/2010,2996362,REDACTED COMMERCIALLY SENSITIVE INFORMATION,Revenue,STAGECOACH SERVICES,146590
North East Lincolnshire Council,http://statistics.data.gov.uk/id/local-authority/00FC,Children & Family Services,Commissioning Pships & Perform,School Access Govrn Stdnt Serv,Private Contractors,Pass Upgrade,PK03,31/12/2010,2996362,REDACTED COMMERCIALLY SENSITIVE INFORMATION,Revenue,STAGECOACH SERVICES,146590
North East Lincolnshire Council,http://statistics.data.gov.uk/id/local-authority/00FC,Children & Family Services,Commissioning Pships & Perform,School Access Govrn Stdnt Serv,Contract Hire/Operating Leases,Cont Vehicle Cont Vehicle,GN09,20/12/2010,2992593,REDACTED COMMERCIALLY SENSITIVE INFORMATION,Revenue,SHERWOOD TRAVEL,75983
North East Lincolnshire Council,http://statistics.data.gov.uk/id/local-authority/00FC,Children & Family Services,Commissioning Pships & Perform,School Access Govrn Stdnt Serv,Contract Hire/Operating Leases,Cont Vehicle Cont Vehicle,GN09,14/12/2010,2988734,REDACTED COMMERCIALLY SENSITIVE INFORMATION,Revenue,E M EMMERSON,4355
North East Lincolnshire Council,http://statistics.data.gov.uk/id/local-authority/00FC,Children & Family Services,Commissioning Pships & Perform,School Access Govrn Stdnt Serv,Contract Hire/Operating Leases,Cont Vehicle Cont Vehicle,GN09,14/12/2010,2988729,REDACTED COMMERCIALLY SENSITIVE INFORMATION,Revenue,MILLMAN COACHES,41357
North East Lincolnshire Council,http://statistics.data.gov.uk/id/local-authority/00FC,Children & Family Services,Commissioning Pships & Perform,School Access Govrn Stdnt Serv,Contract Hire/Operating Leases,Cont Veh Sen School,GN08,14/12/2010,2988728,REDACTED COMMERCIALLY SENSITIVE INFORMATION,Revenue,MILLMAN COACHES,41357
North East Lincolnshire Council,http://statistics.data.gov.uk/id/local-authority/00FC,Children & Family Services,Commissioning Pships & Perform,School Access Govrn Stdnt Serv,Contract Hire/Operating Leases,Cont Veh Sen School,GN08,16/12/2010,2990930,REDACTED COMMERCIALLY SENSITIVE INFORMATION,Revenue,LINKS TAXIS,1524
North East Lincolnshire Council,http://statistics.data.gov.uk/id/local-authority/00FC,Children & Family Services,Commissioning Pships & Perform,School Access Govrn Stdnt Serv,Contract Hire/Operating Leases,Cont Veh Sen School,GN08,16/12/2010,2991102,REDACTED COMMERCIALLY SENSITIVE INFORMATION,Revenue,LINKS TAXIS,1524
North East Lincolnshire Council,http://statistics.data.gov.uk/id/local-authority/00FC,Children & Family Services,Commissioning Pships & Perform,School Access Govrn Stdnt Serv,Contract Hire/Operating Leases,Cont Veh Sen School,GN08,31/12/2010,2996394,REDACTED COMMERCIALLY SENSITIVE INFORMATION,Revenue,MINICABS CLEETHORPES (LINCS) LTD,172873
North East Lincolnshire Council,http://statistics.data.gov.uk/id/local-authority/00FC,Children & Family Services,Commissioning Pships & Perform,School Access Govrn Stdnt Serv,Contract Hire/Operating Leases,Cont Veh Sen School,GN08,20/12/2010,2992648,REDACTED COMMERCIALLY SENSITIVE INFORMATION,Revenue,REVELLS TAXIS (ED/SOC SERV),2045
North East Lincolnshire Council,http://statistics.data.gov.uk/id/local-authority/00FC,Children & Family Services,Commissioning Pships & Perform,School Access Govrn Stdnt Serv,Contract Hire/Operating Leases,Cont Vehicle Disaffected,GN16,20/12/2010,2992713,REDACTED COMMERCIALLY SENSITIVE INFORMATION,Revenue,MINICABS CLEETHORPES (LINCS) LTD,172873
North East Lincolnshire Council,http://statistics.data.gov.uk/id/local-authority/00FC,Children & Family Services,Commissioning Pships & Perform,School Access Govrn Stdnt Serv,Contract Hire/Operating Leases,Cont Veh Sen School,GN08,31/12/2010,2996381,REDACTED COMMERCIALLY SENSITIVE INFORMATION,Revenue,AA RADIO CARS LTD,131207
North East Lincolnshire Council,http://statistics.data.gov.uk/id/local-authority/00FC,Children & Family Services,Commissioning Pships & Perform,School Access Govrn Stdnt Serv,Contract Hire/Operating Leases,Cont Veh Sen School,GN08,31/12/2010,2996378,REDACTED COMMERCIALLY SENSITIVE INFORMATION,Revenue,LINKS TAXIS,1524
North East Lincolnshire Council,http://statistics.data.gov.uk/id/local-authority/00FC,Children & Family Services,Commissioning Pships & Perform,School Access Govrn Stdnt Serv,Contract Hire/Operating Leases,Cont Veh Sen School,GN08,20/12/2010,2992738,REDACTED COMMERCIALLY SENSITIVE INFORMATION,Revenue,WHEELCHAIR FRIENDLY TAXI SERVICE,168857
North East Lincolnshire Council,http://statistics.data.gov.uk/id/local-authority/00FC,Children & Family Services,Commissioning Pships & Perform,School Access Govrn Stdnt Serv,Contract Hire/Operating Leases,Cont Vehicle Disaffected,GN16,16/12/2010,2990950,REDACTED COMMERCIALLY SENSITIVE INFORMATION,Revenue,LINKS TAXIS,1524
North East Lincolnshire Council,http://statistics.data.gov.uk/id/local-authority/00FC,Children & Family Services,Commissioning Pships & Perform,School Access Govrn Stdnt Serv,Contract Hire/Operating Leases,Cont Veh Sen School,GN08,16/12/2010,2990950,REDACTED COMMERCIALLY SENSITIVE INFORMATION,Revenue,LINKS TAXIS,1524
North East Lincolnshire Council,http://statistics.data.gov.uk/id/local-authority/00FC,Children & Family Services,Commissioning Pships & Perform,School Access Govrn Stdnt Serv,Contract Hire/Operating Leases,Cont Veh Sen School,GN08,31/12/2010,2996402,REDACTED COMMERCIALLY SENSITIVE INFORMATION,Revenue,MINICABS CLEETHORPES (LINCS) LTD,172873
North East Lincolnshire Council,http://statistics.data.gov.uk/id/local-authority/00FC,Children & Family Services,Commissioning Pships & Perform,School Access Govrn Stdnt Serv,Contract Hire/Operating Leases,Cont Veh Sen School,GN08,16/12/2010,2990925,REDACTED COMMERCIALLY SENSITIVE INFORMATION,Revenue,LINKS TAXIS,1524
North East Lincolnshire Council,http://statistics.data.gov.uk/id/local-authority/00FC,Children & Family Services,Commissioning Pships & Perform,School Access Govrn Stdnt Serv,Contract Hire/Operating Leases,Cont Veh Sen School,GN08,14/12/2010,2988736,REDACTED COMMERCIALLY SENSITIVE INFORMATION,Revenue,MINICABS CLEETHORPES (LINCS) LTD,172873
North East Lincolnshire Council,http://statistics.data.gov.uk/id/local-authority/00FC,Children & Family Services,Commissioning Pships & Perform,School Access Govrn Stdnt Serv,Contract Hire/Operating Leases,Cont Vehicle Disaffected,GN16,31/12/2010,2996401,REDACTED COMMERCIALLY SENSITIVE INFORMATION,Revenue,MINICABS CLEETHORPES (LINCS) LTD,172873
North East Lincolnshire Council,http://statistics.data.gov.uk/id/local-authority/00FC,Children & Family Services,Commissioning Pships & Perform,School Access Govrn Stdnt Serv,Contract Hire/Operating Leases,Cont Veh Sen School,GN08,16/12/2010,2991150,REDACTED COMMERCIALLY SENSITIVE INFORMATION,Revenue,LINKS TAXIS,1524
North East Lincolnshire Council,http://statistics.data.gov.uk/id/local-authority/00FC,Children & Family Services,Commissioning Pships & Perform,School Access Govrn Stdnt Serv,Contract Hire/Operating Leases,Cont Veh Sen School,GN08,16/12/2010,2991141,REDACTED COMMERCIALLY SENSITIVE INFORMATION,Revenue,LINKS TAXIS,1524
North East Lincolnshire Council,http://statistics.data.gov.uk/id/local-authority/00FC,Children & Family Services,Commissioning Pships & Perform,School Access Govrn Stdnt Serv,Contract Hire/Operating Leases,Cont Veh Sen School,GN08,31/12/2010,2996293,REDACTED COMMERCIALLY SENSITIVE INFORMATION,Revenue,MINICABS CLEETHORPES (LINCS) LTD,172873
North East Lincolnshire Council,http://statistics.data.gov.uk/id/local-authority/00FC,Children & Family Services,Commissioning Pships & Perform,School Access Govrn Stdnt Serv,Contract Hire/Operating Leases,Cont Veh Sen School,GN08,16/12/2010,2991140,REDACTED COMMERCIALLY SENSITIVE INFORMATION,Revenue,LINKS TAXIS,1524
North East Lincolnshire Council,http://statistics.data.gov.uk/id/local-authority/00FC,Children & Family Services,Commissioning Pships & Perform,School Access Govrn Stdnt Serv,Contract Hire/Operating Leases,Cont Veh Sen School,GN08,16/12/2010,2990920,REDACTED COMMERCIALLY SENSITIVE INFORMATION,Revenue,LINKS TAXIS,1524
North East Lincolnshire Council,http://statistics.data.gov.uk/id/local-authority/00FC,Children & Family Services,Commissioning Pships & Perform,School Access Govrn Stdnt Serv,Contract Hire/Operating Leases,Cont Veh Sen School,GN08,14/12/2010,2988735,REDACTED COMMERCIALLY SENSITIVE INFORMATION,Revenue,MINICABS CLEETHORPES (LINCS) LTD,172873
North East Lincolnshire Council,http://statistics.data.gov.uk/id/local-authority/00FC,Children & Family Services,Commissioning Pships & Perform,School Access Govrn Stdnt Serv,Contract Hire/Operating Leases,Cont Veh Sen School,GN08,16/12/2010,2991144,REDACTED COMMERCIALLY SENSITIVE INFORMATION,Revenue,LINKS TAXIS,1524
North East Lincolnshire Council,http://statistics.data.gov.uk/id/local-authority/00FC,Children & Family Services,Commissioning Pships & Perform,School Access Govrn Stdnt Serv,Contract Hire/Operating Leases,Cont Veh Sen School,GN08,16/12/2010,2991149,REDACTED COMMERCIALLY SENSITIVE INFORMATION,Revenue,LINKS TAXIS,1524
North East Lincolnshire Council,http://statistics.data.gov.uk/id/local-authority/00FC,Children & Family Services,Commissioning Pships & Perform,School Access Govrn Stdnt Serv,Contract Hire/Operating Leases,Cont Veh Sen School,GN08,31/12/2010,2996366,REDACTED COMMERCIALLY SENSITIVE INFORMATION,Revenue,REVELLS TAXIS (ED/SOC SERV),2045
North East Lincolnshire Council,http://statistics.data.gov.uk/id/local-authority/00FC,Children & Family Services,Commissioning Pships & Perform,School Access Govrn Stdnt Serv,Private Contractors,Concessionary Fares,PK01,31/12/2010,2996366,REDACTED COMMERCIALLY SENSITIVE INFORMATION,Revenue,REVELLS TAXIS (ED/SOC SERV),2045
North East Lincolnshire Council,http://statistics.data.gov.uk/id/local-authority/00FC,Children & Family Services,Commissioning Pships & Perform,School Access Govrn Stdnt Serv,Private Contractors,Concessionary Fares,PK01,16/12/2010,2991138,REDACTED COMMERCIALLY SENSITIVE INFORMATION,Revenue,LINKS TAXIS,1524
North East Lincolnshire Council,http://statistics.data.gov.uk/id/local-authority/00FC,Children & Family Services,Commissioning Pships & Perform,School Access Govrn Stdnt Serv,Contract Hire/Operating Leases,Cont Vehicle Sen Alone Travel,GN13,16/12/2010,2990958,REDACTED COMMERCIALLY SENSITIVE INFORMATION,Revenue,LINKS TAXIS,1524
North East Lincolnshire Council,http://statistics.data.gov.uk/id/local-authority/00FC,Children & Family Services,Commissioning Pships & Perform,School Access Govrn Stdnt Serv,Contract Hire/Operating Leases,Cont Veh Sen School,GN08,16/12/2010,2991148,REDACTED COMMERCIALLY SENSITIVE INFORMATION,Revenue,LINKS TAXIS,1524
North East Lincolnshire Council,http://statistics.data.gov.uk/id/local-authority/00FC,Children & Family Services,Commissioning Pships & Perform,School Access Govrn Stdnt Serv,Contract Hire/Operating Leases,Cont Veh Sen School,GN08,20/12/2010,2992613,REDACTED COMMERCIALLY SENSITIVE INFORMATION,Revenue,LINKS TAXIS,1524
North East Lincolnshire Council,http://statistics.data.gov.uk/id/local-authority/00FC,Children & Family Services,Commissioning Pships & Perform,School Access Govrn Stdnt Serv,Contract Hire/Operating Leases,Cont Veh Sen School,GN08,16/12/2010,2990922,REDACTED COMMERCIALLY SENSITIVE INFORMATION,Revenue,LINKS TAXIS,1524
North East Lincolnshire Council,http://statistics.data.gov.uk/id/local-authority/00FC,Children & Family Services,Commissioning Pships & Perform,School Access Govrn Stdnt Serv,Contract Hire/Operating Leases,Cont Veh Sen School,GN08,16/12/2010,2990937,REDACTED COMMERCIALLY SENSITIVE INFORMATION,Revenue,REVELLS TAXIS (ED/SOC SERV),2045
North East Lincolnshire Council,http://statistics.data.gov.uk/id/local-authority/00FC,Children & Family Services,Commissioning Pships & Perform,School Access Govrn Stdnt Serv,Contract Hire/Operating Leases,Cont Vehicle Disaffected,GN16,16/12/2010,2991104,REDACTED COMMERCIALLY SENSITIVE INFORMATION,Revenue,LINKS TAXIS,1524
North East Lincolnshire Council,http://statistics.data.gov.uk/id/local-authority/00FC,Children & Family Services,Commissioning Pships & Perform,School Access Govrn Stdnt Serv,Direct Transport Costs,Hired Transport Hire Vehicle,GA01,14/12/2010,2988720,REDACTED COMMERCIALLY SENSITIVE INFORMATION,Revenue,AMVALE LIMITED,106463
North East Lincolnshire Council,http://statistics.data.gov.uk/id/local-authority/00FC,Children & Family Services,Commissioning Pships & Perform,School Access Govrn Stdnt Serv,Direct Transport Costs,Hired Transport Hire Vehicle,GA01,14/12/2010,2988718,REDACTED COMMERCIALLY SENSITIVE INFORMATION,Revenue,AMVALE LIMITED,106463
North East Lincolnshire Council,http://statistics.data.gov.uk/id/local-authority/00FC,Children & Family Services,Commissioning Pships & Perform,School Access Govrn Stdnt Serv,Direct Transport Costs,Hired Transport Hire Vehicle,GA01,14/12/2010,2988722,REDACTED COMMERCIALLY SENSITIVE INFORMATION,Revenue,AMVALE LIMITED,106463
North East Lincolnshire Council,http://statistics.data.gov.uk/id/local-authority/00FC,Children & Family Services,Commissioning Pships & Perform,School Access Govrn Stdnt Serv,Contract Hire/Operating Leases,Cont Veh Sen School,GN08,20/12/2010,2992588,REDACTED COMMERCIALLY SENSITIVE INFORMATION,Revenue,LINKS TAXIS,1524
North East Lincolnshire Council,http://statistics.data.gov.uk/id/local-authority/00FC,Children & Family Services,Commissioning Pships & Perform,School Access Govrn Stdnt Serv,Contract Hire/Operating Leases,Cont Veh Sen School,GN08,16/12/2010,2991151,REDACTED COMMERCIALLY SENSITIVE INFORMATION,Revenue,LINKS TAXIS,1524
North East Lincolnshire Council,http://statistics.data.gov.uk/id/local-authority/00FC,Children & Family Services,Commissioning Pships & Perform,School Access Govrn Stdnt Serv,Contract Hire/Operating Leases,Cont Veh Sen School,GN08,16/12/2010,2991134,REDACTED COMMERCIALLY SENSITIVE INFORMATION,Revenue,LINKS TAXIS,1524
North East Lincolnshire Council,http://statistics.data.gov.uk/id/local-authority/00FC,Children & Family Services,Commissioning Pships & Perform,School Access Govrn Stdnt Serv,Contract Hire/Operating Leases,Cont Vehicle Disaffected,GN16,14/12/2010,2988850,REDACTED COMMERCIALLY SENSITIVE INFORMATION,Revenue,MINICABS CLEETHORPES (LINCS) LTD,172873
North East Lincolnshire Council,http://statistics.data.gov.uk/id/local-authority/00FC,Children & Family Services,Commissioning Pships & Perform,School Access Govrn Stdnt Serv,Contract Hire/Operating Leases,Cont Veh Sen School,GN08,14/12/2010,2988888,REDACTED COMMERCIALLY SENSITIVE INFORMATION,Revenue,COUNTRY CABS,170676
North East Lincolnshire Council,http://statistics.data.gov.uk/id/local-authority/00FC,Children & Family Services,Commissioning Pships & Perform,School Access Govrn Stdnt Serv,Contract Hire/Operating Leases,Cont Veh Sen School,GN08,16/12/2010,2990923,REDACTED COMMERCIALLY SENSITIVE INFORMATION,Revenue,LINKS TAXIS,1524
North East Lincolnshire Council,http://statistics.data.gov.uk/id/local-authority/00FC,Children & Family Services,Commissioning Pships & Perform,School Access Govrn Stdnt Serv,Contract Hire/Operating Leases,Cont Veh Sen School,GN08,16/12/2010,2991133,REDACTED COMMERCIALLY SENSITIVE INFORMATION,Revenue,LINKS TAXIS,1524
North East Lincolnshire Council,http://statistics.data.gov.uk/id/local-authority/00FC,Children & Family Services,Commissioning Pships & Perform,School Access Govrn Stdnt Serv,Contract Hire/Operating Leases,Cont Vehicle Disaffected,GN16,16/12/2010,2990928,REDACTED COMMERCIALLY SENSITIVE INFORMATION,Revenue,LINKS TAXIS,1524
North East Lincolnshire Council,http://statistics.data.gov.uk/id/local-authority/00FC,Children & Family Services,Commissioning Pships & Perform,School Access Govrn Stdnt Serv,Contract Hire/Operating Leases,Cont Veh Sen School,GN08,14/12/2010,2988876,REDACTED COMMERCIALLY SENSITIVE INFORMATION,Revenue,MINICABS CLEETHORPES (LINCS) LTD,172873
North East Lincolnshire Council,http://statistics.data.gov.uk/id/local-authority/00FC,Children & Family Services,Commissioning Pships & Perform,School Access Govrn Stdnt Serv,Contract Hire/Operating Leases,Cont Veh Sen School,GN08,16/12/2010,2991135,REDACTED COMMERCIALLY SENSITIVE INFORMATION,Revenue,LINKS TAXIS,1524
North East Lincolnshire Council,http://statistics.data.gov.uk/id/local-authority/00FC,Children & Family Services,Commissioning Pships & Perform,School Access Govrn Stdnt Serv,Private Contractors,Concessionary Fares,PK01,16/12/2010,2991135,REDACTED COMMERCIALLY SENSITIVE INFORMATION,Revenue,LINKS TAXIS,1524
North East Lincolnshire Council,http://statistics.data.gov.uk/id/local-authority/00FC,Children & Family Services,Commissioning Pships & Perform,School Access Govrn Stdnt Serv,Contract Hire/Operating Leases,Cont Veh Sen School,GN08,20/12/2010,2992724,REDACTED COMMERCIALLY SENSITIVE INFORMATION,Revenue,REDACTED PERSONAL DATA,REDACTED PERSONAL DATA
North East Lincolnshire Council,http://statistics.data.gov.uk/id/local-authority/00FC,Children & Family Services,Commissioning Pships & Perform,School Access Govrn Stdnt Serv,Contract Hire/Operating Leases,Cont Veh Sen School,GN08,16/12/2010,2990945,REDACTED COMMERCIALLY SENSITIVE INFORMATION,Revenue,REVELLS TAXIS (ED/SOC SERV),2045
North East Lincolnshire Council,http://statistics.data.gov.uk/id/local-authority/00FC,Children & Family Services,Commissioning Pships & Perform,School Access Govrn Stdnt Serv,Contract Hire/Operating Leases,Cont Vehicle Disaffected,GN16,16/12/2010,2990954,REDACTED COMMERCIALLY SENSITIVE INFORMATION,Revenue,LINKS TAXIS,1524
North East Lincolnshire Council,http://statistics.data.gov.uk/id/local-authority/00FC,Children & Family Services,Commissioning Pships & Perform,School Access Govrn Stdnt Serv,Contract Hire/Operating Leases,Cont Veh Sen School,GN08,14/12/2010,2988741,REDACTED COMMERCIALLY SENSITIVE INFORMATION,Revenue,MINICABS CLEETHORPES (LINCS) LTD,172873
North East Lincolnshire Council,http://statistics.data.gov.uk/id/local-authority/00FC,Children & Family Services,Commissioning Pships & Perform,School Access Govrn Stdnt Serv,Contract Hire/Operating Leases,Cont Veh Sen School,GN08,20/12/2010,2992737,REDACTED COMMERCIALLY SENSITIVE INFORMATION,Revenue,WHEELCHAIR FRIENDLY TAXI SERVICE,168857
North East Lincolnshire Council,http://statistics.data.gov.uk/id/local-authority/00FC,Children & Family Services,Commissioning Pships & Perform,School Access Govrn Stdnt Serv,Contract Hire/Operating Leases,Cont Veh Sen School,GN08,16/12/2010,2990936,REDACTED COMMERCIALLY SENSITIVE INFORMATION,Revenue,REVELLS TAXIS (ED/SOC SERV),2045
North East Lincolnshire Council,http://statistics.data.gov.uk/id/local-authority/00FC,Children & Family Services,Commissioning Pships & Perform,School Access Govrn Stdnt Serv,Private Contractors,Concessionary Fares,PK01,16/12/2010,2990936,REDACTED COMMERCIALLY SENSITIVE INFORMATION,Revenue,REVELLS TAXIS (ED/SOC SERV),2045
North East Lincolnshire Council,http://statistics.data.gov.uk/id/local-authority/00FC,Children & Family Services,Commissioning Pships & Perform,School Access Govrn Stdnt Serv,Contract Hire/Operating Leases,Cont Veh Sen School,GN08,20/12/2010,2992617,REDACTED COMMERCIALLY SENSITIVE INFORMATION,Revenue,CABBYCARS,73521
North East Lincolnshire Council,http://statistics.data.gov.uk/id/local-authority/00FC,Children & Family Services,Commissioning Pships & Perform,School Access Govrn Stdnt Serv,Contract Hire/Operating Leases,Cont Veh Sen School,GN08,20/12/2010,2992640,REDACTED COMMERCIALLY SENSITIVE INFORMATION,Revenue,LINKS TAXIS,1524
North East Lincolnshire Council,http://statistics.data.gov.uk/id/local-authority/00FC,Children & Family Services,Commissioning Pships & Perform,School Access Govrn Stdnt Serv,Contract Hire/Operating Leases,Cont Veh Sen School,GN08,20/12/2010,2992624,REDACTED COMMERCIALLY SENSITIVE INFORMATION,Revenue,LINKS TAXIS,1524
North East Lincolnshire Council,http://statistics.data.gov.uk/id/local-authority/00FC,Children & Family Services,Commissioning Pships & Perform,School Access Govrn Stdnt Serv,Contract Hire/Operating Leases,Cont Veh Sen School,GN08,16/12/2010,2991147,REDACTED COMMERCIALLY SENSITIVE INFORMATION,Revenue,LINKS TAXIS,1524
North East Lincolnshire Council,http://statistics.data.gov.uk/id/local-authority/00FC,Children & Family Services,Commissioning Pships & Perform,School Access Govrn Stdnt Serv,Contract Hire/Operating Leases,Cont Veh Sen School,GN08,20/12/2010,2992635,REDACTED COMMERCIALLY SENSITIVE INFORMATION,Revenue,LINKS TAXIS,1524
North East Lincolnshire Council,http://statistics.data.gov.uk/id/local-authority/00FC,Children & Family Services,Commissioning Pships & Perform,School Access Govrn Stdnt Serv,Contract Hire/Operating Leases,Cont Veh Sen School,GN08,16/12/2010,2990927,REDACTED COMMERCIALLY SENSITIVE INFORMATION,Revenue,LINKS TAXIS,1524
North East Lincolnshire Council,http://statistics.data.gov.uk/id/local-authority/00FC,Children & Family Services,Commissioning Pships & Perform,School Access Govrn Stdnt Serv,Contract Hire/Operating Leases,Cont Veh Sen School,GN08,16/12/2010,2991142,REDACTED COMMERCIALLY SENSITIVE INFORMATION,Revenue,LINKS TAXIS,1524
North East Lincolnshire Council,http://statistics.data.gov.uk/id/local-authority/00FC,Children & Family Services,Commissioning Pships & Perform,School Access Govrn Stdnt Serv,Contract Hire/Operating Leases,Cont Veh Sen School,GN08,14/12/2010,2988743,REDACTED COMMERCIALLY SENSITIVE INFORMATION,Revenue,MINICABS CLEETHORPES (LINCS) LTD,172873
North East Lincolnshire Council,http://statistics.data.gov.uk/id/local-authority/00FC,Children & Family Services,Commissioning Pships & Perform,School Access Govrn Stdnt Serv,Contract Hire/Operating Leases,Cont Veh Sen School,GN08,14/12/2010,2988845,REDACTED COMMERCIALLY SENSITIVE INFORMATION,Revenue,TREV'S MINIBUS,114758
North East Lincolnshire Council,http://statistics.data.gov.uk/id/local-authority/00FC,Children & Family Services,Commissioning Pships & Perform,School Access Govrn Stdnt Serv,Contract Hire/Operating Leases,Cont Veh Sen School,GN08,20/12/2010,2992720,REDACTED COMMERCIALLY SENSITIVE INFORMATION,Revenue,REDACTED PERSONAL DATA,REDACTED PERSONAL DATA
North East Lincolnshire Council,http://statistics.data.gov.uk/id/local-authority/00FC,Children & Family Services,Commissioning Pships & Perform,School Access Govrn Stdnt Serv,Contract Hire/Operating Leases,Cont Veh Sen School,GN08,20/12/2010,2992684,REDACTED COMMERCIALLY SENSITIVE INFORMATION,Revenue,AMVALE LIMITED,106463
North East Lincolnshire Council,http://statistics.data.gov.uk/id/local-authority/00FC,Children & Family Services,Commissioning Pships & Perform,School Access Govrn Stdnt Serv,Contract Hire/Operating Leases,Cont Veh Sen School,GN08,14/12/2010,2988710,REDACTED COMMERCIALLY SENSITIVE INFORMATION,Revenue,HUXMANOR LTD,150193
North East Lincolnshire Council,http://statistics.data.gov.uk/id/local-authority/00FC,Children & Family Services,Commissioning Pships & Perform,School Access Govrn Stdnt Serv,Contract Hire/Operating Leases,Cont Veh Sen School,GN08,14/12/2010,2988849,REDACTED COMMERCIALLY SENSITIVE INFORMATION,Revenue,CABBYCARS,73521
North East Lincolnshire Council,http://statistics.data.gov.uk/id/local-authority/00FC,Children & Family Services,Commissioning Pships & Perform,School Access Govrn Stdnt Serv,Contract Hire/Operating Leases,Cont Vehicle Sen Alone Travel,GN13,16/12/2010,2990929,REDACTED COMMERCIALLY SENSITIVE INFORMATION,Revenue,LINKS TAXIS,1524
North East Lincolnshire Council,http://statistics.data.gov.uk/id/local-authority/00FC,Children & Family Services,Commissioning Pships & Perform,School Access Govrn Stdnt Serv,Contract Hire/Operating Leases,Cont Veh Sen School,GN08,16/12/2010,2991137,REDACTED COMMERCIALLY SENSITIVE INFORMATION,Revenue,LINKS TAXIS,1524
North East Lincolnshire Council,http://statistics.data.gov.uk/id/local-authority/00FC,Children & Family Services,Commissioning Pships & Perform,School Access Govrn Stdnt Serv,Contract Hire/Operating Leases,Cont Veh Sen School,GN08,16/12/2010,2991136,REDACTED COMMERCIALLY SENSITIVE INFORMATION,Revenue,LINKS TAXIS,1524
North East Lincolnshire Council,http://statistics.data.gov.uk/id/local-authority/00FC,Children & Family Services,Commissioning Pships & Perform,School Access Govrn Stdnt Serv,Contract Hire/Operating Leases,Cont Veh Sen School,GN08,14/12/2010,2988714,REDACTED COMMERCIALLY SENSITIVE INFORMATION,Revenue,HUXMANOR LTD,150193
North East Lincolnshire Council,http://statistics.data.gov.uk/id/local-authority/00FC,Children & Family Services,Commissioning Pships & Perform,School Access Govrn Stdnt Serv,Contract Hire/Operating Leases,Cont Veh Sen School,GN08,20/12/2010,2992679,REDACTED COMMERCIALLY SENSITIVE INFORMATION,Revenue,AMVALE LIMITED,106463
North East Lincolnshire Council,http://statistics.data.gov.uk/id/local-authority/00FC,Children & Family Services,Commissioning Pships & Perform,School Access Govrn Stdnt Serv,Contract Hire/Operating Leases,Cont Veh Sen School,GN08,20/12/2010,2992682,REDACTED COMMERCIALLY SENSITIVE INFORMATION,Revenue,AMVALE LIMITED,106463
North East Lincolnshire Council,http://statistics.data.gov.uk/id/local-authority/00FC,Children & Family Services,Commissioning Pships & Perform,School Access Govrn Stdnt Serv,Contract Hire/Operating Leases,Cont Veh Sen School,GN08,20/12/2010,2992680,REDACTED COMMERCIALLY SENSITIVE INFORMATION,Revenue,AMVALE LIMITED,106463
North East Lincolnshire Council,http://statistics.data.gov.uk/id/local-authority/00FC,Children & Family Services,Commissioning Pships & Perform,School Access Govrn Stdnt Serv,Contract Hire/Operating Leases,Cont Veh Sen School,GN08,14/12/2010,2988731,REDACTED COMMERCIALLY SENSITIVE INFORMATION,Revenue,MILLMAN COACHES,41357
North East Lincolnshire Council,http://statistics.data.gov.uk/id/local-authority/00FC,Children & Family Services,Commissioning Pships & Perform,School Access Govrn Stdnt Serv,Contract Hire/Operating Leases,Cont Veh Sen School,GN08,14/12/2010,2988730,REDACTED COMMERCIALLY SENSITIVE INFORMATION,Revenue,MILLMAN COACHES,41357
North East Lincolnshire Council,http://statistics.data.gov.uk/id/local-authority/00FC,Children & Family Services,Commissioning Pships & Perform,School Access Govrn Stdnt Serv,Contract Hire/Operating Leases,Cont Veh Sen School,GN08,20/12/2010,2992678,REDACTED COMMERCIALLY SENSITIVE INFORMATION,Revenue,AMVALE LIMITED,106463
North East Lincolnshire Council,http://statistics.data.gov.uk/id/local-authority/00FC,Children & Family Services,Commissioning Pships & Perform,School Access Govrn Stdnt Serv,Contract Hire/Operating Leases,Cont Veh Sen School,GN08,20/12/2010,2992677,REDACTED COMMERCIALLY SENSITIVE INFORMATION,Revenue,AMVALE LIMITED,106463
North East Lincolnshire Council,http://statistics.data.gov.uk/id/local-authority/00FC,Children & Family Services,Commissioning Pships & Perform,School Access Govrn Stdnt Serv,Contract Hire/Operating Leases,Cont Veh Sen School,GN08,20/12/2010,2992589,REDACTED COMMERCIALLY SENSITIVE INFORMATION,Revenue,SHERWOOD TRAVEL,75983
North East Lincolnshire Council,http://statistics.data.gov.uk/id/local-authority/00FC,Children & Family Services,Commissioning Pships & Perform,Child Care Performance & Ict,Communication & Computing,Comp S/Ware Purchases,HJ01,16/12/2010,2990943,800.00,Revenue,NORTHGATE INFORMATION SOLUTIONS UK LTD,166549
North East Lincolnshire Council,http://statistics.data.gov.uk/id/local-authority/00FC,Children & Family Services,Commissioning Pships & Perform,Additional & Enhanced Needs,Printing Station & Gen Off Exp,Print & Stat General,LA01,20/12/2010,2991944,515.20,Revenue,LYRECO UK LIMITED,117289
North East Lincolnshire Council,http://statistics.data.gov.uk/id/local-authority/00FC,Children & Family Services,Commissioning Pships & Perform,Additional & Enhanced Needs,Equipment/Furniture/Materials,Off Equip Photocop Rent/Copies,HN71,09/12/2010,2986131,653.09,Revenue,UNITED CARLTON OFFICE SYSTEMS LTD,161525
North East Lincolnshire Council,http://statistics.data.gov.uk/id/local-authority/00FC,Children & Family Services,Commissioning Pships & Perform,Additional & Enhanced Needs,Contributions To Provisions,Contributions To Funds,NV01,20/12/2010,2991844,"1,650.00",Revenue,DKM ASSESSMENT & VERIFICATION LTD,179198
North East Lincolnshire Council,http://statistics.data.gov.uk/id/local-authority/00FC,Children & Family Services,Commissioning Pships & Perform,Additional & Enhanced Needs,Private Contractors,Children And Families Tpp,QC01,20/12/2010,2991849,"1,820.00",Revenue,DKM ASSESSMENT & VERIFICATION LTD,179198
North East Lincolnshire Council,http://statistics.data.gov.uk/id/local-authority/00FC,Children & Family Services,Commissioning Pships & Perform,Additional & Enhanced Needs,Private Contractors,Outside Contractors,QH01,20/12/2010,2991845,"2,145.00",Revenue,DKM ASSESSMENT & VERIFICATION LTD,179198
North East Lincolnshire Council,http://statistics.data.gov.uk/id/local-authority/00FC,Children & Family Services,Commissioning Pships & Perform,Additional & Enhanced Needs,Other Local Authorities,Oth Local Auth General,QG01,09/12/2010,2986141,"3,467.49",Revenue,LEICESTERSHIRE COUNTY COUNCIL,76848
North East Lincolnshire Council,http://statistics.data.gov.uk/id/local-authority/00FC,Children & Family Services,Commissioning Pships & Perform,Additional & Enhanced Needs,Private Contractors,Outside Contractors,QH01,20/12/2010,2991860,"3,600.00",Revenue,RAINBOW,172872
North East Lincolnshire Council,http://statistics.data.gov.uk/id/local-authority/00FC,Children & Family Services,Commissioning Pships & Perform,Additional & Enhanced Needs,Private Contractors,Outside Contractors,QH01,15/12/2010,2990227,"5,040.00",Revenue,RAINBOW,172872
North East Lincolnshire Council,http://statistics.data.gov.uk/id/local-authority/00FC,Children & Family Services,Commissioning Pships & Perform,Additional & Enhanced Needs,Private Contractors,Outside Contractors,QH01,20/12/2010,2991850,"5,460.00",Revenue,DKM ASSESSMENT & VERIFICATION LTD,179198
North East Lincolnshire Council,http://statistics.data.gov.uk/id/local-authority/00FC,Children & Family Services,Commissioning Pships & Perform,Additional & Enhanced Needs,Other Local Authorities,Oth Local Auth General,QG01,20/12/2010,2991862,"9,956.00",Revenue,HORTON ESTABLISHMENTS LTD,139602
North East Lincolnshire Council,http://statistics.data.gov.uk/id/local-authority/00FC,Children & Family Services,Commissioning Pships & Perform,Additional & Enhanced Needs,Private Contractors,Children And Families Tpp,QC01,15/12/2010,2990225,"11,957.01",Revenue,QUALITY TIME CARE LTD,178943
North East Lincolnshire Council,http://statistics.data.gov.uk/id/local-authority/00FC,Children & Family Services,Commissioning Pships & Perform,Additional & Enhanced Needs,Other Local Authorities,Oth Local Auth General,QG01,20/12/2010,2991861,"12,096.66",Revenue,BARNARDO SERVICES LTD,108910
North East Lincolnshire Council,http://statistics.data.gov.uk/id/local-authority/00FC,Children & Family Services,Commissioning Pships & Perform,Additional & Enhanced Needs,Other Local Authorities,Oth Local Auth General,QG01,20/12/2010,2991956,"13,870.00",Revenue,THE WILLIAM HENRY SMITH SCHOOL,42746
North East Lincolnshire Council,http://statistics.data.gov.uk/id/local-authority/00FC,Children & Family Services,Commissioning Pships & Perform,Additional & Enhanced Needs,Private Contractors,Outside Contractors,QH01,20/12/2010,2991945,"34,143.16",Revenue,NEW OPTIONS LTD,164869
North East Lincolnshire Council,http://statistics.data.gov.uk/id/local-authority/00FC,Children & Family Services,Commissioning Pships & Perform,Additional & Enhanced Needs,Other Local Authorities,Oth Local Auth General,QG01,14/12/2010,2988756,"96,899.12",Revenue,KISIMUL SCHOOL,147856
North East Lincolnshire Council,http://statistics.data.gov.uk/id/local-authority/00FC,Children & Family Services,Commissioning Pships & Perform,Additional & Enhanced Needs,Direct Employee Expenses,Pay Employment Agency Staff,AA53,09/12/2010,2986137,550.00,Revenue,RANDSTAD EDUCATION LTD,178168
North East Lincolnshire Council,http://statistics.data.gov.uk/id/local-authority/00FC,Children & Family Services,Commissioning Pships & Perform,Additional & Enhanced Needs,Direct Employee Expenses,Pay Employment Agency Staff,AA53,20/12/2010,2991858,550.00,Revenue,RANDSTAD EDUCATION LTD,178168
North East Lincolnshire Council,http://statistics.data.gov.uk/id/local-authority/00FC,Children & Family Services,Commissioning Pships & Perform,Additional & Enhanced Needs,Direct Employee Expenses,Pay Employment Agency Staff,AA53,09/12/2010,2986140,550.00,Revenue,RANDSTAD EDUCATION LTD,178168
North East Lincolnshire Council,http://statistics.data.gov.uk/id/local-authority/00FC,Children & Family Services,Commissioning Pships & Perform,Additional & Enhanced Needs,Direct Employee Expenses,Pay Employment Agency Staff,AA53,09/12/2010,2986134,550.00,Revenue,RANDSTAD EDUCATION LTD,178168
North East Lincolnshire Council,http://statistics.data.gov.uk/id/local-authority/00FC,Children & Family Services,Commissioning Pships & Perform,Additional & Enhanced Needs,Direct Employee Expenses,Pay Employment Agency Staff,AA53,09/12/2010,2986133,550.00,Revenue,RANDSTAD EDUCATION LTD,178168
North East Lincolnshire Council,http://statistics.data.gov.uk/id/local-authority/00FC,Children & Family Services,Commissioning Pships & Perform,Additional & Enhanced Needs,Contributions To Provisions,Contributions To Funds,NV01,20/12/2010,2991852,558.08,Revenue,REDACTED PERSONAL DATA,REDACTED PERSONAL DATA
North East Lincolnshire Council,http://statistics.data.gov.uk/id/local-authority/00FC,Children & Family Services,Commissioning Pships & Perform,Additional & Enhanced Needs,Contributions To Provisions,Contributions To Funds,NV01,20/12/2010,2991931,650.00,Revenue,DKM ASSESSMENT & VERIFICATION LTD,179198
North East Lincolnshire Council,http://statistics.data.gov.uk/id/local-authority/00FC,Children & Family Services,Commissioning Pships & Perform,Additional & Enhanced Needs,Contributions To Provisions,Contributions To Funds,NV01,20/12/2010,2991938,910.00,Revenue,DKM ASSESSMENT & VERIFICATION LTD,179198
North East Lincolnshire Council,http://statistics.data.gov.uk/id/local-authority/00FC,Children & Family Services,Commissioning Pships & Perform,Additional & Enhanced Needs,Contributions To Provisions,Contributions To Funds,NV01,20/12/2010,2991935,910.00,Revenue,DKM ASSESSMENT & VERIFICATION LTD,179198
North East Lincolnshire Council,http://statistics.data.gov.uk/id/local-authority/00FC,Children & Family Services,Commissioning Pships & Perform,Additional & Enhanced Needs,Contributions To Provisions,Contributions To Funds,NV01,20/12/2010,2991848,910.00,Revenue,DKM ASSESSMENT & VERIFICATION LTD,179198
North East Lincolnshire Council,http://statistics.data.gov.uk/id/local-authority/00FC,Children & Family Services,Commissioning Pships & Perform,Additional & Enhanced Needs,Contributions To Provisions,Contributions To Funds,NV01,20/12/2010,2991853,"1,229.52",Revenue,REDACTED PERSONAL DATA,REDACTED PERSONAL DATA
North East Lincolnshire Council,http://statistics.data.gov.uk/id/local-authority/00FC,Children & Family Services,Commissioning Pships & Perform,Additional & Enhanced Needs,Contributions To Provisions,Contributions To Funds,NV01,20/12/2010,2991847,"1,235.00",Revenue,DKM ASSESSMENT & VERIFICATION LTD,179198
North East Lincolnshire Council,http://statistics.data.gov.uk/id/local-authority/00FC,Children & Family Services,Commissioning Pships & Perform,Additional & Enhanced Needs,Contributions To Provisions,Contributions To Funds,NV01,20/12/2010,2991846,"1,560.00",Revenue,DKM ASSESSMENT & VERIFICATION LTD,179198
North East Lincolnshire Council,http://statistics.data.gov.uk/id/local-authority/00FC,Children & Family Services,Commissioning Pships & Perform,Additional & Enhanced Needs,Consultants,Consult Work Consult+Special,PG01,15/12/2010,2990226,"2,129.62",Revenue,REDACTED PERSONAL DATA,REDACTED PERSONAL DATA
North East Lincolnshire Council,http://statistics.data.gov.uk/id/local-authority/00FC,Children & Family Services,Commissioning Pships & Perform,Childrens Trust,Direct Transport Costs,Hired Transport Hire Vehicle,GA01,07/12/2010,2984918,-5.70,Revenue,NORTHGATE VEHICLE HIRE,179268
North East Lincolnshire Council,http://statistics.data.gov.uk/id/local-authority/00FC,Children & Family Services,Commissioning Pships & Perform,Childrens Trust,Printing Station & Gen Off Exp,Print & Stat General,LA01,07/12/2010,2984917,711.84,Revenue,UNITED CARLTON OFFICE SYSTEMS LTD,161525
North East Lincolnshire Council,http://statistics.data.gov.uk/id/local-authority/00FC,Children & Family Services,Commissioning Pships & Perform,Strategic Management,Miscellaneous Expenses,Other Expenses General,NZ01,22/12/2010,2995013,851.00,Revenue,S & S LEISURE LTD,101811
North East Lincolnshire Council,http://statistics.data.gov.uk/id/local-authority/00FC,Children & Family Services,Commissioning Pships & Perform,Strategic Management,Miscellaneous Expenses,Other Expenses General,NZ01,13/12/2010,2987725,"14,303.60",Revenue,BARBARA HUGHES LIMITED,176129
North East Lincolnshire Council,http://statistics.data.gov.uk/id/local-authority/00FC,Children & Family Services,Commissioning Pships & Perform,Commissioning Of Bsf,Rents,Rent Portacabins,FJ06,22/12/2010,2994382,"22,354.53",Revenue,PORTAKABIN LTD,133283
North East Lincolnshire Council,http://statistics.data.gov.uk/id/local-authority/00FC,Children & Family Services,Commissioning Pships & Perform,Cfs Assets & Pc Programme,Repairs & Maintenance,R & M Build Spec Planned Maint,CB65,13/12/2010,2987862,"2,300.00",Revenue,REDACTED PERSONAL DATA,REDACTED PERSONAL DATA
North East Lincolnshire Council,http://statistics.data.gov.uk/id/local-authority/00FC,Children & Family Services,Commissioning Pships & Perform,Cfs Assets & Pc Programme,Energy Costs,Gas,FA01,15/12/2010,2990258,"1,224.73",Revenue,BRITISH GAS TRADING LTD,154726
North East Lincolnshire Council,http://statistics.data.gov.uk/id/local-authority/00FC,Children & Family Services,Childrens Health & Famly Serv,Integrated Youth Services,Miscellaneous Expenses,Other Activities,MQ01,09/12/2010,2986216,514.50,Revenue,REDACTED PERSONAL DATA,REDACTED PERSONAL DATA
North East Lincolnshire Council,http://statistics.data.gov.uk/id/local-authority/00FC,Children & Family Services,Childrens Health & Famly Serv,Integrated Youth Services,Direct Transport Costs,Hired Transport Taxis,GA05,07/12/2010,2984890,568.20,Revenue,COXONS CARS LIMITED,5187
North East Lincolnshire Council,http://statistics.data.gov.uk/id/local-authority/00FC,Children & Family Services,Childrens Health & Famly Serv,Integrated Youth Services,Grants & Subscriptions,Subscriptions General,MH01,09/12/2010,2986350,"1,140.00",Revenue,CHYPS,181199
North East Lincolnshire Council,http://statistics.data.gov.uk/id/local-authority/00FC,Children & Family Services,Childrens Health & Famly Serv,Integrated Youth Services,Repairs & Maintenance,R & M Build General,CA01,09/12/2010,2986309,"1,261.70",Revenue,WHITGIFT SCHOOL,75911
North East Lincolnshire Council,http://statistics.data.gov.uk/id/local-authority/00FC,Children & Family Services,Childrens Health & Famly Serv,Integrated Youth Services,Cleaning & Domestic Supplies,Cleaning Materials General,FP01,03/12/2010,2983140,-5.70,Revenue,SYLVESTER-KEAL LTD,13580
North East Lincolnshire Council,http://statistics.data.gov.uk/id/local-authority/00FC,Children & Family Services,Childrens Health & Famly Serv,Integrated Youth Services,Equipment/Furniture/Materials,Furniture Purchases,HA01,22/12/2010,2994454,"4,808.07",Revenue,OFFICE DEPOT UK LTD,156595
North East Lincolnshire Council,http://statistics.data.gov.uk/id/local-authority/00FC,Children & Family Services,Childrens Health & Famly Serv,Integrated Youth Services,Miscellaneous Expenses,Other Activities,MQ01,03/12/2010,2983234,510.64,Revenue,KARTING WORLD LTD,180931
North East Lincolnshire Council,http://statistics.data.gov.uk/id/local-authority/00FC,Children & Family Services,Childrens Health & Famly Serv,Integrated Youth Services,Indirect Employee Expenses,Train Accredit & Certific Fee,BX08,07/12/2010,2984891,688.00,Revenue,ROCKCITY,78424
North East Lincolnshire Council,http://statistics.data.gov.uk/id/local-authority/00FC,Children & Family Services,Childrens Health & Famly Serv,Integrated Youth Services,Miscellaneous Expenses,Other Activities,MQ01,17/12/2010,2991482,721.00,Revenue,WESTBURY INDUSTRIAL SUPPLIES LTD,176802
North East Lincolnshire Council,http://statistics.data.gov.uk/id/local-authority/00FC,Children & Family Services,Childrens Health & Famly Serv,Integrated Youth Services,Miscellaneous Expenses,Other Activities,MQ01,15/12/2010,2990132,"11,000.00",Revenue,GRIMSBY TOWN FOOTBALL IN THE COMMUNITY,89372
North East Lincolnshire Council,http://statistics.data.gov.uk/id/local-authority/00FC,Children & Family Services,Childrens Health & Famly Serv,Integrated Youth Services,Miscellaneous Expenses,Other Activities,MQ01,09/12/2010,2986313,"5,000.00",Revenue,NUNSTHORPE TOGETHER LTD,166421
North East Lincolnshire Council,http://statistics.data.gov.uk/id/local-authority/00FC,Children & Family Services,Childrens Health & Famly Serv,Integrated Youth Services,Equipment/Furniture/Materials,Equip Purchases,HC01,21/12/2010,2994169,"3,475.00",Revenue,CHILDRENS SAFETY EDUCATION FOUNDATION,162306
North East Lincolnshire Council,http://statistics.data.gov.uk/id/local-authority/00FC,Children & Family Services,Childrens Health & Famly Serv,Extended Services,Indirect Employee Expenses,Train Basic Skill - Course Fee,BX01,07/12/2010,2984826,"1,149.40",Revenue,FAMILY PLANNING ASSOCIATION,77741
North East Lincolnshire Council,http://statistics.data.gov.uk/id/local-authority/00FC,Children & Family Services,Childrens Health & Famly Serv,Extended Services,Repairs & Maintenance,R & M Build General,CA01,31/12/2010,2996463,730.00,Revenue,ABM ROOFING CONTRACTORS,30
North East Lincolnshire Council,http://statistics.data.gov.uk/id/local-authority/00FC,Children & Family Services,Childrens Health & Famly Serv,Extended Services,Miscellaneous Expenses,Other Activities,MQ01,31/12/2010,2997051,"1,000.00",Revenue,GRIMSBY TOWN FOOTBALL IN THE COMMUNITY,89372
North East Lincolnshire Council,http://statistics.data.gov.uk/id/local-authority/00FC,Children & Family Services,Childrens Health & Famly Serv,Extended Services,Miscellaneous Expenses,Other Activities,MQ01,31/12/2010,2997051,"1,000.00",Revenue,GRIMSBY TOWN FOOTBALL IN THE COMMUNITY,89372
North East Lincolnshire Council,http://statistics.data.gov.uk/id/local-authority/00FC,Children & Family Services,Childrens Health & Famly Serv,Extended Services,Miscellaneous Expenses,Other Activities,MQ01,31/12/2010,2997051,"1,000.00",Revenue,GRIMSBY TOWN FOOTBALL IN THE COMMUNITY,89372
North East Lincolnshire Council,http://statistics.data.gov.uk/id/local-authority/00FC,Children & Family Services,Childrens Health & Famly Serv,Extended Services,Miscellaneous Expenses,Other Activities,MQ01,31/12/2010,2997051,"1,000.00",Revenue,GRIMSBY TOWN FOOTBALL IN THE COMMUNITY,89372
North East Lincolnshire Council,http://statistics.data.gov.uk/id/local-authority/00FC,Children & Family Services,Childrens Health & Famly Serv,Extended Services,Miscellaneous Expenses,Other Activities,MQ01,07/12/2010,2984815,"1,075.00",Revenue,NORTH YORKSHIRE MOORS RAILWAY,179885
North East Lincolnshire Council,http://statistics.data.gov.uk/id/local-authority/00FC,Children & Family Services,Childrens Health & Famly Serv,Extended Services,Miscellaneous Expenses,Other Activities,MQ01,07/12/2010,2984818,"1,075.00",Revenue,NORTH YORKSHIRE MOORS RAILWAY,179885
North East Lincolnshire Council,http://statistics.data.gov.uk/id/local-authority/00FC,Children & Family Services,Childrens Health & Famly Serv,Extended Services,Direct Transport Costs,Hired Tspt Hire Veh & Driver,GA02,31/12/2010,2996415,REDACTED COMMERCIALLY SENSITIVE INFORMATION,Revenue,MILLMAN COACHES,41357
North East Lincolnshire Council,http://statistics.data.gov.uk/id/local-authority/00FC,Children & Family Services,Childrens Health & Famly Serv,Extended Services,Miscellaneous Expenses,Other Activities,MQ01,31/12/2010,2997051,"1,000.00",Revenue,GRIMSBY TOWN FOOTBALL IN THE COMMUNITY,89372
North East Lincolnshire Council,http://statistics.data.gov.uk/id/local-authority/00FC,Children & Family Services,Childrens Health & Famly Serv,Extended Services,Miscellaneous Expenses,Other Activities,MQ01,31/12/2010,2997051,"1,000.00",Revenue,GRIMSBY TOWN FOOTBALL IN THE COMMUNITY,89372
North East Lincolnshire Council,http://statistics.data.gov.uk/id/local-authority/00FC,Children & Family Services,Childrens Health & Famly Serv,Extended Services,Miscellaneous Expenses,Other Activities,MQ01,31/12/2010,2997051,"1,000.00",Revenue,GRIMSBY TOWN FOOTBALL IN THE COMMUNITY,89372
North East Lincolnshire Council,http://statistics.data.gov.uk/id/local-authority/00FC,Children & Family Services,Childrens Health & Famly Serv,Extended Services,Direct Transport Costs,Hired Tspt Hire Veh & Driver,GA02,09/12/2010,2986485,REDACTED COMMERCIALLY SENSITIVE INFORMATION,Revenue,AMVALE LIMITED,106463
North East Lincolnshire Council,http://statistics.data.gov.uk/id/local-authority/00FC,Children & Family Services,Childrens Health & Famly Serv,Extended Services,Contributions To Provisions,Contributions To Funds,NV01,07/12/2010,2984896,"1,000.00",Revenue,TOLLBAR ACADEMY,181029
North East Lincolnshire Council,http://statistics.data.gov.uk/id/local-authority/00FC,Children & Family Services,Childrens Health & Famly Serv,Extended Services,Miscellaneous Expenses,Other Activities,MQ01,31/12/2010,2997051,"1,000.00",Revenue,GRIMSBY TOWN FOOTBALL IN THE COMMUNITY,89372
North East Lincolnshire Council,http://statistics.data.gov.uk/id/local-authority/00FC,Children & Family Services,Childrens Health & Famly Serv,Extended Services,Printing Station & Gen Off Exp,Books Stat & Equip(Ed) Pchse,JN01,09/12/2010,2986431,501.19,Revenue,JJB SPORTS PLC,111486
North East Lincolnshire Council,http://statistics.data.gov.uk/id/local-authority/00FC,Children & Family Services,Childrens Health & Famly Serv,Extended Services,Printing Station & Gen Off Exp,Books Stat & Equip(Ed) Pchse,JN01,07/12/2010,2984811,512.30,Revenue,JJB SPORTS PLC,111486
North East Lincolnshire Council,http://statistics.data.gov.uk/id/local-authority/00FC,Children & Family Services,Childrens Health & Famly Serv,Extended Services,Printing Station & Gen Off Exp,Books Stat & Equip(Ed) Pchse,JN01,20/12/2010,2991949,513.36,Revenue,JJB SPORTS PLC,111486
North East Lincolnshire Council,http://statistics.data.gov.uk/id/local-authority/00FC,Children & Family Services,Childrens Health & Famly Serv,Extended Services,Printing Station & Gen Off Exp,Books Stat & Equip(Ed) Pchse,JN01,07/12/2010,2984837,519.00,Revenue,HALFORDS LTD,89786
North East Lincolnshire Council,http://statistics.data.gov.uk/id/local-authority/00FC,Children & Family Services,Childrens Health & Famly Serv,Extended Services,Printing Station & Gen Off Exp,Books Stat & Equip(Ed) Pchse,JN01,16/12/2010,2986792,527.46,Revenue,JJB SPORTS PLC,111486
North East Lincolnshire Council,http://statistics.data.gov.uk/id/local-authority/00FC,Children & Family Services,Childrens Health & Famly Serv,Extended Services,Miscellaneous Expenses,Other Activities,MQ01,07/12/2010,2984842,REDACTED COMMERCIALLY SENSITIVE INFORMATION,Revenue,SLM COMMUNITY LEISURE LTD,132853
North East Lincolnshire Council,http://statistics.data.gov.uk/id/local-authority/00FC,Children & Family Services,Childrens Health & Famly Serv,Extended Services,Printing Station & Gen Off Exp,Books Stat & Equip(Ed) Pchse,JN01,31/12/2010,2997532,529.24,Revenue,JJB SPORTS PLC,111486
North East Lincolnshire Council,http://statistics.data.gov.uk/id/local-authority/00FC,Children & Family Services,Childrens Health & Famly Serv,Extended Services,Printing Station & Gen Off Exp,Books Stat & Equip(Ed) Pchse,JN01,07/12/2010,2984811,532.94,Revenue,JJB SPORTS PLC,111486
North East Lincolnshire Council,http://statistics.data.gov.uk/id/local-authority/00FC,Children & Family Services,Childrens Health & Famly Serv,Extended Services,Printing Station & Gen Off Exp,Books Stat & Equip(Ed) Pchse,JN01,31/12/2010,2997052,536.15,Revenue,HALFORDS LTD,89786
North East Lincolnshire Council,http://statistics.data.gov.uk/id/local-authority/00FC,Children & Family Services,Childrens Health & Famly Serv,Extended Services,Miscellaneous Expenses,Other Activities,MQ01,07/12/2010,2984840,REDACTED COMMERCIALLY SENSITIVE INFORMATION,Revenue,SLM COMMUNITY LEISURE LTD,132853
North East Lincolnshire Council,http://statistics.data.gov.uk/id/local-authority/00FC,Children & Family Services,Childrens Health & Famly Serv,Extended Services,Printing Station & Gen Off Exp,Books Stat & Equip(Ed) Pchse,JN01,20/12/2010,2991943,548.07,Revenue,JJB SPORTS PLC,111486
North East Lincolnshire Council,http://statistics.data.gov.uk/id/local-authority/00FC,Children & Family Services,Childrens Health & Famly Serv,Extended Services,Printing Station & Gen Off Exp,Books Stat & Equip(Ed) Pchse,JN01,31/12/2010,2996416,550.23,Revenue,JJB SPORTS PLC,111486
North East Lincolnshire Council,http://statistics.data.gov.uk/id/local-authority/00FC,Children & Family Services,Childrens Health & Famly Serv,Extended Services,Printing Station & Gen Off Exp,Books Stat & Equip(Ed) Pchse,JN01,31/12/2010,2997528,551.33,Revenue,JJB SPORTS PLC,111486
North East Lincolnshire Council,http://statistics.data.gov.uk/id/local-authority/00FC,Children & Family Services,Childrens Health & Famly Serv,Extended Services,Printing Station & Gen Off Exp,Books Stat & Equip(Ed) Pchse,JN01,31/12/2010,2997534,555.23,Revenue,JJB SPORTS PLC,111486
North East Lincolnshire Council,http://statistics.data.gov.uk/id/local-authority/00FC,Children & Family Services,Childrens Health & Famly Serv,Extended Services,Printing Station & Gen Off Exp,Books Stat & Equip(Ed) Pchse,JN01,31/12/2010,2997536,573.35,Revenue,JJB SPORTS PLC,111486
North East Lincolnshire Council,http://statistics.data.gov.uk/id/local-authority/00FC,Children & Family Services,Childrens Health & Famly Serv,Extended Services,Printing Station & Gen Off Exp,Books Stat & Equip(Ed) Pchse,JN01,20/12/2010,2991940,589.18,Revenue,JJB SPORTS PLC,111486
North East Lincolnshire Council,http://statistics.data.gov.uk/id/local-authority/00FC,Children & Family Services,Childrens Health & Famly Serv,Extended Services,Miscellaneous Expenses,Other Activities,MQ01,20/12/2010,2991924,601.00,Revenue,SEA VIEW EQUESTRIAN CENTRE LTD,180706
North East Lincolnshire Council,http://statistics.data.gov.uk/id/local-authority/00FC,Children & Family Services,Childrens Health & Famly Serv,Extended Services,Printing Station & Gen Off Exp,Books Stat & Equip(Ed) Pchse,JN01,09/12/2010,2986435,631.16,Revenue,JJB SPORTS PLC,111486
North East Lincolnshire Council,http://statistics.data.gov.uk/id/local-authority/00FC,Children & Family Services,Childrens Health & Famly Serv,Extended Services,Printing Station & Gen Off Exp,Books Stat & Equip(Ed) Pchse,JN01,09/12/2010,2986433,643.47,Revenue,JJB SPORTS PLC,111486
North East Lincolnshire Council,http://statistics.data.gov.uk/id/local-authority/00FC,Children & Family Services,Childrens Health & Famly Serv,Extended Services,Printing Station & Gen Off Exp,Books Stat & Equip(Ed) Pchse,JN01,16/12/2010,2986793,664.00,Revenue,JJB SPORTS PLC,111486
North East Lincolnshire Council,http://statistics.data.gov.uk/id/local-authority/00FC,Children & Family Services,Childrens Health & Famly Serv,Extended Services,Printing Station & Gen Off Exp,Books Stat & Equip(Ed) Pchse,JN01,31/12/2010,2997517,664.40,Revenue,JJB SPORTS PLC,111486
North East Lincolnshire Council,http://statistics.data.gov.uk/id/local-authority/00FC,Children & Family Services,Childrens Health & Famly Serv,Extended Services,Printing Station & Gen Off Exp,Books Stat & Equip(Ed) Pchse,JN01,20/12/2010,2991953,703.76,Revenue,JJB SPORTS PLC,111486
North East Lincolnshire Council,http://statistics.data.gov.uk/id/local-authority/00FC,Children & Family Services,Childrens Health & Famly Serv,Extended Services,Printing Station & Gen Off Exp,Books Stat & Equip(Ed) Pchse,JN01,31/12/2010,2997529,704.00,Revenue,JJB SPORTS PLC,111486
North East Lincolnshire Council,http://statistics.data.gov.uk/id/local-authority/00FC,Children & Family Services,Childrens Health & Famly Serv,Extended Services,Printing Station & Gen Off Exp,Books Stat & Equip(Ed) Pchse,JN01,31/12/2010,2997535,712.26,Revenue,JJB SPORTS PLC,111486
North East Lincolnshire Council,http://statistics.data.gov.uk/id/local-authority/00FC,Children & Family Services,Childrens Health & Famly Serv,Extended Services,Printing Station & Gen Off Exp,Books Stat & Equip(Ed) Pchse,JN01,20/12/2010,2991966,718.71,Revenue,JJB SPORTS PLC,111486
North East Lincolnshire Council,http://statistics.data.gov.uk/id/local-authority/00FC,Children & Family Services,Childrens Health & Famly Serv,Extended Services,Printing Station & Gen Off Exp,Books Stat & Equip(Ed) Pchse,JN01,31/12/2010,2997521,734.59,Revenue,JJB SPORTS PLC,111486
North East Lincolnshire Council,http://statistics.data.gov.uk/id/local-authority/00FC,Children & Family Services,Childrens Health & Famly Serv,Extended Services,Printing Station & Gen Off Exp,Books Stat & Equip(Ed) Pchse,JN01,31/12/2010,2996409,745.18,Revenue,JJB SPORTS PLC,111486
North East Lincolnshire Council,http://statistics.data.gov.uk/id/local-authority/00FC,Children & Family Services,Childrens Health & Famly Serv,Extended Services,Printing Station & Gen Off Exp,Books Stat & Equip(Ed) Pchse,JN01,16/12/2010,2986791,770.08,Revenue,JJB SPORTS PLC,111486
North East Lincolnshire Council,http://statistics.data.gov.uk/id/local-authority/00FC,Children & Family Services,Childrens Health & Famly Serv,Extended Services,Printing Station & Gen Off Exp,Books Stat & Equip(Ed) Pchse,JN01,20/12/2010,2991951,781.91,Revenue,JJB SPORTS PLC,111486
North East Lincolnshire Council,http://statistics.data.gov.uk/id/local-authority/00FC,Children & Family Services,Childrens Health & Famly Serv,Extended Services,Printing Station & Gen Off Exp,Books Stat & Equip(Ed) Pchse,JN01,31/12/2010,2997525,792.72,Revenue,JJB SPORTS PLC,111486
North East Lincolnshire Council,http://statistics.data.gov.uk/id/local-authority/00FC,Children & Family Services,Childrens Health & Famly Serv,Extended Services,Printing Station & Gen Off Exp,Books Stat & Equip(Ed) Pchse,JN01,31/12/2010,2997523,831.81,Revenue,JJB SPORTS PLC,111486
North East Lincolnshire Council,http://statistics.data.gov.uk/id/local-authority/00FC,Children & Family Services,Childrens Health & Famly Serv,Extended Services,Printing Station & Gen Off Exp,Books Stat & Equip(Ed) Pchse,JN01,16/12/2010,2986792,864.89,Revenue,JJB SPORTS PLC,111486
North East Lincolnshire Council,http://statistics.data.gov.uk/id/local-authority/00FC,Children & Family Services,Childrens Health & Famly Serv,Extended Services,Miscellaneous Expenses,Other Activities,MQ01,07/12/2010,2984827,REDACTED COMMERCIALLY SENSITIVE INFORMATION,Revenue,SLM COMMUNITY LEISURE LTD,134645
North East Lincolnshire Council,http://statistics.data.gov.uk/id/local-authority/00FC,Children & Family Services,Childrens Health & Famly Serv,Extended Services,Miscellaneous Expenses,Other Activities,MQ01,31/12/2010,2996848,REDACTED COMMERCIALLY SENSITIVE INFORMATION,Revenue,SLM COMMUNITY LEISURE LTD,134645
North East Lincolnshire Council,http://statistics.data.gov.uk/id/local-authority/00FC,Children & Family Services,Childrens Health & Famly Serv,Extended Services,Miscellaneous Expenses,Other Activities,MQ01,31/12/2010,2996842,"1,373.38",Revenue,HAVELOCK ACADEMY,170096
North East Lincolnshire Council,http://statistics.data.gov.uk/id/local-authority/00FC,Children & Family Services,Childrens Health & Famly Serv,Extended Services,Miscellaneous Expenses,Other Activities,MQ01,07/12/2010,2984829,REDACTED COMMERCIALLY SENSITIVE INFORMATION,Revenue,SLM COMMUNITY LEISURE LTD,134645
North East Lincolnshire Council,http://statistics.data.gov.uk/id/local-authority/00FC,Children & Family Services,Childrens Health & Famly Serv,Extended Services,Miscellaneous Expenses,Other Activities,MQ01,13/12/2010,2987454,REDACTED COMMERCIALLY SENSITIVE INFORMATION,Revenue,SLM COMMUNITY LEISURE LTD,132853
North East Lincolnshire Council,http://statistics.data.gov.uk/id/local-authority/00FC,Children & Family Services,Childrens Health & Famly Serv,Primary Care Provision,Private Contractors,Outside Contractors,QH01,20/12/2010,2992821,"3,000.00",Revenue,REDACTED PERSONAL DATA,REDACTED PERSONAL DATA
North East Lincolnshire Council,http://statistics.data.gov.uk/id/local-authority/00FC,Children & Family Services,Childrens Health & Famly Serv,Childrens Health Provision,Printing Station & Gen Off Exp,Print & Stat General,LA01,21/12/2010,2993665,523.92,Revenue,UNITED CARLTON OFFICE SYSTEMS LTD,161525
North East Lincolnshire Council,http://statistics.data.gov.uk/id/local-authority/00FC,Children & Family Services,Childrens Health & Famly Serv,Childrens Health Provision,Direct Employee Expenses,Pay Employment Agency Staff,AA53,16/12/2010,2991198,817.70,Revenue,ESP LTD,132218
North East Lincolnshire Council,http://statistics.data.gov.uk/id/local-authority/00FC,Children & Family Services,Childrens Health & Famly Serv,Childrens Health Provision,Direct Employee Expenses,Pay Employment Agency Staff,AA53,21/12/2010,2993685,817.70,Revenue,ESP LTD,132218
North East Lincolnshire Council,http://statistics.data.gov.uk/id/local-authority/00FC,Children & Family Services,Childrens Health & Famly Serv,Childrens Health Provision,Indirect Employee Expenses,Train Basic Skill - Course Fee,BX01,31/12/2010,2997034,960.00,Revenue,S2S RECRUIT & DEVELOP LTD,181366
North East Lincolnshire Council,http://statistics.data.gov.uk/id/local-authority/00FC,Children & Family Services,Childrens Health & Famly Serv,Childrens Health Provision,Consultants,Consult Work Consult+Special,PG01,21/12/2010,2993568,"1,000.00",Revenue,REDACTED PERSONAL DATA,REDACTED PERSONAL DATA
North East Lincolnshire Council,http://statistics.data.gov.uk/id/local-authority/00FC,Children & Family Services,Childrens Health & Famly Serv,Childrens Health Provision,Consultants,Consult Work Consult+Special,PG01,21/12/2010,2993569,"5,062.50",Revenue,OUTCOMES UK LTD,153183
North East Lincolnshire Council,http://statistics.data.gov.uk/id/local-authority/00FC,Children & Family Services,Childrens Health & Famly Serv,Childrens Health Provision,Consultants,Consult Work Consult+Special,PG01,21/12/2010,2993571,"15,625.00",Revenue,OUTCOMES UK LTD,153183
North East Lincolnshire Council,http://statistics.data.gov.uk/id/local-authority/00FC,Children & Family Services,Childrens Health & Famly Serv,Childrens Health Provision,Private Contractors,Outside Contractors,QH01,21/12/2010,2994126,"6,305.00",Revenue,HOMESTART N E LINCS LTD,86497
North East Lincolnshire Council,http://statistics.data.gov.uk/id/local-authority/00FC,Children & Family Services,Childrens Health & Famly Serv,Childrens Health Provision,Communication & Computing,Comp Equip Purchases,HK01,20/12/2010,2992114,"4,123.00",Revenue,NORTH EAST LINCOLNSHIRE PRIMARY CARE TRUST,155381
North East Lincolnshire Council,http://statistics.data.gov.uk/id/local-authority/00FC,Children & Family Services,Childrens Health & Famly Serv,Childrens Health Provision,Private Contractors,Children And Families Tpp,QC01,31/12/2010,2997471,"1,025.00",Revenue,NORTHERN LINCOLNSHIRE & GOOLE HOSPITALS,132777
North East Lincolnshire Council,http://statistics.data.gov.uk/id/local-authority/00FC,Children & Family Services,Childrens Health & Famly Serv,Childrens Health Provision,Private Contractors,Outside Contractors,QH01,31/12/2010,2996357,"43,254.00",Revenue,NORTH EAST LINCOLNSHIRE PRIMARY CARE TRUST,155381
North East Lincolnshire Council,http://statistics.data.gov.uk/id/local-authority/00FC,Children & Family Services,Childrens Health & Famly Serv,Childrens Health Provision,Consultants,Consult Work Consult+Special,PG01,31/12/2010,2997472,"2,450.00",Revenue,REDACTED PERSONAL DATA,REDACTED PERSONAL DATA
North East Lincolnshire Council,http://statistics.data.gov.uk/id/local-authority/00FC,Children & Family Services,Childrens Health & Famly Serv,Childrens Health Provision,Private Contractors,Outside Contractors,QH01,31/12/2010,2996282,"1,358.76",Revenue,NORTH EAST LINCOLNSHIRE PRIMARY CARE TRUST,155381
North East Lincolnshire Council,http://statistics.data.gov.uk/id/local-authority/00FC,Children & Family Services,Childrens Health & Famly Serv,Childrens Health Provision,Private Contractors,Outside Contractors,QH01,31/12/2010,2996282,"1,368.35",Revenue,NORTH EAST LINCOLNSHIRE PRIMARY CARE TRUST,155381
North East Lincolnshire Council,http://statistics.data.gov.uk/id/local-authority/00FC,Children & Family Services,Childrens Health & Famly Serv,Childrens Health Provision,Private Contractors,Outside Contractors,QH01,31/12/2010,2996282,"1,865.05",Revenue,NORTH EAST LINCOLNSHIRE PRIMARY CARE TRUST,155381
North East Lincolnshire Council,http://statistics.data.gov.uk/id/local-authority/00FC,Children & Family Services,Childrens Health & Famly Serv,Childrens Health Provision,Direct Employee Expenses,Pay Youth Workers P/T,AA10,16/12/2010,2990944,"1,991.02",Revenue,NORTH EAST LINCOLNSHIRE PRIMARY CARE TRUST,155381
North East Lincolnshire Council,http://statistics.data.gov.uk/id/local-authority/00FC,Children & Family Services,Childrens Health & Famly Serv,Childrens Health Provision,Direct Employee Expenses,Pay Youth Workers P/T,AA10,16/12/2010,2990944,"2,847.16",Revenue,NORTH EAST LINCOLNSHIRE PRIMARY CARE TRUST,155381
North East Lincolnshire Council,http://statistics.data.gov.uk/id/local-authority/00FC,Children & Family Services,Childrens Health & Famly Serv,Childrens Centre Development,Repairs & Maintenance,R & M Build General,CA01,31/12/2010,2996730,561.68,Revenue,HONEYWELL CONTROL SYSTEMS LTD,33185
North East Lincolnshire Council,http://statistics.data.gov.uk/id/local-authority/00FC,Children & Family Services,Childrens Health & Famly Serv,Childrens Centre Development,Repairs & Maintenance,R & M Build General,CA01,21/12/2010,2993821,641.00,Revenue,ARK JOINERY AND BUILDING MAINTENANCE LTD,117879
North East Lincolnshire Council,http://statistics.data.gov.uk/id/local-authority/00FC,Children & Family Services,Childrens Health & Famly Serv,Childrens Centre Development,Energy Costs,Gas,FA01,22/12/2010,2995177,805.49,Revenue,BRITISH GAS TRADING LTD,154726
North East Lincolnshire Council,http://statistics.data.gov.uk/id/local-authority/00FC,Children & Family Services,Childrens Health & Famly Serv,Childrens Centre Development,Energy Costs,Electricity General,FB01,09/12/2010,2985842,"1,101.53",Revenue,NPOWER LIMITED,147188
North East Lincolnshire Council,http://statistics.data.gov.uk/id/local-authority/00FC,Children & Family Services,Childrens Health & Famly Serv,Childrens Centre Development,Cleaning & Domestic Supplies,Cleaning Materials General,FP01,03/12/2010,2982998,-49.48,Revenue,PETER HOGARTH & SONS LTD,63011
North East Lincolnshire Council,http://statistics.data.gov.uk/id/local-authority/00FC,Children & Family Services,Childrens Health & Famly Serv,Childrens Centre Development,Cleaning & Domestic Supplies,Ocs General Cleaning,FQ01,03/12/2010,2983124,661.50,Revenue,EASY CLEANS,133387
North East Lincolnshire Council,http://statistics.data.gov.uk/id/local-authority/00FC,Children & Family Services,Childrens Health & Famly Serv,Childrens Centre Development,Energy Costs,Electricity General,FB01,09/12/2010,2986453,661.54,Revenue,NPOWER LIMITED,147188
North East Lincolnshire Council,http://statistics.data.gov.uk/id/local-authority/00FC,Children & Family Services,Childrens Health & Famly Serv,Childrens Centre Development,Energy Costs,Gas,FA01,13/12/2010,2987392,"1,119.36",Revenue,PHS GROUP LTD,1897
North East Lincolnshire Council,http://statistics.data.gov.uk/id/local-authority/00FC,Children & Family Services,Childrens Health & Famly Serv,Childrens Centre Development,Cleaning & Domestic Supplies,Ocs General Cleaning,FQ01,03/12/2010,2983119,525.31,Revenue,EASY CLEANS,133387
North East Lincolnshire Council,http://statistics.data.gov.uk/id/local-authority/00FC,Children & Family Services,Childrens Health & Famly Serv,Childrens Centre Development,Cleaning & Domestic Supplies,Ocs General Cleaning,FQ01,31/12/2010,2996774,525.31,Revenue,EASY CLEANS,133387
North East Lincolnshire Council,http://statistics.data.gov.uk/id/local-authority/00FC,Children & Family Services,Childrens Health & Famly Serv,Childrens Centre Development,Repairs & Maintenance,R & M Build General,CA01,13/12/2010,2987679,"1,446.00",Revenue,LUDAFLORS,1565
North East Lincolnshire Council,http://statistics.data.gov.uk/id/local-authority/00FC,Children & Family Services,Childrens Health & Famly Serv,Childrens Centre Development,Energy Costs,Electricity General,FB01,09/12/2010,2986239,"1,141.12",Revenue,NPOWER LIMITED,147188
North East Lincolnshire Council,http://statistics.data.gov.uk/id/local-authority/00FC,Children & Family Services,Childrens Health & Famly Serv,Childrens Centre Development,Energy Costs,Electricity General,FB01,15/12/2010,2989684,692.30,Revenue,NPOWER LIMITED,147188
North East Lincolnshire Council,http://statistics.data.gov.uk/id/local-authority/00FC,Children & Family Services,Childrens Health & Famly Serv,Childrens Centre Development,Repairs & Maintenance,R & M Build General,CA01,13/12/2010,2987373,651.57,Revenue,EXCELL ELECTRICAL CONTRACTORS,16811
North East Lincolnshire Council,http://statistics.data.gov.uk/id/local-authority/00FC,Children & Family Services,Childrens Health & Famly Serv,Childrens Centre Development,Energy Costs,Electricity General,FB01,09/12/2010,2985553,"1,735.73",Revenue,NPOWER LIMITED,147188
North East Lincolnshire Council,http://statistics.data.gov.uk/id/local-authority/00FC,Children & Family Services,Childrens Health & Famly Serv,Childrens Centre Development,Energy Costs,Electricity General,FB01,03/12/2010,2983175,978.20,Revenue,NPOWER LIMITED,147188
North East Lincolnshire Council,http://statistics.data.gov.uk/id/local-authority/00FC,Children & Family Services,Childrens Health & Famly Serv,Childrens Centre Development,Repairs & Maintenance,R & M Build General,CA01,09/12/2010,2985549,795.00,Revenue,ETON-LINCS LIMITED,155368
North East Lincolnshire Council,http://statistics.data.gov.uk/id/local-authority/00FC,Children & Family Services,Childrens Health & Famly Serv,Childrens Centre Development,Rates,Rates,FK01,15/12/2010,2989740,"1,022.62",Revenue,NORTH EAST LINCOLNSHIRE COUNCIL,80624
North East Lincolnshire Council,http://statistics.data.gov.uk/id/local-authority/00FC,Children & Family Services,Childrens Health & Famly Serv,Childrens Centre Development,Repairs & Maintenance,R & M Build General,CA01,13/12/2010,2987680,"2,090.00",Revenue,HAITH'S HEATING LTD,140813
North East Lincolnshire Council,http://statistics.data.gov.uk/id/local-authority/00FC,Children & Family Services,Childrens Health & Famly Serv,Childrens Centre Development,Printing Station & Gen Off Exp,Books Stat & Equip(Ed) Pchse,JN01,22/12/2010,2994475,-10.00,Revenue,ARGOS BUSINESS SOLUTIONS,106806
North East Lincolnshire Council,http://statistics.data.gov.uk/id/local-authority/00FC,Children & Family Services,Childrens Health & Famly Serv,Childrens Centre Development,Other Agencies,Child Care Payments,PM01,21/12/2010,2993714,906.00,Revenue,PRECIOUS TIMES CHILDCARE SERVICES,147302
North East Lincolnshire Council,http://statistics.data.gov.uk/id/local-authority/00FC,Children & Family Services,Childrens Health & Famly Serv,Childrens Centre Development,Other Agencies,Child Care Payments,PM01,21/12/2010,2993720,"1,108.00",Revenue,PRECIOUS TIMES CHILDCARE SERVICES,147302
North East Lincolnshire Council,http://statistics.data.gov.uk/id/local-authority/00FC,Children & Family Services,Childrens Health & Famly Serv,Childrens Centre Development,Catering,Provisions General,KG01,06/12/2010,2983615,"1,000.00",Revenue,TESCO STORES LIMITED,179643
North East Lincolnshire Council,http://statistics.data.gov.uk/id/local-authority/00FC,Children & Family Services,Childrens Health & Famly Serv,Childrens Centre Development,Other Agencies,Child Care Payments,PM01,07/12/2010,2983860,"1,603.16",Revenue,PRE SCHOOL LEARNING ALLIANCE,149980
North East Lincolnshire Council,http://statistics.data.gov.uk/id/local-authority/00FC,Children & Family Services,Childrens Health & Famly Serv,Childrens Centre Development,Miscellaneous Expenses,Other Activities,MQ01,21/12/2010,2993551,REDACTED COMMERCIALLY SENSITIVE INFORMATION,Revenue,SLM COMMUNITY LEISURE LTD,134645
North East Lincolnshire Council,http://statistics.data.gov.uk/id/local-authority/00FC,Children & Family Services,Childrens Health & Famly Serv,Childrens Centre Development,Printing Station & Gen Off Exp,Books Stat & Equip(Ed) Pchse,JN01,31/12/2010,2996573,514.90,Revenue,ROMPA INTERNATIONAL,44266
North East Lincolnshire Council,http://statistics.data.gov.uk/id/local-authority/00FC,Children & Family Services,Childrens Health & Famly Serv,Childrens Centre Development,Repairs & Maintenance,R & M Build General,CA01,31/12/2010,2996752,"1,459.00",Revenue,EXPERT RADIOLINK SECURITY,159728
North East Lincolnshire Council,http://statistics.data.gov.uk/id/local-authority/00FC,Children & Family Services,Childrens Health & Famly Serv,Childrens Centre Development,Printing Station & Gen Off Exp,Postages,LE01,31/12/2010,2997157,"1,245.50",Revenue,LYRECO UK LIMITED,117289
North East Lincolnshire Council,http://statistics.data.gov.uk/id/local-authority/00FC,Children & Family Services,Childrens Health & Famly Serv,Childrens Centre Development,Other Agencies,Child Care Payments,PM01,13/12/2010,2987866,"2,785.30",Revenue,FIRST STEPS GRIMSBY LIMITED,147040
North East Lincolnshire Council,http://statistics.data.gov.uk/id/local-authority/00FC,Children & Family Services,Childrens Health & Famly Serv,Childrens Centre Development,Other Agencies,Child Care Payments,PM01,31/12/2010,2996840,"3,630.25",Revenue,FIRST STEPS GRIMSBY LIMITED,147040
North East Lincolnshire Council,http://statistics.data.gov.uk/id/local-authority/00FC,Children & Family Services,Childrens Health & Famly Serv,Childrens Centre Development,Other Agencies,Child Care Payments,PM01,13/12/2010,2987867,"3,646.90",Revenue,FIRST STEPS GRIMSBY LIMITED,147040
North East Lincolnshire Council,http://statistics.data.gov.uk/id/local-authority/00FC,Children & Family Services,Childrens Health & Famly Serv,Childrens Centre Development,Equipment/Furniture/Materials,Equip Health Ed & Home Safety,HC33,08/12/2010,2985576,-165.50,Revenue,PADGETT BROS (AZ) LTD,176910
North East Lincolnshire Council,http://statistics.data.gov.uk/id/local-authority/00FC,Children & Family Services,Childrens Health & Famly Serv,Childrens Centre Development,Other Agencies,Educational Visits,NH02,15/12/2010,2990353,-100.00,Revenue,WOODYS FANCY DRESS,181192
North East Lincolnshire Council,http://statistics.data.gov.uk/id/local-authority/00FC,Children & Family Services,Childrens Health & Famly Serv,Childrens Centre Development,Equipment/Furniture/Materials,Equip Health Ed & Home Safety,HC33,08/12/2010,2985576,-28.96,Revenue,PADGETT BROS (AZ) LTD,176910
North East Lincolnshire Council,http://statistics.data.gov.uk/id/local-authority/00FC,Children & Family Services,Childrens Health & Famly Serv,Childrens Centre Development,Other Agencies,Child Care Payments,PM01,14/12/2010,2988117,558.28,Revenue,FOR UNDER FIVES,169461
North East Lincolnshire Council,http://statistics.data.gov.uk/id/local-authority/00FC,Children & Family Services,Childrens Health & Famly Serv,Childrens Centre Development,Other Agencies,Child Care Payments,PM01,14/12/2010,2988116,576.60,Revenue,FOR UNDER FIVES,169461
North East Lincolnshire Council,http://statistics.data.gov.uk/id/local-authority/00FC,Children & Family Services,Childrens Health & Famly Serv,Childrens Centre Development,Equipment/Furniture/Materials,Off Equip Photocop Rent/Copies,HN71,14/12/2010,2988111,772.96,Revenue,UNITED CARLTON OFFICE SYSTEMS LTD,161525
North East Lincolnshire Council,http://statistics.data.gov.uk/id/local-authority/00FC,Children & Family Services,Childrens Health & Famly Serv,Childrens Centre Development,Indirect Employee Expenses,Train Basic Skill - Course Fee,BX01,31/12/2010,2997482,"1,166.00",Revenue,GRIMSBY INSTITUTE OF FURTHER &,155403
North East Lincolnshire Council,http://statistics.data.gov.uk/id/local-authority/00FC,Children & Family Services,Childrens Health & Famly Serv,Childrens Centre Development,Other Agencies,Child Care Payments,PM01,13/12/2010,2987808,739.40,Revenue,PRE SCHOOL LEARNING ALLIANCE,149980
North East Lincolnshire Council,http://statistics.data.gov.uk/id/local-authority/00FC,Children & Family Services,Childrens Health & Famly Serv,Childrens Centre Development,Other Agencies,Child Care Payments,PM01,13/12/2010,2987806,815.01,Revenue,PRE SCHOOL LEARNING ALLIANCE,149980
North East Lincolnshire Council,http://statistics.data.gov.uk/id/local-authority/00FC,Children & Family Services,Childrens Health & Famly Serv,Childrens Centre Development,Other Agencies,Child Care Payments,PM01,14/12/2010,2988110,-172.50,Revenue,PRE SCHOOL LEARNING ALLIANCE,149980
North East Lincolnshire Council,http://statistics.data.gov.uk/id/local-authority/00FC,Children & Family Services,Childrens Health & Famly Serv,Childrens Centre Development,Other Agencies,Child Care Payments,PM01,16/12/2010,2986795,873.09,Revenue,PRE SCHOOL LEARNING ALLIANCE,149980
North East Lincolnshire Council,http://statistics.data.gov.uk/id/local-authority/00FC,Children & Family Services,Childrens Health & Famly Serv,Childrens Centre Development,Other Agencies,Child Care Payments,PM01,13/12/2010,2987390,917.96,Revenue,PRE SCHOOL LEARNING ALLIANCE,149980
North East Lincolnshire Council,http://statistics.data.gov.uk/id/local-authority/00FC,Children & Family Services,Childrens Health & Famly Serv,Childrens Centre Development,Equipment/Furniture/Materials,Furniture Purchases,HA01,08/12/2010,2985305,960.00,Revenue,SYLVESTER-KEAL LTD,13580
North East Lincolnshire Council,http://statistics.data.gov.uk/id/local-authority/00FC,Children & Family Services,Childrens Health & Famly Serv,Childrens Centre Development,Miscellaneous Expenses,Other Activities,MQ01,20/12/2010,2992676,706.64,Revenue,TECHNOLOGY TEACHING SYSTEMS LTD,100543
North East Lincolnshire Council,http://statistics.data.gov.uk/id/local-authority/00FC,Children & Family Services,Childrens Health & Famly Serv,Childrens Centre Development,Printing Station & Gen Off Exp,Print & Stat General,LA01,21/12/2010,2994265,748.28,Revenue,LYRECO UK LIMITED,117289
North East Lincolnshire Council,http://statistics.data.gov.uk/id/local-authority/00FC,Children & Family Services,Childrens Health & Famly Serv,Childrens Centre Development,Private Contractors,Outside Contractors,QH01,09/12/2010,2986154,"3,580.00",Revenue,NORTHERN LINCOLNSHIRE & GOOLE HOSPITALS,132777
North East Lincolnshire Council,http://statistics.data.gov.uk/id/local-authority/00FC,Children & Family Services,Childrens Health & Famly Serv,Childrens Centre Development,Private Contractors,Outside Contractors,QH01,09/12/2010,2986155,"7,222.00",Revenue,NORTHERN LINCOLNSHIRE & GOOLE HOSPITALS,132777
North East Lincolnshire Council,http://statistics.data.gov.uk/id/local-authority/00FC,Children & Family Services,Childrens Health & Famly Serv,Childrens Centre Development,Private Contractors,Outside Contractors,QH01,09/12/2010,2986155,"11,936.00",Revenue,NORTHERN LINCOLNSHIRE & GOOLE HOSPITALS,132777
North East Lincolnshire Council,http://statistics.data.gov.uk/id/local-authority/00FC,Children & Family Services,Childrens Health & Famly Serv,Childrens Centre Development,Other Agencies,Child Care Payments,PM01,09/12/2010,2986338,512.50,Revenue,PRE SCHOOL LEARNING ALLIANCE,149980
North East Lincolnshire Council,http://statistics.data.gov.uk/id/local-authority/00FC,Children & Family Services,Childrens Health & Famly Serv,Childrens Centre Development,Equipment/Furniture/Materials,Off Equip Photocop Rent/Copies,HN71,09/12/2010,2985843,"1,584.00",Revenue,UNITED CARLTON OFFICE SYSTEMS LTD,161525
North East Lincolnshire Council,http://statistics.data.gov.uk/id/local-authority/00FC,Children & Family Services,Childrens Health & Famly Serv,Int Local Service Delivery,Miscellaneous Income,Contribution From Other Source,UY09,09/12/2010,2986153,"-21,700.00",Revenue,NORTHERN LINCOLNSHIRE & GOOLE HOSPITALS,132777
North East Lincolnshire Council,http://statistics.data.gov.uk/id/local-authority/00FC,Children & Family Services,Childrens Health & Famly Serv,Int Local Service Delivery,Miscellaneous Income,Contribution From Other Source,UY09,09/12/2010,2986152,"-10,757.00",Revenue,NORTHERN LINCOLNSHIRE & GOOLE HOSPITALS,132777
North East Lincolnshire Council,http://statistics.data.gov.uk/id/local-authority/00FC,Children & Family Services,Childrens Health & Famly Serv,Int Local Service Delivery,Other Agencies,Agen Ser Priv Gp Independ Prov,PQ02,21/12/2010,2994374,774.50,Revenue,SILK GROUP,158904
North East Lincolnshire Council,http://statistics.data.gov.uk/id/local-authority/00FC,Children & Family Services,Childrens Health & Famly Serv,Int Local Service Delivery,Other Agencies,Agen Ser Priv Gp Independ Prov,PQ02,21/12/2010,2994375,849.50,Revenue,SILK GROUP,158904
North East Lincolnshire Council,http://statistics.data.gov.uk/id/local-authority/00FC,Children & Family Services,Childrens Health & Famly Serv,Int Local Service Delivery,Other Agencies,Agen Ser Priv Gp Independ Prov,PQ02,21/12/2010,2994116,870.00,Revenue,GRIMSBY & SCUNTHORPE MEDIA GROUP LTD,166016
North East Lincolnshire Council,http://statistics.data.gov.uk/id/local-authority/00FC,Children & Family Services,Childrens Health & Famly Serv,Int Local Service Delivery,Other Agencies,Agen Ser Priv Gp Independ Prov,PQ02,31/12/2010,2996345,936.00,Revenue,HUMBERSTON VILLAGE NURSERY,170820
North East Lincolnshire Council,http://statistics.data.gov.uk/id/local-authority/00FC,Children & Family Services,Childrens Health & Famly Serv,Int Local Service Delivery,Expenses,Trav/Subs Govern Conf Fees,MC01,09/12/2010,2985840,"1,000.00",Revenue,THE FOUNDATION STAGE FORUM,162409
North East Lincolnshire Council,http://statistics.data.gov.uk/id/local-authority/00FC,Children & Family Services,Childrens Health & Famly Serv,Int Local Service Delivery,Other Agencies,Agen Ser Priv Gp Independ Prov,PQ02,31/12/2010,2996336,"1,170.00",Revenue,FOR UNDER FIVES LTD,35461
North East Lincolnshire Council,http://statistics.data.gov.uk/id/local-authority/00FC,Children & Family Services,Childrens Health & Famly Serv,Int Local Service Delivery,Other Agencies,Agen Ser Priv Gp Independ Prov,PQ02,31/12/2010,2996329,"1,404.00",Revenue,FOR UNDER FIVES LTD,35461
North East Lincolnshire Council,http://statistics.data.gov.uk/id/local-authority/00FC,Children & Family Services,Childrens Health & Famly Serv,Int Local Service Delivery,Other Agencies,Agen Ser Priv Gp Independ Prov,PQ02,31/12/2010,2996315,"1,521.00",Revenue,THE AVENUE PLAYGROUP,89088
North East Lincolnshire Council,http://statistics.data.gov.uk/id/local-authority/00FC,Children & Family Services,Childrens Health & Famly Serv,Int Local Service Delivery,Other Agencies,Agen Ser Priv Gp Independ Prov,PQ02,31/12/2010,2996334,"1,638.00",Revenue,EAST RAVENDALE PRE SCHOOL,85911
North East Lincolnshire Council,http://statistics.data.gov.uk/id/local-authority/00FC,Children & Family Services,Childrens Health & Famly Serv,Int Local Service Delivery,Other Agencies,Agen Ser Priv Gp Independ Prov,PQ02,31/12/2010,2996324,"1,872.00",Revenue,FIRST STEPS GRIMSBY LIMITED,147040
North East Lincolnshire Council,http://statistics.data.gov.uk/id/local-authority/00FC,Children & Family Services,Childrens Health & Famly Serv,Int Local Service Delivery,Other Agencies,Agen Ser Priv Gp Independ Prov,PQ02,31/12/2010,2996350,"1,872.00",Revenue,READY TEDDY GO,89097
North East Lincolnshire Council,http://statistics.data.gov.uk/id/local-authority/00FC,Children & Family Services,Childrens Health & Famly Serv,Int Local Service Delivery,Other Agencies,Agen Ser Priv Gp Independ Prov,PQ02,31/12/2010,2996348,"1,872.00",Revenue,FOR UNDER FIVES LTD,35461
North East Lincolnshire Council,http://statistics.data.gov.uk/id/local-authority/00FC,Children & Family Services,Childrens Health & Famly Serv,Int Local Service Delivery,Other Agencies,Agen Ser Priv Gp Independ Prov,PQ02,31/12/2010,2996339,"1,989.00",Revenue,FOR UNDER FIVES LTD,35461
North East Lincolnshire Council,http://statistics.data.gov.uk/id/local-authority/00FC,Children & Family Services,Childrens Health & Famly Serv,Int Local Service Delivery,Other Agencies,Agen Ser Priv Gp Independ Prov,PQ02,31/12/2010,2996310,"2,106.00",Revenue,WENDOVER PRE-SCHOOL,141650
North East Lincolnshire Council,http://statistics.data.gov.uk/id/local-authority/00FC,Children & Family Services,Childrens Health & Famly Serv,Int Local Service Delivery,Other Agencies,Agen Ser Priv Gp Independ Prov,PQ02,31/12/2010,2996347,"2,106.00",Revenue,LITTLE LEGS DAYCARE,164417
North East Lincolnshire Council,http://statistics.data.gov.uk/id/local-authority/00FC,Children & Family Services,Childrens Health & Famly Serv,Int Local Service Delivery,Other Agencies,Agen Ser Priv Gp Independ Prov,PQ02,31/12/2010,2996341,"2,340.00",Revenue,HEALING VILLAGE NURSERY,114730
North East Lincolnshire Council,http://statistics.data.gov.uk/id/local-authority/00FC,Children & Family Services,Childrens Health & Famly Serv,Int Local Service Delivery,Other Agencies,Agen Ser Priv Gp Independ Prov,PQ02,31/12/2010,2996338,"2,340.00",Revenue,FOR UNDER FIVES LTD,35461
North East Lincolnshire Council,http://statistics.data.gov.uk/id/local-authority/00FC,Children & Family Services,Childrens Health & Famly Serv,Int Local Service Delivery,Other Agencies,Agen Ser Priv Gp Independ Prov,PQ02,31/12/2010,2996307,"2,808.00",Revenue,PRECIOUS TIMES CHILDCARE SERVICES,147302
North East Lincolnshire Council,http://statistics.data.gov.uk/id/local-authority/00FC,Children & Family Services,Childrens Health & Famly Serv,Int Local Service Delivery,Other Agencies,Agen Ser Priv Gp Independ Prov,PQ02,31/12/2010,2996318,"2,808.00",Revenue,ST MARTINS PREPARATORY SCHOOL,79441
North East Lincolnshire Council,http://statistics.data.gov.uk/id/local-authority/00FC,Children & Family Services,Childrens Health & Famly Serv,Int Local Service Delivery,Other Agencies,Agen Ser Priv Gp Independ Prov,PQ02,31/12/2010,2996343,"2,808.00",Revenue,CHAPPILLS DAY NURSERY,100800
North East Lincolnshire Council,http://statistics.data.gov.uk/id/local-authority/00FC,Children & Family Services,Childrens Health & Famly Serv,Int Local Service Delivery,Other Agencies,Agen Ser Priv Gp Independ Prov,PQ02,31/12/2010,2996319,"3,276.00",Revenue,ST MARGARETS PRE-SCHOOL,163619
North East Lincolnshire Council,http://statistics.data.gov.uk/id/local-authority/00FC,Children & Family Services,Childrens Health & Famly Serv,Int Local Service Delivery,Other Agencies,Agen Ser Priv Gp Independ Prov,PQ02,31/12/2010,2996317,"3,510.00",Revenue,ST PETERS CHILDREN CENTRE,138853
North East Lincolnshire Council,http://statistics.data.gov.uk/id/local-authority/00FC,Children & Family Services,Childrens Health & Famly Serv,Int Local Service Delivery,Other Agencies,Agen Ser Priv Gp Independ Prov,PQ02,31/12/2010,2996333,"3,627.00",Revenue,CLEETHORPES CHILDCARE,159467
North East Lincolnshire Council,http://statistics.data.gov.uk/id/local-authority/00FC,Children & Family Services,Childrens Health & Famly Serv,Int Local Service Delivery,Other Agencies,Agen Ser Priv Gp Independ Prov,PQ02,31/12/2010,2996320,"4,212.00",Revenue,ST JAMES SCHOOL,85862
North East Lincolnshire Council,http://statistics.data.gov.uk/id/local-authority/00FC,Children & Family Services,Childrens Health & Famly Serv,Int Local Service Delivery,Other Agencies,Agen Ser Priv Gp Independ Prov,PQ02,31/12/2010,2996335,"4,212.00",Revenue,CLOVERFIELDS PRE SCHOOL,89090
North East Lincolnshire Council,http://statistics.data.gov.uk/id/local-authority/00FC,Children & Family Services,Childrens Health & Famly Serv,Int Local Service Delivery,Other Agencies,Agen Ser Priv Gp Independ Prov,PQ02,31/12/2010,2996349,"4,680.00",Revenue,CLEETHORPES CHILDCARE,159467
North East Lincolnshire Council,http://statistics.data.gov.uk/id/local-authority/00FC,Children & Family Services,Childrens Health & Famly Serv,Int Local Service Delivery,Other Agencies,Agen Ser Priv Gp Independ Prov,PQ02,31/12/2010,2996308,"4,680.00",Revenue,NEW WALTHAM TRACKERS PLAYGROUP,89096
North East Lincolnshire Council,http://statistics.data.gov.uk/id/local-authority/00FC,Children & Family Services,Childrens Health & Famly Serv,Int Local Service Delivery,Other Agencies,Agen Ser Priv Gp Independ Prov,PQ02,31/12/2010,2996314,"4,914.00",Revenue,THE CHILDRENS HOUSE,120224
North East Lincolnshire Council,http://statistics.data.gov.uk/id/local-authority/00FC,Children & Family Services,Childrens Health & Famly Serv,Int Local Service Delivery,Other Agencies,Agen Ser Priv Gp Independ Prov,PQ02,31/12/2010,2996309,"5,148.00",Revenue,GRIMSBY INSTITUTE FOR FHE,161404
North East Lincolnshire Council,http://statistics.data.gov.uk/id/local-authority/00FC,Children & Family Services,Childrens Health & Famly Serv,Int Local Service Delivery,Other Agencies,Agen Ser Priv Gp Independ Prov,PQ02,31/12/2010,2996311,"6,084.00",Revenue,WELHOLME PRE SCHOOL,134002
North East Lincolnshire Council,http://statistics.data.gov.uk/id/local-authority/00FC,Children & Family Services,Childrens Health & Famly Serv,Int Local Service Delivery,Other Agencies,Agen Ser Priv Gp Independ Prov,PQ02,31/12/2010,2996346,"8,190.00",Revenue,LISLE MARSDEN PRE-SCHOOL,151767
North East Lincolnshire Council,http://statistics.data.gov.uk/id/local-authority/00FC,Children & Family Services,Childrens Health & Famly Serv,Int Local Service Delivery,Other Agencies,Agen Ser Priv Gp Independ Prov,PQ02,31/12/2010,2996312,"9,360.00",Revenue,WALTHAM LEAS PRE SCHOOL,147304
North East Lincolnshire Council,http://statistics.data.gov.uk/id/local-authority/00FC,Children & Family Services,Childrens Health & Famly Serv,Int Local Service Delivery,Direct Employee Expenses,Pay Employment Agency Staff,AA53,31/12/2010,2996537,529.20,Revenue,ESP LTD,132218
North East Lincolnshire Council,http://statistics.data.gov.uk/id/local-authority/00FC,Children & Family Services,Childrens Health & Famly Serv,Int Local Service Delivery,Direct Employee Expenses,Pay Employment Agency Staff,AA53,21/12/2010,2993644,532.80,Revenue,ESP LTD,132218
North East Lincolnshire Council,http://statistics.data.gov.uk/id/local-authority/00FC,Children & Family Services,Childrens Health & Famly Serv,Int Local Service Delivery,Direct Employee Expenses,Pay Employment Agency Staff,AA53,20/12/2010,2992390,532.80,Revenue,ESP LTD,132218
North East Lincolnshire Council,http://statistics.data.gov.uk/id/local-authority/00FC,Children & Family Services,Childrens Health & Famly Serv,Int Local Service Delivery,Indirect Employee Expenses,Train Basic Skill - Course Fee,BX01,22/12/2010,2994909,"1,110.00",Revenue,MANATEC LTD,171662
North East Lincolnshire Council,http://statistics.data.gov.uk/id/local-authority/00FC,Children & Family Services,Childrens Health & Famly Serv,Int Local Service Delivery,Communication & Computing,Comp Equip Purchases,HK01,21/12/2010,2993564,"1,116.25",Revenue,TRIBAL TECHNOLOGY,150514
North East Lincolnshire Council,http://statistics.data.gov.uk/id/local-authority/00FC,Children & Family Services,Childrens Health & Famly Serv,Int Local Service Delivery,Equipment/Furniture/Materials,Off Equip Photocop Rent/Copies,HN71,09/12/2010,2986422,"1,204.76",Revenue,UNITED CARLTON OFFICE SYSTEMS LTD,161525
North East Lincolnshire Council,http://statistics.data.gov.uk/id/local-authority/00FC,Children & Family Services,Childrens Health & Famly Serv,Int Local Service Delivery,Indirect Employee Expenses,Train Basic Skill - Course Fee,BX01,20/12/2010,2992120,"1,350.00",Revenue,RGG ASSOCIATES,158286
North East Lincolnshire Council,http://statistics.data.gov.uk/id/local-authority/00FC,Children & Family Services,Childrens Health & Famly Serv,Int Local Service Delivery,Contributions To Provisions,Contributions To Funds,NV01,09/12/2010,2986463,"1,530.00",Revenue,BURSAR PRIMARY SCHOOL,134463
North East Lincolnshire Council,http://statistics.data.gov.uk/id/local-authority/00FC,Children & Family Services,Childrens Health & Famly Serv,Int Local Service Delivery,Communication & Computing,Comp Equip Purchases,HK01,21/12/2010,2993564,"3,348.75",Revenue,TRIBAL TECHNOLOGY,150514
North East Lincolnshire Council,http://statistics.data.gov.uk/id/local-authority/00FC,Children & Family Services,Childrens Health & Famly Serv,Int Local Service Delivery,Private Contractors,Outside Contractors,QH01,21/12/2010,2994126,"9,045.75",Revenue,HOMESTART N E LINCS LTD,86497
North East Lincolnshire Council,http://statistics.data.gov.uk/id/local-authority/00FC,Children & Family Services,Childrens Health & Famly Serv,Int Local Service Delivery,Private Contractors,Outside Contractors,QH01,09/12/2010,2986155,"8,592.00",Revenue,NORTHERN LINCOLNSHIRE & GOOLE HOSPITALS,132777
North East Lincolnshire Council,http://statistics.data.gov.uk/id/local-authority/00FC,Children & Family Services,Childrens Health & Famly Serv,Int Local Service Delivery,Contributions To Provisions,Contributions To Funds,NV01,21/12/2010,2993573,"1,188.22",Revenue,NSPCC,137561
North East Lincolnshire Council,http://statistics.data.gov.uk/id/local-authority/00FC,Children & Family Services,Childrens Health & Famly Serv,Int Local Service Delivery,Contributions To Provisions,Contributions To Funds,NV01,15/12/2010,2989749,"1,664.00",Revenue,PRIMARY ACTION,177629
North East Lincolnshire Council,http://statistics.data.gov.uk/id/local-authority/00FC,Children & Family Services,Childrens Health & Famly Serv,Int Local Service Delivery,Contributions To Provisions,Contributions To Funds,NV01,09/12/2010,2986314,"7,574.47",Revenue,STARLINE WINDOW CO,173551
North East Lincolnshire Council,http://statistics.data.gov.uk/id/local-authority/00FC,Children & Family Services,Childrens Health & Famly Serv,Int Local Service Delivery,Contributions To Provisions,Contributions To Funds,NV01,21/12/2010,2994432,842.55,Revenue,QUICK FIX GLASS LTD,88921
North East Lincolnshire Council,http://statistics.data.gov.uk/id/local-authority/00FC,Children & Family Services,Childrens Health & Famly Serv,Int Local Service Delivery,Indirect Employee Expenses,Train Basic Skill - Course Fee,BX01,21/12/2010,2993606,"1,380.00",Revenue,UNIVERSITY OF HUDDERSFIELD HEC,141857
North East Lincolnshire Council,http://statistics.data.gov.uk/id/local-authority/00FC,Children & Family Services,Inclusion And Standards,Standards & Effectiveness,Miscellaneous Expenses,Other Expenses General,NZ01,13/12/2010,2987408,"39,579.50",Revenue,BARNARDO SERVICES LTD,108910
North East Lincolnshire Council,http://statistics.data.gov.uk/id/local-authority/00FC,Children & Family Services,Inclusion And Standards,Standards & Effectiveness,Miscellaneous Expenses,Other Expenses General,NZ01,21/12/2010,2992902,"1,750.00",Revenue,NORTHERN EDUCATION,164259
North East Lincolnshire Council,http://statistics.data.gov.uk/id/local-authority/00FC,Children & Family Services,Inclusion And Standards,Standards & Effectiveness,Consultants,Consult Work Consult+Special,PG01,31/12/2010,2996817,"2,750.00",Revenue,REDACTED PERSONAL DATA,REDACTED PERSONAL DATA
North East Lincolnshire Council,http://statistics.data.gov.uk/id/local-authority/00FC,Children & Family Services,Inclusion And Standards,Standards & Effectiveness,Miscellaneous Expenses,Other Expenses General,NZ01,21/12/2010,2992905,"3,000.00",Revenue,REDACTED PERSONAL DATA,REDACTED PERSONAL DATA
North East Lincolnshire Council,http://statistics.data.gov.uk/id/local-authority/00FC,Children & Family Services,Inclusion And Standards,Standards & Effectiveness,Consultants,Consult Work Consult+Special,PG01,31/12/2010,2997492,"4,500.00",Revenue,STEVE COOK LTD,169580
North East Lincolnshire Council,http://statistics.data.gov.uk/id/local-authority/00FC,Children & Family Services,Inclusion And Standards,Standards & Effectiveness,Miscellaneous Expenses,Other Expenses General,NZ01,20/12/2010,2992527,"6,264.00",Revenue,OASIS ACADEMY WINTRINGHAM,169566
North East Lincolnshire Council,http://statistics.data.gov.uk/id/local-authority/00FC,Children & Family Services,Inclusion And Standards,Standards & Effectiveness,Equipment/Furniture/Materials,Equip Purchases,HC01,31/12/2010,2996528,"1,274.19",Revenue,LYRECO UK LIMITED,117289
North East Lincolnshire Council,http://statistics.data.gov.uk/id/local-authority/00FC,Children & Family Services,Inclusion And Standards,Standards & Effectiveness,Consultants,Consult Work Consult+Special,PG01,20/12/2010,2992047,725.00,Revenue,REDACTED PERSONAL DATA,REDACTED PERSONAL DATA
North East Lincolnshire Council,http://statistics.data.gov.uk/id/local-authority/00FC,Children & Family Services,Inclusion And Standards,Standards & Effectiveness,Consultants,Consult Work Consult+Special,PG01,31/12/2010,2997262,"1,075.00",Revenue,REDACTED PERSONAL DATA,REDACTED PERSONAL DATA
North East Lincolnshire Council,http://statistics.data.gov.uk/id/local-authority/00FC,Children & Family Services,Inclusion And Standards,Standards & Effectiveness,Equipment/Furniture/Materials,Equip Purchases,HC01,21/12/2010,2994281,679.00,Revenue,EDUCATION LINCS LTD,109818
North East Lincolnshire Council,http://statistics.data.gov.uk/id/local-authority/00FC,Children & Family Services,Inclusion And Standards,Standards & Effectiveness,Miscellaneous Expenses,Other Expenses General,NZ01,21/12/2010,2992902,"6,230.00",Revenue,NORTHERN EDUCATION,164259
North East Lincolnshire Council,http://statistics.data.gov.uk/id/local-authority/00FC,Children & Family Services,Inclusion And Standards,Standards & Effectiveness,Grants,Standards Fund Grant,UJ71,31/12/2010,2997180,"103,000.00",Revenue,WHITGIFT SCHOOL,75911
North East Lincolnshire Council,http://statistics.data.gov.uk/id/local-authority/00FC,Children & Family Services,Inclusion And Standards,Standards & Effectiveness,Consultants,Consult Work Consult+Special,PG01,31/12/2010,2996814,500.00,Revenue,REDACTED PERSONAL DATA,REDACTED PERSONAL DATA
North East Lincolnshire Council,http://statistics.data.gov.uk/id/local-authority/00FC,Children & Family Services,Inclusion And Standards,Standards & Effectiveness,Catering,Provisions General,KG01,13/12/2010,2987843,-8.45,Revenue,ANGLIA WOODS,50110
North East Lincolnshire Council,http://statistics.data.gov.uk/id/local-authority/00FC,Children & Family Services,Inclusion And Standards,Standards & Effectiveness,Expenses,Trav/Subs Off Other Offic Duty,MA05,20/12/2010,2992696,-58.64,Revenue,NYS CORPORATE,177749
North East Lincolnshire Council,http://statistics.data.gov.uk/id/local-authority/00FC,Children & Family Services,Inclusion And Standards,Standards & Effectiveness,Expenses,Trav/Subs Off Other Offic Duty,MA05,20/12/2010,2992699,-58.64,Revenue,NYS CORPORATE,177749
North East Lincolnshire Council,http://statistics.data.gov.uk/id/local-authority/00FC,Children & Family Services,Inclusion And Standards,Standards & Effectiveness,Consultants,Consult Work Consult+Special,PG01,21/12/2010,2992911,"2,341.90",Revenue,REDACTED PERSONAL DATA,REDACTED PERSONAL DATA
North East Lincolnshire Council,http://statistics.data.gov.uk/id/local-authority/00FC,Children & Family Services,Inclusion And Standards,Standards & Effectiveness,Contributions To Provisions,Contributions To Funds,NV01,06/12/2010,2983412,"3,420.00",Revenue,AVANT PARTNERSHIP LTD,174349
North East Lincolnshire Council,http://statistics.data.gov.uk/id/local-authority/00FC,Children & Family Services,Inclusion And Standards,Standards & Effectiveness,Contributions To Provisions,Contributions To Funds,NV01,31/12/2010,2996812,"3,840.00",Revenue,EAST RIDING OF YORKSHIRE,90893
North East Lincolnshire Council,http://statistics.data.gov.uk/id/local-authority/00FC,Children & Family Services,Inclusion And Standards,Standards & Effectiveness,Contributions To Provisions,Contributions To Funds,NV01,06/12/2010,2983410,"4,500.00",Revenue,AVANT PARTNERSHIP LTD,174349
North East Lincolnshire Council,http://statistics.data.gov.uk/id/local-authority/00FC,Children & Family Services,Inclusion And Standards,Standards & Effectiveness,Consultants,Consult Work Consult+Special,PG01,20/12/2010,2992706,"4,800.00",Revenue,REDACTED PERSONAL DATA,REDACTED PERSONAL DATA
North East Lincolnshire Council,http://statistics.data.gov.uk/id/local-authority/00FC,Children & Family Services,Inclusion And Standards,Standards & Effectiveness,Consultants,Consult Work Consult+Special,PG01,31/12/2010,2996813,"5,733.75",Revenue,ESCON,42504
North East Lincolnshire Council,http://statistics.data.gov.uk/id/local-authority/00FC,Children & Family Services,Inclusion And Standards,Standards & Effectiveness,Contributions To Provisions,Contributions To Funds,NV01,06/12/2010,2983411,"7,800.00",Revenue,AVANT PARTNERSHIP LTD,174349
North East Lincolnshire Council,http://statistics.data.gov.uk/id/local-authority/00FC,Children & Family Services,Inclusion And Standards,Standards & Effectiveness,Consultants,Consult Work Consult+Special,PG01,03/12/2010,2983007,"14,712.50",Revenue,ESCON,42504
North East Lincolnshire Council,http://statistics.data.gov.uk/id/local-authority/00FC,Children & Family Services,Inclusion And Standards,Standards & Effectiveness,Contributions To Provisions,Contributions To Funds,NV01,06/12/2010,2983409,"34,950.85",Revenue,EAST RIDING OF YORKSHIRE,90893
North East Lincolnshire Council,http://statistics.data.gov.uk/id/local-authority/00FC,Children & Family Services,Inclusion And Standards,Standards & Effectiveness,Consultants,Consult Work Consult+Special,PG01,31/12/2010,2996811,"1,000.00",Revenue,REDACTED PERSONAL DATA,REDACTED PERSONAL DATA
North East Lincolnshire Council,http://statistics.data.gov.uk/id/local-authority/00FC,Children & Family Services,Inclusion And Standards,Standards & Effectiveness,Consultants,Consult Work Consult+Special,PG01,20/12/2010,2992038,"2,800.00",Revenue,REDACTED PERSONAL DATA,REDACTED PERSONAL DATA
North East Lincolnshire Council,http://statistics.data.gov.uk/id/local-authority/00FC,Children & Family Services,Inclusion And Standards,Standards & Effectiveness,Consultants,Consult Work Consult+Special,PG01,20/12/2010,2992031,"12,323.82",Revenue,RED THEATRE COMPANY LTD,174964
North East Lincolnshire Council,http://statistics.data.gov.uk/id/local-authority/00FC,Children & Family Services,Inclusion And Standards,Standards & Effectiveness,Printing Station & Gen Off Exp,Books Stat & Equip(Ed) Pchse,JN01,09/12/2010,2986260,-9.51,Revenue,PHS GROUP LTD,1897
North East Lincolnshire Council,http://statistics.data.gov.uk/id/local-authority/00FC,Children & Family Services,Inclusion And Standards,Standards & Effectiveness,Miscellaneous Expenses,Other Expenses General,NZ01,22/12/2010,2995043,"2,313.50",Revenue,KINGSTON UPON HULL CITY COUNCIL,1420
North East Lincolnshire Council,http://statistics.data.gov.uk/id/local-authority/00FC,Children & Family Services,Inclusion And Standards,Standards & Effectiveness,Catering,Provisions General,KG01,17/12/2010,2991592,"3,675.00",Revenue,REDACTED PERSONAL DATA,REDACTED PERSONAL DATA
North East Lincolnshire Council,http://statistics.data.gov.uk/id/local-authority/00FC,Children & Family Services,Inclusion And Standards,Standards & Effectiveness,Consultants,Consult Work Consult+Special,PG01,17/12/2010,2991593,"4,550.00",Revenue,REDACTED PERSONAL DATA,REDACTED PERSONAL DATA
North East Lincolnshire Council,http://statistics.data.gov.uk/id/local-authority/00FC,Children & Family Services,Inclusion And Standards,Standards & Effectiveness,Miscellaneous Expenses,Other Expenses General,NZ01,22/12/2010,2995042,"10,200.00",Revenue,KINGSTON UPON HULL CITY COUNCIL,1420
North East Lincolnshire Council,http://statistics.data.gov.uk/id/local-authority/00FC,Children & Family Services,Inclusion And Standards,Standards & Effectiveness,Miscellaneous Expenses,Other Expenses General,NZ01,22/12/2010,2995094,"17,850.00",Revenue,KINGSTON UPON HULL CITY COUNCIL,1420
North East Lincolnshire Council,http://statistics.data.gov.uk/id/local-authority/00FC,Children & Family Services,Inclusion And Standards,Standards & Effectiveness,Rents,Rent Swimming Pools,FJ08,21/12/2010,2994285,"2,610.00",Revenue,WHITGIFT SCHOOL,75911
North East Lincolnshire Council,http://statistics.data.gov.uk/id/local-authority/00FC,Children & Family Services,Inclusion And Standards,Standards & Effectiveness,Miscellaneous Expenses,Other Expenses General,NZ01,31/12/2010,2996816,631.91,Revenue,THE OAKLANDS COUNTRY HOUSE HOTEL,85488
North East Lincolnshire Council,http://statistics.data.gov.uk/id/local-authority/00FC,Children & Family Services,Inclusion And Standards,Standards & Effectiveness,Grants,Grants Miras,UJ11,20/12/2010,2992067,663.42,Revenue,OASIS ACADEMY WINTRINGHAM,169566
North East Lincolnshire Council,http://statistics.data.gov.uk/id/local-authority/00FC,Children & Family Services,Inclusion And Standards,Standards & Effectiveness,Grants,Grants Home Office Grants,UJ09,13/12/2010,2987642,"22,500.00",Revenue,TOLLBAR ACADEMY,181029
North East Lincolnshire Council,http://statistics.data.gov.uk/id/local-authority/00FC,Children & Family Services,Inclusion And Standards,Standards & Effectiveness,Grants,Grants Training Grants,UJ05,14/12/2010,2988166,"22,500.00",Revenue,TOLLBAR ACADEMY,181029
North East Lincolnshire Council,http://statistics.data.gov.uk/id/local-authority/00FC,Children & Family Services,Inclusion And Standards,Standards & Effectiveness,Grants,Grants Training Grants,UJ05,14/12/2010,2988166,"22,500.00",Revenue,TOLLBAR ACADEMY,181029
North East Lincolnshire Council,http://statistics.data.gov.uk/id/local-authority/00FC,Children & Family Services,Inclusion And Standards,Sen/Inclusion,Consultants,Consult Work Consult+Special,PG01,31/12/2010,2996360,"7,785.15",Revenue,CONSIDERED SOLUTIONS LTD,178927
North East Lincolnshire Council,http://statistics.data.gov.uk/id/local-authority/00FC,Children & Family Services,Inclusion And Standards,Sen/Inclusion,Contributions To Provisions,Contributions To Funds,NV01,09/12/2010,2986143,682.60,Revenue,CMS,170339
North East Lincolnshire Council,http://statistics.data.gov.uk/id/local-authority/00FC,Children & Family Services,Inclusion And Standards,Sen/Inclusion,Other Local Authorities,Oth Local Auth Physicaly H/Cap,QG02,09/12/2010,2986126,"27,900.02",Revenue,KINGSTON UPON HULL CITY COUNCIL,1420
North East Lincolnshire Council,http://statistics.data.gov.uk/id/local-authority/00FC,Children & Family Services,Inclusion And Standards,Sen/Inclusion,Other Local Authorities,Oth Local Auth Hear Impaired,QG03,09/12/2010,2986126,"137,069.80",Revenue,KINGSTON UPON HULL CITY COUNCIL,1420
North East Lincolnshire Council,http://statistics.data.gov.uk/id/local-authority/00FC,Children & Family Services,Inclusion And Standards,Sen/Inclusion,Printing Station & Gen Off Exp,Books Stat & Equip(Ed) Pchse,JN01,31/12/2010,2997491,675.97,Revenue,LYRECO UK LIMITED,117289
North East Lincolnshire Council,http://statistics.data.gov.uk/id/local-authority/00FC,Children & Family Services,Inclusion And Standards,Sen/Inclusion,Consultants,Consult Work Serv For Curricul,PG25,31/12/2010,2996764,"8,750.00",Revenue,REDACTED PERSONAL DATA,REDACTED PERSONAL DATA
North East Lincolnshire Council,http://statistics.data.gov.uk/id/local-authority/00FC,Children & Family Services,Inclusion And Standards,Sen/Inclusion,Miscellaneous Expenses,Examination Fees,MT01,21/12/2010,2994263,-84.00,Revenue,ASSESSMENT AND QUALIFICATIONS ALLIANCE,119946
North East Lincolnshire Council,http://statistics.data.gov.uk/id/local-authority/00FC,Children & Family Services,Inclusion And Standards,Sen/Inclusion,Printing Station & Gen Off Exp,Books Stat & Equip(Ed) Pchse,JN01,03/12/2010,2983138,-42.65,Revenue,SPECIALIST CRAFTS LTD,36254
North East Lincolnshire Council,http://statistics.data.gov.uk/id/local-authority/00FC,Children & Family Services,Inclusion And Standards,Sen/Inclusion,Printing Station & Gen Off Exp,Books Stat & Equip(Ed) Pchse,JN01,03/12/2010,2983136,-36.66,Revenue,SPECIALIST CRAFTS LTD,36254
North East Lincolnshire Council,http://statistics.data.gov.uk/id/local-authority/00FC,Children & Family Services,Inclusion And Standards,Sen/Inclusion,Other Agencies,Spec Agency Skill General,QS01,20/12/2010,2992496,550.00,Revenue,REDACTED PERSONAL DATA,REDACTED PERSONAL DATA
North East Lincolnshire Council,http://statistics.data.gov.uk/id/local-authority/00FC,Children & Family Services,Inclusion And Standards,Sen/Inclusion,Energy Costs,Electricity General,FB01,09/12/2010,2986412,910.75,Revenue,NPOWER LIMITED,147188
North East Lincolnshire Council,http://statistics.data.gov.uk/id/local-authority/00FC,Children & Family Services,Inclusion And Standards,Sen/Inclusion,Repairs & Maintenance,R & M Build Gen (Schools),CA04,03/12/2010,2983130,916.36,Revenue,LINCS ELECTRICAL SERVICES LTD,171623
North East Lincolnshire Council,http://statistics.data.gov.uk/id/local-authority/00FC,Children & Family Services,Inclusion And Standards,Sen/Inclusion,Repairs & Maintenance,R & M Build Gen (Schools),CA04,09/12/2010,2986173,"1,315.00",Revenue,LINCS ELECTRICAL SERVICES LTD,171623
North East Lincolnshire Council,http://statistics.data.gov.uk/id/local-authority/00FC,Children & Family Services,Inclusion And Standards,Sen/Inclusion,Energy Costs,Electricity General,FB01,13/12/2010,2987381,"1,423.72",Revenue,NPOWER LIMITED,147188
North East Lincolnshire Council,http://statistics.data.gov.uk/id/local-authority/00FC,Children & Family Services,Inclusion And Standards,Sen/Inclusion,Direct Employee Expenses,Pay Teachers Supply Cover,AA03,15/12/2010,2990083,550.00,Revenue,RANDSTAD EDUCATION LTD,178168
North East Lincolnshire Council,http://statistics.data.gov.uk/id/local-authority/00FC,Children & Family Services,Inclusion And Standards,Sen/Inclusion,Direct Employee Expenses,Pay Teachers Supply Cover,AA03,22/12/2010,2995054,550.00,Revenue,RANDSTAD EDUCATION LTD,178168
North East Lincolnshire Council,http://statistics.data.gov.uk/id/local-authority/00FC,Children & Family Services,Inclusion And Standards,Sen/Inclusion,Direct Employee Expenses,Pay Teachers Supply Cover,AA03,08/12/2010,2984946,550.00,Revenue,RANDSTAD EDUCATION LTD,178168
North East Lincolnshire Council,http://statistics.data.gov.uk/id/local-authority/00FC,Children & Family Services,Inclusion And Standards,Sen/Inclusion,Other Agencies,Spec Agency Skill General,QS01,08/12/2010,2984949,836.00,Revenue,DKM ASSESSMENT & VERIFICATION LTD,161171
North East Lincolnshire Council,http://statistics.data.gov.uk/id/local-authority/00FC,Children & Family Services,Inclusion And Standards,Sen/Inclusion,Other Agencies,Spec Agency Skill General,QS01,08/12/2010,2984950,"1,672.00",Revenue,DKM ASSESSMENT & VERIFICATION LTD,161171
North East Lincolnshire Council,http://statistics.data.gov.uk/id/local-authority/00FC,Children & Family Services,Inclusion And Standards,Sen/Inclusion,Other Agencies,Spec Agency Skill General,QS01,08/12/2010,2984951,"1,680.00",Revenue,DKM ASSESSMENT & VERIFICATION LTD,161171
North East Lincolnshire Council,http://statistics.data.gov.uk/id/local-authority/00FC,Children & Family Services,Inclusion And Standards,Sen/Inclusion,Other Agencies,Spec Agency Skill General,QS01,08/12/2010,2984952,"1,890.00",Revenue,DKM ASSESSMENT & VERIFICATION LTD,161171
North East Lincolnshire Council,http://statistics.data.gov.uk/id/local-authority/00FC,Children & Family Services,Inclusion And Standards,Sen/Inclusion,Other Agencies,Spec Agency Skill General,QS01,08/12/2010,2984948,"4,785.00",Revenue,DKM ASSESSMENT & VERIFICATION LTD,161171
North East Lincolnshire Council,http://statistics.data.gov.uk/id/local-authority/00FC,Children & Family Services,Inclusion And Standards,Community Learning Services,Equipment/Furniture/Materials,Equip Purchases,HC01,21/12/2010,2993501,637.50,Revenue,GREENHAM TRADING LTD,1031
North East Lincolnshire Council,http://statistics.data.gov.uk/id/local-authority/00FC,Children & Family Services,Inclusion And Standards,Community Learning Services,Clothing Uniforms & Laundry,Cloth/Uniform Protective Cloth,JC02,07/12/2010,2984915,"1,172.34",Revenue,GREENHAM TRADING LTD,1031
North East Lincolnshire Council,http://statistics.data.gov.uk/id/local-authority/00FC,Children & Family Services,Inclusion And Standards,Community Learning Services,Equipment/Furniture/Materials,Equip Purchases,HC01,31/12/2010,2996584,567.99,Revenue,SPECIALIST CRAFTS LTD,36254
North East Lincolnshire Council,http://statistics.data.gov.uk/id/local-authority/00FC,Children & Family Services,Inclusion And Standards,Community Learning Services,Equipment/Furniture/Materials,Equip Purchases,HC01,21/12/2010,2993797,917.00,Revenue,SPECIALIST CRAFTS LTD,36254
North East Lincolnshire Council,http://statistics.data.gov.uk/id/local-authority/00FC,Children & Family Services,Inclusion And Standards,Community Learning Services,Miscellaneous Expenses,Examination Fees,MT01,07/12/2010,2984273,585.20,Revenue,CITY & GUILDS,34986
North East Lincolnshire Council,http://statistics.data.gov.uk/id/local-authority/00FC,Children & Family Services,Inclusion And Standards,Community Learning Services,Miscellaneous Expenses,Examination Fees,MT01,07/12/2010,2984275,"1,023.00",Revenue,CITY & GUILDS,34986
North East Lincolnshire Council,http://statistics.data.gov.uk/id/local-authority/00FC,Children & Family Services,Inclusion And Standards,Community Learning Services,Other Agencies,Further Ed Emp & Training,PM36,08/12/2010,2984958,560.00,Revenue,CARE RENT SCHEME,87664
North East Lincolnshire Council,http://statistics.data.gov.uk/id/local-authority/00FC,Children & Family Services,Inclusion And Standards,Community Learning Services,Other Agencies,Further Ed Emp & Training,PM36,08/12/2010,2985261,-490.00,Revenue,REDACTED PERSONAL DATA,REDACTED PERSONAL DATA
North East Lincolnshire Council,http://statistics.data.gov.uk/id/local-authority/00FC,Children & Family Services,Inclusion And Standards,Community Learning Services,Other Agencies,Further Ed Emp & Training,PM36,08/12/2010,2984957,"-1,596.86",Revenue,KINGSWAY CONSULTING LIMITED,163326
North East Lincolnshire Council,http://statistics.data.gov.uk/id/local-authority/00FC,Children & Family Services,Inclusion And Standards,Community Learning Services,Other Agencies,Further Ed Emp & Training,PM36,31/12/2010,2996770,"1,200.00",Revenue,FLTPT,177248
North East Lincolnshire Council,http://statistics.data.gov.uk/id/local-authority/00FC,Children & Family Services,Inclusion And Standards,Community Learning Services,Other Agencies,Further Ed Emp & Training,PM36,22/12/2010,2995426,"38,757.20",Revenue,KINGSTON UPON HULL CITY COUNCIL,1420
North East Lincolnshire Council,http://statistics.data.gov.uk/id/local-authority/00FC,Children & Family Services,Inclusion And Standards,Music Services,Consultants,Consult Work Consult+Special,PG01,21/12/2010,2994122,525.00,Revenue,THE MINI MORRIS COMPANY,151137
North East Lincolnshire Council,http://statistics.data.gov.uk/id/local-authority/00FC,Children & Family Services,Inclusion And Standards,Music Services,Consultants,Consult Work Consult+Special,PG01,14/12/2010,2988629,900.00,Revenue,REDACTED PERSONAL DATA,REDACTED PERSONAL DATA
North East Lincolnshire Council,http://statistics.data.gov.uk/id/local-authority/00FC,Children & Family Services,Inclusion And Standards,Music Services,Consultants,Consult Work Consult+Special,PG01,15/12/2010,2990133,"4,800.00",Revenue,FREEHAND THEATRE,127685
North East Lincolnshire Council,http://statistics.data.gov.uk/id/local-authority/00FC,Children & Family Services,Inclusion And Standards,Music Services,Services,Misc  Contracts External,JT01,22/12/2010,2995255,541.00,Revenue,REDACTED PERSONAL DATA,REDACTED PERSONAL DATA
North East Lincolnshire Council,http://statistics.data.gov.uk/id/local-authority/00FC,Children & Family Services,Inclusion And Standards,Music Services,Equipment/Furniture/Materials,Educational Equipment Pchses,HP01,21/12/2010,2994083,850.00,Revenue,PJS MUSIC,172103
North East Lincolnshire Council,http://statistics.data.gov.uk/id/local-authority/00FC,Children & Family Services,Inclusion And Standards,Music Services,Consultants,Consult Work Consult+Special,PG01,20/12/2010,2992397,"1,655.13",Revenue,REDACTED PERSONAL DATA,REDACTED PERSONAL DATA
North East Lincolnshire Council,http://statistics.data.gov.uk/id/local-authority/00FC,Children & Family Services,Inclusion And Standards,Music Services,Equipment/Furniture/Materials,Educational Equipment Pchses,HP01,21/12/2010,2994124,"1,747.00",Revenue,NORMANS (BURTON ON TRENT) LTD,153352
North East Lincolnshire Council,http://statistics.data.gov.uk/id/local-authority/00FC,Children & Family Services,Inclusion And Standards,Music Services,Rents,Rent Hire Of Premises,FJ02,21/12/2010,2994080,"2,105.56",Revenue,WHITGIFT SCHOOL,75911
North East Lincolnshire Council,http://statistics.data.gov.uk/id/local-authority/00FC,Children & Family Services,Inclusion And Standards,Music Services,Consultants,Consult Work Consult+Special,PG01,21/12/2010,2993427,"4,800.00",Revenue,REDACTED PERSONAL DATA,REDACTED PERSONAL DATA
North East Lincolnshire Council,http://statistics.data.gov.uk/id/local-authority/00FC,Children & Family Services,Vulnerable Children,Safeguarding,Miscellaneous Expenses,Legal Fees General,LS01,15/12/2010,2990373,"-1,625.00",Revenue,REDACTED PERSONAL DATA,REDACTED PERSONAL DATA
North East Lincolnshire Council,http://statistics.data.gov.uk/id/local-authority/00FC,Children & Family Services,Vulnerable Children,Safeguarding,Miscellaneous Expenses,Legal Fees General,LS01,31/12/2010,2997468,540.00,Revenue,PARSONS DOWD PSYCHOLOGICAL LTD,165318
North East Lincolnshire Council,http://statistics.data.gov.uk/id/local-authority/00FC,Children & Family Services,Vulnerable Children,Safeguarding,Miscellaneous Expenses,Legal Fees General,LS01,22/12/2010,2994435,570.00,Revenue,REDACTED PERSONAL DATA,REDACTED PERSONAL DATA
North East Lincolnshire Council,http://statistics.data.gov.uk/id/local-authority/00FC,Children & Family Services,Vulnerable Children,Safeguarding,Miscellaneous Expenses,Legal Fees General,LS01,22/12/2010,2994438,902.00,Revenue,PARSONS DOWD PSYCHOLOGICAL LTD,165318
North East Lincolnshire Council,http://statistics.data.gov.uk/id/local-authority/00FC,Children & Family Services,Vulnerable Children,Safeguarding,Miscellaneous Expenses,Legal Fees General,LS01,15/12/2010,2990006,"1,150.00",Revenue,REDACTED PERSONAL DATA,REDACTED PERSONAL DATA
North East Lincolnshire Council,http://statistics.data.gov.uk/id/local-authority/00FC,Children & Family Services,Vulnerable Children,Safeguarding,Miscellaneous Expenses,Legal Fees General,LS01,17/12/2010,2991583,"1,645.62",Revenue,NORTH LINCOLNSHIRE COUNCIL,127152
North East Lincolnshire Council,http://statistics.data.gov.uk/id/local-authority/00FC,Children & Family Services,Vulnerable Children,Safeguarding,Miscellaneous Expenses,Legal Fees General,LS01,16/12/2010,2990869,"1,658.28",Revenue,REDACTED PERSONAL DATA,REDACTED PERSONAL DATA
North East Lincolnshire Council,http://statistics.data.gov.uk/id/local-authority/00FC,Children & Family Services,Vulnerable Children,Safeguarding,Miscellaneous Expenses,Legal Fees General,LS01,31/12/2010,2997469,"4,046.60",Revenue,BML PSYCHOLOGICAL CONSULTANCY,176981
North East Lincolnshire Council,http://statistics.data.gov.uk/id/local-authority/00FC,Children & Family Services,Vulnerable Children,Safeguarding,Printing Station & Gen Off Exp,Print & Stat General,LA01,21/12/2010,2994325,"1,447.68",Revenue,LYRECO UK LIMITED,117289
North East Lincolnshire Council,http://statistics.data.gov.uk/id/local-authority/00FC,Children & Family Services,Vulnerable Children,Safeguarding,Private Contractors,Children And Families Tpp,QC01,31/12/2010,2996284,"1,069.50",Revenue,QUAYSIDE CARE,116000
North East Lincolnshire Council,http://statistics.data.gov.uk/id/local-authority/00FC,Children & Family Services,Vulnerable Children,Safeguarding,Private Contractors,Children And Families Tpp,QC01,15/12/2010,2990128,"3,638.00",Revenue,THE YOUTH JUSTICE BOARD,135477
North East Lincolnshire Council,http://statistics.data.gov.uk/id/local-authority/00FC,Children & Family Services,Vulnerable Children,Safeguarding,Private Contractors,Children And Families Tpp,QC01,15/12/2010,2989700,"22,475.00",Revenue,LEEDS CITY COUNCIL,1469
North East Lincolnshire Council,http://statistics.data.gov.uk/id/local-authority/00FC,Children & Family Services,Vulnerable Children,Placement & Support,Printing Station & Gen Off Exp,Print & Stat General,LA01,31/12/2010,2997485,909.69,Revenue,LYRECO UK LIMITED,117289
North East Lincolnshire Council,http://statistics.data.gov.uk/id/local-authority/00FC,Children & Family Services,Vulnerable Children,Placement & Support,Miscellaneous Expenses,Other Expenses General,NZ01,31/12/2010,2997057,"1,242.00",Revenue,CARE QUALITY COMMISSION,137270
North East Lincolnshire Council,http://statistics.data.gov.uk/id/local-authority/00FC,Children & Family Services,Vulnerable Children,Placement & Support,Other Agencies,Child Care Payments,PM01,07/12/2010,2984066,704.54,Revenue,REDACTED PERSONAL DATA,REDACTED PERSONAL DATA
North East Lincolnshire Council,http://statistics.data.gov.uk/id/local-authority/00FC,Children & Family Services,Vulnerable Children,Placement & Support,Other Agencies,Child Care Payments,PM01,07/12/2010,2984251,704.54,Revenue,REDACTED PERSONAL DATA,REDACTED PERSONAL DATA
North East Lincolnshire Council,http://statistics.data.gov.uk/id/local-authority/00FC,Children & Family Services,Vulnerable Children,Placement & Support,Other Agencies,Child Care Payments,PM01,07/12/2010,2984468,704.54,Revenue,REDACTED PERSONAL DATA,REDACTED PERSONAL DATA
North East Lincolnshire Council,http://statistics.data.gov.uk/id/local-authority/00FC,Children & Family Services,Vulnerable Children,Placement & Support,Other Agencies,Child Care Payments,PM01,14/12/2010,2988373,704.54,Revenue,REDACTED PERSONAL DATA,REDACTED PERSONAL DATA
North East Lincolnshire Council,http://statistics.data.gov.uk/id/local-authority/00FC,Children & Family Services,Vulnerable Children,Placement & Support,Equipment/Furniture/Materials,Equip Purchases,HC01,15/12/2010,2990152,510.63,Revenue,APPLIANCE WORLD,121242
North East Lincolnshire Council,http://statistics.data.gov.uk/id/local-authority/00FC,Children & Family Services,Vulnerable Children,Placement & Support,Catering,Provisions General,KG01,21/12/2010,2993785,511.23,Revenue,419 CROMWELL RD FOR PETTY CASH,41436
North East Lincolnshire Council,http://statistics.data.gov.uk/id/local-authority/00FC,Children & Family Services,Vulnerable Children,Placement & Support,Catering,Provisions General,KG01,08/12/2010,2985180,770.72,Revenue,419 CROMWELL RD FOR PETTY CASH,41436
North East Lincolnshire Council,http://statistics.data.gov.uk/id/local-authority/00FC,Children & Family Services,Vulnerable Children,Placement & Support,Communication & Computing,Telephone General,LG01,03/12/2010,2983195,"2,016.70",Revenue,BRITISH TELECOMMUNICATIONS PLC,89130
North East Lincolnshire Council,http://statistics.data.gov.uk/id/local-authority/00FC,Children & Family Services,Vulnerable Children,Placement & Support,Other Agencies,Child Care Payments,PM01,14/12/2010,2988223,-345.34,Revenue,REDACTED PERSONAL DATA,REDACTED PERSONAL DATA
